Workbook

Sheet POČETAK
B1: O OVOM PREDLOŠKU
B2: Upotrijebite radnu knjigu Proračun radnih troškova da biste pratili planirane i stvarne troškove i odstupanja.
B3: Unesite naziv tvrtke i dodajte logotip.
B4: Unesite pojedinosti u tablice na radnom listu Planirani troškovi i Stvarni troškovi.
B5: Tablice na radnom listu Odstupanje u troškovima i u grafikonima na radnom listu Analiza troškova automatski se ažuriraju
B6: Napomena:
B7: dodatne su upute navedene u stupcu A na svakom radnom listu. Ovaj je tekst namjerno skriven. Da biste uklonili tekst, odaberite stupac A, a zatim odaberite IZBRIŠI. Da biste otkrili tekst, odaberite stupac A, a zatim promijenite boju fonta.
B8: Da biste saznali više o tablicama, pritisnite SHIFT i zatim F10 na tablici pa odaberite mogućnost TABLICA i potom ZAMJENSKI TEKST.

Sheet PLANIRANI TROŠKOVI
B2: Naziv tvrtke | K2: Detaljne procjene troškova
K3: Osjenčane ćelije predstavljaju izračune.
B4: PLANIRANI TROŠKOVI | C4: SIJ | D4: VELJ | E4: OŽU | F4: TRA | G4: SVI | H4: LIP | I4: SRP | J4: KOL | K4: RUJ | L4: LIS | M4: STU | N4: PRO | O4: GODINA
B5: Troškovi zaposlenika | C5: Sij | D5: Velj | E5: Ožu | F5: Tra | G5: Svi | H5: Lip | I5: Srp | J5: Kol | K5: Ruj | L5: Lis | M5: Stu | N5: Pro | O5: GODINA
B6: Plaće | C6: 85,000.00 kn | D6: 85,000.00 kn | E6: 85,000.00 kn | F6: 87,500.00 kn | G6: 87,500.00 kn | H6: 87,500.00 kn | I6: 87,500.00 kn | J6: 92,400.00 kn | K6: 92,400.00 kn | L6: 92,400.00 kn | M6: 92,400.00 kn | N6: 92,400.00 kn | O6: =SUM(C6:N6) -> 1,067,000.00 kn
B7: Doprinosi | C7: =C6*0.27 -> 22,950.00 kn | D7: 22,950.00 kn | E7: 22,950.00 kn | F7: 23,625.00 kn | G7: 23,625.00 kn | H7: 23,625.00 kn | I7: 23,625.00 kn | J7: 24,948.00 kn | K7: 24,948.00 kn | L7: 24,948.00 kn | M7: 24,948.00 kn | N7: 24,948.00 kn | O7: =SUM(C7:N7) -> 288,090.00 kn
B8: Podzbroj | C8: =SUBTOTAL(109,PlaniraniZaZaposlenike[Sij]) -> 107,950.00 kn | D8: =SUBTOTAL(109,PlaniraniZaZaposlenike[Velj]) -> 107,950.00 kn | E8: =SUBTOTAL(109,PlaniraniZaZaposlenike[Ožu]) -> 107,950.00 kn | F8: =SUBTOTAL(109,PlaniraniZaZaposlenike[Tra]) -> 111,125.00 kn | G8: =SUBTOTAL(109,PlaniraniZaZaposlenike[Svi]) -> 111,125.00 kn | H8: =SUBTOTAL(109,PlaniraniZaZaposlenike[Lip]) -> 111,125.00 kn | I8: =SUBTOTAL(109,PlaniraniZaZaposlenike[Srp]) -> 111,125.00 kn | J8: =SUBTOTAL(109,PlaniraniZaZaposlenike[Kol]) -> 117,348.00 kn | K8: =SUBTOTAL(109,PlaniraniZaZaposlenike[Ruj]) -> 117,348.00 kn | L8: =SUBTOTAL(109,PlaniraniZaZaposlenike[Lis]) -> 117,348.00 kn | M8: =SUBTOTAL(109,PlaniraniZaZaposlenike[Stu]) -> 117,348.00 kn | N8: =SUBTOTAL(109,PlaniraniZaZaposlenike[Pro]) -> 117,348.00 kn | O8: =SUBTOTAL(109,PlaniraniZaZaposlenike[GODINA]) -> 1,355,090.00 kn
B10: Troškovi ureda | C10: Sij | D10: Velj | E10: Ožu | F10: Tra | G10: Svi | H10: Lip | I10: Srp | J10: Kol | K10: Ruj | L10: Lis | M10: Stu | N10: Pro | O10: GODINA
B11: Najam ureda | C11: 9,800.00 kn | D11: 9,800.00 kn | E11: 9,800.00 kn | F11: 9,800.00 kn | G11: 9,800.00 kn | H11: 9,800.00 kn | I11: 9,800.00 kn | J11: 9,800.00 kn | K11: 9,800.00 kn | L11: 9,800.00 kn | M11: 9,800.00 kn | N11: 9,800.00 kn | O11: =SUM(C11:N11) -> 117,600.00 kn
B12: Plin | D12: 400.00 kn | E12: 400.00 kn | F12: 100.00 kn | G12: 100.00 kn | H12: 100.00 kn | I12: 100.00 kn | J12: 100.00 kn | K12: 100.00 kn | L12: 100.00 kn | M12: 400.00 kn | N12: 400.00 kn | O12: 2,300.00 kn
B13: Struja | C13: 300.00 kn | D13: 300.00 kn | E13: 300.00 kn | F13: 300.00 kn | G13: 300.00 kn | H13: 300.00 kn | I13: 300.00 kn | J13: 300.00 kn | K13: 300.00 kn | L13: 300.00 kn | M13: 300.00 kn | N13: 300.00 kn | O13: 3,600.00 kn
B14: Voda | C14: 40.00 kn | D14: 40.00 kn | E14: 40.00 kn | F14: 40.00 kn | G14: 40.00 kn | H14: 40.00 kn | I14: 40.00 kn | J14: 40.00 kn | K14: 40.00 kn | L14: 40.00 kn | M14: 40.00 kn | N14: 40.00 kn | O14: 480.00 kn
B15: Telefon | C15: 250.00 kn | D15: 250.00 kn | E15: 250.00 kn | F15: 250.00 kn | G15: 250.00 kn | H15: 250.00 kn | I15: 250.00 kn | J15: 250.00 kn | K15: 250.00 kn | L15: 250.00 kn | M15: 250.00 kn | N15: 250.00 kn | O15: 3,000.00 kn
B16: Pristup internetu | C16: 180.00 kn | D16: 180.00 kn | E16: 180.00 kn | F16: 180.00 kn | G16: 180.00 kn | H16: 180.00 kn | I16: 180.00 kn | J16: 180.00 kn | K16: 180.00 kn | L16: 180.00 kn | M16: 180.00 kn | N16: 180.00 kn | O16: 2,160.00 kn
B17: Uredski pribor | C17: 200.00 kn | D17: 200.00 kn | E17: 200.00 kn | F17: 200.00 kn | G17: 200.00 kn | H17: 200.00 kn | I17: 200.00 kn | J17: 200.00 kn | K17: 200.00 kn | L17: 200.00 kn | M17: 200.00 kn | N17: 200.00 kn | O17: 2,400.00 kn
B18: Sigurnost | C18: 600.00 kn | D18: 600.00 kn | E18: 600.00 kn | F18: 600.00 kn | G18: 600.00 kn | H18: 600.00 kn | I18: 600.00 kn | J18: 600.00 kn | K18: 600.00 kn | L18: 600.00 kn | M18: 600.00 kn | N18: 600.00 kn | O18: 7,200.00 kn
B19: Podzbroj | C19: =SUBTOTAL(109,PlaniraniUredski[Sij]) -> 11,370.00 kn | D19: =SUBTOTAL(109,PlaniraniUredski[Velj]) -> 11,770.00 kn | E19: =SUBTOTAL(109,PlaniraniUredski[Ožu]) -> 11,770.00 kn | F19: =SUBTOTAL(109,PlaniraniUredski[Tra]) -> 11,470.00 kn | G19: =SUBTOTAL(109,PlaniraniUredski[Svi]) -> 11,470.00 kn | H19: =SUBTOTAL(109,PlaniraniUredski[Lip]) -> 11,470.00 kn | I19: =SUBTOTAL(109,PlaniraniUredski[Srp]) -> 11,470.00 kn | J19: =SUBTOTAL(109,PlaniraniUredski[Kol]) -> 11,470.00 kn | K19: =SUBTOTAL(109,PlaniraniUredski[Ruj]) -> 11,470.00 kn | L19: =SUBTOTAL(109,PlaniraniUredski[Lis]) -> 11,470.00 kn | M19: =SUBTOTAL(109,PlaniraniUredski[Stu]) -> 11,770.00 kn | N19: =SUBTOTAL(109,PlaniraniUredski[Pro]) -> 11,770.00 kn | O19: =SUBTOTAL(109,PlaniraniUredski[GODINA]) -> 138,740.00 kn
B21: Troškovi marketinga | C21: Sij | D21: Velj | E21: Ožu | F21: Tra | G21: Svi | H21: Lip | I21: Srp | J21: Kol | K21: Ruj | L21: Lis | M21: Stu | N21: Pro | O21: GODINA
B22: Hostiranje web-mjesta | C22: 500.00 kn | D22: 500.00 kn | E22: 500.00 kn | F22: 500.00 kn | G22: 500.00 kn | H22: 500.00 kn | I22: 500.00 kn | J22: 500.00 kn | K22: 500.00 kn | L22: 500.00 kn | M22: 500.00 kn | N22: 500.00 kn | O22: =SUM(C22:N22) -> 6,000.00 kn
B23: Ažuriranje web-mjesta | C23: 200.00 kn | D23: 200.00 kn | E23: 200.00 kn | F23: 200.00 kn | G23: 200.00 kn | H23: 1,000.00 kn | I23: 200.00 kn | J23: 200.00 kn | K23: 200.00 kn | L23: 200.00 kn | M23: 200.00 kn | N23: 1,000.00 kn | O23: 4,000.00 kn
B24: Priprema materijala | C24: 5,000.00 kn | D24: 0.00 kn | E24: 0.00 kn | F24: 5,000.00 kn | G24: 0.00 kn | H24: 0.00 kn | I24: 5,000.00 kn | J24: 0.00 kn | K24: 0.00 kn | L24: 5,000.00 kn | M24: 0.00 kn | N24: 0.00 kn | O24: 20,000.00 kn
B25: Ispis materijala | C25: 200.00 kn | D25: 200.00 kn | E25: 200.00 kn | F25: 200.00 kn | G25: 200.00 kn | H25: 200.00 kn | I25: 200.00 kn | J25: 200.00 kn | K25: 200.00 kn | L25: 200.00 kn | M25: 200.00 kn | N25: 200.00 kn | O25: 2,400.00 kn
B26: Marketinški događaji | C26: 2,000.00 kn | D26: 2,000.00 kn | E26: 2,000.00 kn | F26: 5,000.00 kn | G26: 2,000.00 kn | H26: 2,000.00 kn | I26: 2,000.00 kn | J26: 5,000.00 kn | K26: 2,000.00 kn | L26: 2,000.00 kn | M26: 2,000.00 kn | N26: 5,000.00 kn | O26: 33,000.00 kn
B27: Razni izdaci | C27: 200.00 kn | D27: 200.00 kn | E27: 200.00 kn | F27: 200.00 kn | G27: 200.00 kn | H27: 200.00 kn | I27: 200.00 kn | J27: 200.00 kn | K27: 200.00 kn | L27: 200.00 kn | M27: 200.00 kn | N27: 200.00 kn | O27: 2,400.00 kn
B28: Podzbroj | C28: =SUBTOTAL(109,PlaniraniMarketinški[Sij]) -> 8,100.00 kn | D28: =SUBTOTAL(109,PlaniraniMarketinški[Velj]) -> 3,100.00 kn | E28: =SUBTOTAL(109,PlaniraniMarketinški[Ožu]) -> 3,100.00 kn | F28: =SUBTOTAL(109,PlaniraniMarketinški[Tra]) -> 11,100.00 kn | G28: =SUBTOTAL(109,PlaniraniMarketinški[Svi]) -> 3,100.00 kn | H28: =SUBTOTAL(109,PlaniraniMarketinški[Lip]) -> 3,900.00 kn | I28: =SUBTOTAL(109,PlaniraniMarketinški[Srp]) -> 8,100.00 kn | J28: =SUBTOTAL(109,PlaniraniMarketinški[Kol]) -> 6,100.00 kn | K28: =SUBTOTAL(109,PlaniraniMarketinški[Ruj]) -> 3,100.00 kn | L28: =SUBTOTAL(109,PlaniraniMarketinški[Lis]) -> 8,100.00 kn | M28: =SUBTOTAL(109,PlaniraniMarketinški[Stu]) -> 3,100.00 kn | N28: =SUBTOTAL(109,PlaniraniMarketinški[Pro]) -> 6,900.00 kn | O28: =SUBTOTAL(109,PlaniraniMarketinški[GODINA]) -> 67,800.00 kn
B30: Obuka/putovanja | C30: Sij | D30: Velj | E30: Ožu | F30: Tra | G30: Svi | H30: Lip | I30: Srp | J30: Kol | K30: Ruj | L30: Lis | M30: Stu | N30: Pro | O30: GODINA
B31: Obuka | C31: 2,000.00 kn | D31: 2,000.00 kn | E31: 2,000.00 kn | F31: 2,000.00 kn | G31: 2,000.00 kn | H31: 2,000.00 kn | I31: 2,000.00 kn | J31: 2,000.00 kn | K31: 2,000.00 kn | L31: 2,000.00 kn | M31: 2,000.00 kn | N31: 2,000.00 kn | O31: =SUM(C31:N31) -> 24,000.00 kn
B32: Troškovi putovanja povezanih s obukom | C32: 2,000.00 kn | D32: 2,000.00 kn | E32: 2,000.00 kn | F32: 2,000.00 kn | G32: 2,000.00 kn | H32: 2,000.00 kn | I32: 2,000.00 kn | J32: 2,000.00 kn | K32: 2,000.00 kn | L32: 2,000.00 kn | M32: 2,000.00 kn | N32: 2,000.00 kn | O32: =SUM(C32:N32) -> 24,000.00 kn
B33: Podzbroj | C33: =SUBTOTAL(109,PlaniraniZaObukuIPutovanja[Sij]) -> 4,000.00 kn | D33: =SUBTOTAL(109,PlaniraniZaObukuIPutovanja[Velj]) -> 4,000.00 kn | E33: =SUBTOTAL(109,PlaniraniZaObukuIPutovanja[Ožu]) -> 4,000.00 kn | F33: =SUBTOTAL(109,PlaniraniZaObukuIPutovanja[Tra]) -> 4,000.00 kn | G33: =SUBTOTAL(109,PlaniraniZaObukuIPutovanja[Svi]) -> 4,000.00 kn | H33: =SUBTOTAL(109,PlaniraniZaObukuIPutovanja[Lip]) -> 4,000.00 kn | I33: =SUBTOTAL(109,PlaniraniZaObukuIPutovanja[Srp]) -> 4,000.00 kn | J33: =SUBTOTAL(109,PlaniraniZaObukuIPutovanja[Kol]) -> 4,000.00 kn | K33: =SUBTOTAL(109,PlaniraniZaObukuIPutovanja[Ruj]) -> 4,000.00 kn | L33: =SUBTOTAL(109,PlaniraniZaObukuIPutovanja[Lis]) -> 4,000.00 kn | M33: =SUBTOTAL(109,PlaniraniZaObukuIPutovanja[Stu]) -> 4,000.00 kn | N33: =SUBTOTAL(109,PlaniraniZaObukuIPutovanja[Pro]) -> 4,000.00 kn | O33: =SUBTOTAL(109,PlaniraniZaObukuIPutovanja[GODINA]) -> 48,000.00 kn
B35: UKUPNI IZNOSI | C35: Sij | D35: Velj | E35: Ožu | F35: Tra | G35: Svi | H35: Lip | I35: Srp | J35: Kol | K35: Ruj | L35: Lis | M35: Stu | N35: Pro | O35: Godina
B36: Mjesečni planirani troškovi | C36: =PlaniraniZaObukuIPutovanja[[#Totals],[Sij]]+PlaniraniMarketinški[[#Totals],[Sij]]+PlaniraniUredski[[#Totals],[Sij]]+PlaniraniZaZaposlenike[[#Totals],[Sij]] -> 131,420.00 kn | D36: =PlaniraniZaObukuIPutovanja[[#Totals],[Velj]]+PlaniraniMarketinški[[#Totals],[Velj]]+PlaniraniUredski[[#Totals],[Velj]]+PlaniraniZaZaposlenike[[#Totals],[Velj]] -> 126,820.00 kn | E36: =PlaniraniZaObukuIPutovanja[[#Totals],[Ožu]]+PlaniraniMarketinški[[#Totals],[Ožu]]+PlaniraniUredski[[#Totals],[Ožu]]+PlaniraniZaZaposlenike[[#Totals],[Ožu]] -> 126,820.00 kn | F36: =PlaniraniZaObukuIPutovanja[[#Totals],[Tra]]+PlaniraniMarketinški[[#Totals],[Tra]]+PlaniraniUredski[[#Totals],[Tra]]+PlaniraniZaZaposlenike[[#Totals],[Tra]] -> 137,695.00 kn | G36: =PlaniraniZaObukuIPutovanja[[#Totals],[Svi]]+PlaniraniMarketinški[[#Totals],[Svi]]+PlaniraniUredski[[#Totals],[Svi]]+PlaniraniZaZaposlenike[[#Totals],[Svi]] -> 129,695.00 kn | H36: =PlaniraniZaObukuIPutovanja[[#Totals],[Lip]]+PlaniraniMarketinški[[#Totals],[Lip]]+PlaniraniUredski[[#Totals],[Lip]]+PlaniraniZaZaposlenike[[#Totals],[Lip]] -> 130,495.00 kn | I36: =PlaniraniZaObukuIPutovanja[[#Totals],[Srp]]+PlaniraniMarketinški[[#Totals],[Srp]]+PlaniraniUredski[[#Totals],[Srp]]+PlaniraniZaZaposlenike[[#Totals],[Srp]] -> 134,695.00 kn | J36: =PlaniraniZaObukuIPutovanja[[#Totals],[Kol]]+PlaniraniMarketinški[[#Totals],[Kol]]+PlaniraniUredski[[#Totals],[Kol]]+PlaniraniZaZaposlenike[[#Totals],[Kol]] -> 138,918.00 kn | K36: =PlaniraniZaObukuIPutovanja[[#Totals],[Ruj]]+PlaniraniMarketinški[[#Totals],[Ruj]]+PlaniraniUredski[[#Totals],[Ruj]]+PlaniraniZaZaposlenike[[#Totals],[Ruj]] -> 135,918.00 kn | L36: =PlaniraniZaObukuIPutovanja[[#Totals],[Lis]]+PlaniraniMarketinški[[#Totals],[Lis]]+PlaniraniUredski[[#Totals],[Lis]]+PlaniraniZaZaposlenike[[#Totals],[Lis]] -> 140,918.00 kn | M36: =PlaniraniZaObukuIPutovanja[[#Totals],[Stu]]+PlaniraniMarketinški[[#Totals],[Stu]]+PlaniraniUredski[[#Totals],[Stu]]+PlaniraniZaZaposlenike[[#Totals],[Stu]] -> 136,218.00 kn | N36: =PlaniraniZaObukuIPutovanja[[#Totals],[Pro]]+PlaniraniMarketinški[[#Totals],[Pro]]+PlaniraniUredski[[#Totals],[Pro]]+PlaniraniZaZaposlenike[[#Totals],[Pro]] -> 140,018.00 kn | O36: =PlaniraniZaObukuIPutovanja[[#Totals],[GODINA]]+PlaniraniMarketinški[[#Totals],[GODINA]]+PlaniraniUredski[[#Totals],[GODINA]]+PlaniraniZaZaposlenike[[#Totals],[GODINA]] -> 1,609,630.00 kn
B37: UKUPNI planirani troškovi | C37: =SUM($C$36:C36) -> 131,420.00 kn | D37: =SUM($C$36:D36) -> 258,240.00 kn | E37: =SUM($C$36:E36) -> 385,060.00 kn | F37: =SUM($C$36:F36) -> 522,755.00 kn | G37: =SUM($C$36:G36) -> 652,450.00 kn | H37: =SUM($C$36:H36) -> 782,945.00 kn | I37: =SUM($C$36:I36) -> 917,640.00 kn | J37: =SUM($C$36:J36) -> 1,056,558.00 kn | K37: =SUM($C$36:K36) -> 1,192,476.00 kn | L37: =SUM($C$36:L36) -> 1,333,394.00 kn | M37: =SUM($C$36:M36) -> 1,469,612.00 kn | N37: =SUM($C$36:N36) -> 1,609,630.00 kn

Sheet STVARNI TROŠKOVI
B2: ='PLANIRANI TROŠKOVI'!B2:D3 -> Naziv tvrtke | K2: =naziv_radnog_lista -> Detaljne procjene troškova
K3: Osjenčane ćelije predstavljaju izračune.
B4: STVARNI TROŠKOVI | C4: SIJ | D4: VELJ | E4: OŽU | F4: TRA | G4: SVI | H4: LIP | I4: SRP | J4: KOL | K4: RUJ | L4: LIS | M4: STU | N4: PRO | O4: GODINA
B5: Troškovi zaposlenika | C5: Sij | D5: Velj | E5: Ožu | F5: Tra | G5: Svi | H5: Lip | I5: Srp | J5: Kol | K5: Ruj | L5: Lis | M5: Stu | N5: Pro | O5: GODINA
B6: Plaće | C6: 85,000.00 kn | D6: 85,000.00 kn | E6: 85,000.00 kn | F6: 88,000.00 kn | G6: 88,000.00 kn | H6: 88,000.00 kn | O6: =SUM(C6:N6) -> 519,000.00 kn
B7: Doprinosi | C7: =C6*0.27 -> 22,950.00 kn | D7: 22,950.00 kn | E7: 22,950.00 kn | F7: 23,760.00 kn | G7: 23,760.00 kn | H7: 23,760.00 kn | I7: 0.00 kn | J7: 0.00 kn | K7: 0.00 kn | L7: 0.00 kn | M7: 0.00 kn | N7: 0.00 kn | O7: =SUM(C7:N7) -> 140,130.00 kn
B8: Podzbroj | C8: =SUBTOTAL(109,StvarniZaZaposlenike[Sij]) -> 107,950.00 kn | D8: =SUBTOTAL(109,StvarniZaZaposlenike[Velj]) -> 107,950.00 kn | E8: =SUBTOTAL(109,StvarniZaZaposlenike[Ožu]) -> 107,950.00 kn | F8: =SUBTOTAL(109,StvarniZaZaposlenike[Tra]) -> 111,760.00 kn | G8: =SUBTOTAL(109,StvarniZaZaposlenike[Svi]) -> 111,760.00 kn | H8: =SUBTOTAL(109,StvarniZaZaposlenike[Lip]) -> 111,760.00 kn | I8: =SUBTOTAL(109,StvarniZaZaposlenike[Srp]) -> 0.00 kn | J8: =SUBTOTAL(109,StvarniZaZaposlenike[Kol]) -> 0.00 kn | K8: =SUBTOTAL(109,StvarniZaZaposlenike[Ruj]) -> 0.00 kn | L8: =SUBTOTAL(109,StvarniZaZaposlenike[Lis]) -> 0.00 kn | M8: =SUBTOTAL(109,StvarniZaZaposlenike[Stu]) -> 0.00 kn | N8: =SUBTOTAL(109,StvarniZaZaposlenike[Pro]) -> 0.00 kn | O8: =SUBTOTAL(109,StvarniZaZaposlenike[GODINA]) -> 659,130.00 kn
B10: Troškovi ureda | C10: Sij | D10: Velj | E10: Ožu | F10: Tra | G10: Svi | H10: Lip | I10: Srp | J10: Kol | K10: Ruj | L10: Lis | M10: Stu | N10: Pro | O10: GODINA
B11: Najam ureda | C11: 9,800.00 kn | D11: 9,800.00 kn | E11: 9,800.00 kn | F11: 9,800.00 kn | G11: 9,800.00 kn | H11: 9,800.00 kn | O11: =SUM(C11:N11) -> 58,800.00 kn
B12: Plin | C12: 4.00 kn | D12: 430.00 kn | E12: 385.00 kn | F12: 230.00 kn | G12: 87.00 kn | H12: 88.00 kn | O12: 1,224.00 kn
B13: Struja | C13: 288.00 kn | D13: 278.00 kn | E13: 268.00 kn | F13: 299.00 kn | G13: 306.00 kn | H13: 290.00 kn | O13: 1,729.00 kn
B14: Voda | C14: 35.00 kn | D14: 33.00 kn | E14: 34.00 kn | F14: 36.00 kn | G14: 34.00 kn | H14: 36.00 kn | O14: 208.00 kn
B15: Telefon | C15: 224.00 kn | D15: 235.00 kn | E15: 265.00 kn | F15: 245.00 kn | G15: 245.00 kn | H15: 220.00 kn | O15: 1,434.00 kn
B16: Pristup internetu | C16: 180.00 kn | D16: 180.00 kn | E16: 180.00 kn | F16: 180.00 kn | G16: 180.00 kn | H16: 180.00 kn | O16: 1,080.00 kn
B17: Uredski pribor | C17: 256.00 kn | D17: 142.00 kn | E17: 160.00 kn | F17: 221.00 kn | G17: 256.00 kn | H17: 240.00 kn | O17: 1,275.00 kn
B18: Sigurnost | C18: 600.00 kn | D18: 600.00 kn | E18: 600.00 kn | F18: 600.00 kn | G18: 600.00 kn | H18: 600.00 kn | O18: 3,600.00 kn
B19: Podzbroj | C19: =SUBTOTAL(109,StvarniUredski[Sij]) -> 11,387.00 kn | D19: =SUBTOTAL(109,StvarniUredski[Velj]) -> 11,698.00 kn | E19: =SUBTOTAL(109,StvarniUredski[Ožu]) -> 11,692.00 kn | F19: =SUBTOTAL(109,StvarniUredski[Tra]) -> 11,611.00 kn | G19: =SUBTOTAL(109,StvarniUredski[Svi]) -> 11,508.00 kn | H19: =SUBTOTAL(109,StvarniUredski[Lip]) -> 11,454.00 kn | I19: =SUBTOTAL(109,StvarniUredski[Srp]) -> 0.00 kn | J19: =SUBTOTAL(109,StvarniUredski[Kol]) -> 0.00 kn | K19: =SUBTOTAL(109,StvarniUredski[Ruj]) -> 0.00 kn | L19: =SUBTOTAL(109,StvarniUredski[Lis]) -> 0.00 kn | M19: =SUBTOTAL(109,StvarniUredski[Stu]) -> 0.00 kn | N19: =SUBTOTAL(109,StvarniUredski[Pro]) -> 0.00 kn | O19: =SUBTOTAL(109,StvarniUredski[GODINA]) -> 69,350.00 kn
B21: Troškovi marketinga | C21: Sij | D21: Velj | E21: Ožu | F21: Tra | G21: Svi | H21: Lip | I21: Srp | J21: Kol | K21: Ruj | L21: Lis | M21: Stu | N21: Pro | O21: GODINA
B22: Hostiranje web-mjesta | C22: 500.00 kn | D22: 500.00 kn | E22: 500.00 kn | F22: 500.00 kn | G22: 500.00 kn | H22: 500.00 kn | O22: =SUM(C22:N22) -> 3,000.00 kn
B23: Ažuriranje web-mjesta | C23: 200.00 kn | D23: 200.00 kn | E23: 200.00 kn | F23: 200.00 kn | G23: 200.00 kn | H23: 1,500.00 kn | O23: 2,500.00 kn
B24: Priprema materijala | C24: 4,800.00 kn | D24: 0.00 kn | E24: 0.00 kn | F24: 5,500.00 kn | G24: 0.00 kn | H24: 0.00 kn | O24: 10,300.00 kn
B25: Ispis materijala | C25: 100.00 kn | D25: 500.00 kn | E25: 100.00 kn | F25: 100.00 kn | G25: 600.00 kn | H25: 180.00 kn | O25: 1,580.00 kn
B26: Marketinški događaji | C26: 1,800.00 kn | D26: 2,200.00 kn | E26: 2,200.00 kn | F26: 4,700.00 kn | G26: 1,500.00 kn | H26: 2,300.00 kn | O26: 14,700.00 kn
B27: Razni izdaci | C27: 145.00 kn | D27: 156.00 kn | E27: 123.00 kn | F27: 223.00 kn | G27: 187.00 kn | H27: 245.00 kn | O27: 1,079.00 kn
B28: Podzbroj | C28: =SUBTOTAL(109,StvarniMarketinški[Sij]) -> 7,545.00 kn | D28: =SUBTOTAL(109,StvarniMarketinški[Velj]) -> 3,556.00 kn | E28: =SUBTOTAL(109,StvarniMarketinški[Ožu]) -> 3,123.00 kn | F28: =SUBTOTAL(109,StvarniMarketinški[Tra]) -> 11,223.00 kn | G28: =SUBTOTAL(109,StvarniMarketinški[Svi]) -> 2,987.00 kn | H28: =SUBTOTAL(109,StvarniMarketinški[Lip]) -> 4,725.00 kn | I28: =SUBTOTAL(109,StvarniMarketinški[Srp]) -> 0.00 kn | J28: =SUBTOTAL(109,StvarniMarketinški[Kol]) -> 0.00 kn | K28: =SUBTOTAL(109,StvarniMarketinški[Ruj]) -> 0.00 kn | L28: =SUBTOTAL(109,StvarniMarketinški[Lis]) -> 0.00 kn | M28: =SUBTOTAL(109,StvarniMarketinški[Stu]) -> 0.00 kn | N28: =SUBTOTAL(109,StvarniMarketinški[Pro]) -> 0.00 kn | O28: =SUBTOTAL(109,StvarniMarketinški[GODINA]) -> 33,159.00 kn
B30: Obuka/putovanja | C30: Sij | D30: Velj | E30: Ožu | F30: Tra | G30: Svi | H30: Lip | I30: Srp | J30: Kol | K30: Ruj | L30: Lis | M30: Stu | N30: Pro | O30: GODINA
B31: Obuka | C31: 1,600.00 kn | D31: 2,400.00 kn | E31: 1,400.00 kn | F31: 1,600.00 kn | G31: 1,200.00 kn | H31: 2,800.00 kn | O31: =SUM(C31:N31) -> 11,000.00 kn
B32: Troškovi putovanja povezanih s obukom | C32: 1,200.00 kn | D32: 2,200.00 kn | E32: 1,400.00 kn | F32: 1,200.00 kn | G32: 800.00 kn | H32: 3,500.00 kn | O32: =SUM(C32:N32) -> 10,300.00 kn
B33: Podzbroj | C33: =SUBTOTAL(109,StvarniZaObukuIPutovanja[Sij]) -> 2,800.00 kn | D33: =SUBTOTAL(109,StvarniZaObukuIPutovanja[Velj]) -> 4,600.00 kn | E33: =SUBTOTAL(109,StvarniZaObukuIPutovanja[Ožu]) -> 2,800.00 kn | F33: =SUBTOTAL(109,StvarniZaObukuIPutovanja[Tra]) -> 2,800.00 kn | G33: =SUBTOTAL(109,StvarniZaObukuIPutovanja[Svi]) -> 2,000.00 kn | H33: =SUBTOTAL(109,StvarniZaObukuIPutovanja[Lip]) -> 6,300.00 kn | I33: =SUBTOTAL(109,StvarniZaObukuIPutovanja[Srp]) -> 0.00 kn | J33: =SUBTOTAL(109,StvarniZaObukuIPutovanja[Kol]) -> 0.00 kn | K33: =SUBTOTAL(109,StvarniZaObukuIPutovanja[Ruj]) -> 0.00 kn | L33: =SUBTOTAL(109,StvarniZaObukuIPutovanja[Lis]) -> 0.00 kn | M33: =SUBTOTAL(109,StvarniZaObukuIPutovanja[Stu]) -> 0.00 kn | N33: =SUBTOTAL(109,StvarniZaObukuIPutovanja[Pro]) -> 0.00 kn | O33: =SUBTOTAL(109,StvarniZaObukuIPutovanja[GODINA]) -> 21,300.00 kn
B35: UKUPNI planirani troškovi | C35: Sij | D35: Velj | E35: Ožu | F35: Tra | G35: Svi | H35: Lip | I35: Srp | J35: Kol | K35: Ruj | L35: Lis | M35: Stu | N35: Pro | O35: Godina
B36: Mjesečni stvarni troškovi | C36: =StvarniZaObukuIPutovanja[[#Totals],[Sij]]+StvarniMarketinški[[#Totals],[Sij]]+StvarniUredski[[#Totals],[Sij]]+StvarniZaZaposlenike[[#Totals],[Sij]] -> 129,682.00 kn | D36: =StvarniZaObukuIPutovanja[[#Totals],[Velj]]+StvarniMarketinški[[#Totals],[Velj]]+StvarniUredski[[#Totals],[Velj]]+StvarniZaZaposlenike[[#Totals],[Velj]] -> 127,804.00 kn | E36: =StvarniZaObukuIPutovanja[[#Totals],[Ožu]]+StvarniMarketinški[[#Totals],[Ožu]]+StvarniUredski[[#Totals],[Ožu]]+StvarniZaZaposlenike[[#Totals],[Ožu]] -> 125,565.00 kn | F36: =StvarniZaObukuIPutovanja[[#Totals],[Tra]]+StvarniMarketinški[[#Totals],[Tra]]+StvarniUredski[[#Totals],[Tra]]+StvarniZaZaposlenike[[#Totals],[Tra]] -> 137,394.00 kn | G36: =StvarniZaObukuIPutovanja[[#Totals],[Svi]]+StvarniMarketinški[[#Totals],[Svi]]+StvarniUredski[[#Totals],[Svi]]+StvarniZaZaposlenike[[#Totals],[Svi]] -> 128,255.00 kn | H36: =StvarniZaObukuIPutovanja[[#Totals],[Lip]]+StvarniMarketinški[[#Totals],[Lip]]+StvarniUredski[[#Totals],[Lip]]+StvarniZaZaposlenike[[#Totals],[Lip]] -> 134,239.00 kn | I36: =StvarniZaObukuIPutovanja[[#Totals],[Srp]]+StvarniMarketinški[[#Totals],[Srp]]+StvarniUredski[[#Totals],[Srp]]+StvarniZaZaposlenike[[#Totals],[Srp]] -> 0.00 kn | J36: =StvarniZaObukuIPutovanja[[#Totals],[Kol]]+StvarniMarketinški[[#Totals],[Kol]]+StvarniUredski[[#Totals],[Kol]]+StvarniZaZaposlenike[[#Totals],[Kol]] -> 0.00 kn | K36: =StvarniZaObukuIPutovanja[[#Totals],[Ruj]]+StvarniMarketinški[[#Totals],[Ruj]]+StvarniUredski[[#Totals],[Ruj]]+StvarniZaZaposlenike[[#Totals],[Ruj]] -> 0.00 kn | L36: =StvarniZaObukuIPutovanja[[#Totals],[Lis]]+StvarniMarketinški[[#Totals],[Lis]]+StvarniUredski[[#Totals],[Lis]]+StvarniZaZaposlenike[[#Totals],[Lis]] -> 0.00 kn | M36: =StvarniZaObukuIPutovanja[[#Totals],[Stu]]+StvarniMarketinški[[#Totals],[Stu]]+StvarniUredski[[#Totals],[Stu]]+StvarniZaZaposlenike[[#Totals],[Stu]] -> 0.00 kn | N36: =StvarniZaObukuIPutovanja[[#Totals],[Pro]]+StvarniMarketinški[[#Totals],[Pro]]+StvarniUredski[[#Totals],[Pro]]+StvarniZaZaposlenike[[#Totals],[Pro]] -> 0.00 kn | O36: =StvarniZaObukuIPutovanja[[#Totals],[GODINA]]+StvarniMarketinški[[#Totals],[GODINA]]+StvarniUredski[[#Totals],[GODINA]]+StvarniZaZaposlenike[[#Totals],[GODINA]] -> 782,939.00 kn
B37: UKUPNI stvarni troškovi | C37: =SUM($C$36:C36) -> 129,682.00 kn | D37: =SUM($C$36:D36) -> 257,486.00 kn | E37: =SUM($C$36:E36) -> 383,051.00 kn | F37: =SUM($C$36:F36) -> 520,445.00 kn | G37: =SUM($C$36:G36) -> 648,700.00 kn | H37: =SUM($C$36:H36) -> 782,939.00 kn | I37: =SUM($C$36:I36) -> 782,939.00 kn | J37: =SUM($C$36:J36) -> 782,939.00 kn | K37: =SUM($C$36:K36) -> 782,939.00 kn | L37: =SUM($C$36:L36) -> 782,939.00 kn | M37: =SUM($C$36:M36) -> 782,939.00 kn | N37: =SUM($C$36:N36) -> 782,939.00 kn

Sheet ODSTUPANJE U TROŠKOVIMA
B2: ='PLANIRANI TROŠKOVI'!B2:D3 -> Naziv tvrtke | K2: =naziv_radnog_lista -> Detaljne procjene troškova
K3: Osjenčane ćelije predstavljaju izračune.
B4: ODSTUPANJE U TROŠKOVIMA | C4: SIJ | D4: VELJ | E4: OŽU | F4: TRA | G4: SVI | H4: LIP | I4: SRP | J4: KOL | K4: RUJ | L4: LIS | M4: STU | N4: PRO | O4: GODINA
B5: Troškovi zaposlenika | C5: Sij | D5: Velj | E5: Ožu | F5: Tra | G5: Svi | H5: Lip | I5: Srp | J5: Kol | K5: Ruj | L5: Lis | M5: Stu | N5: Pro | O5: GODINA
B6: Plaće | C6: =INDEX(PlaniraniZaZaposlenike[],MATCH(INDEX(OdstupanjaZaZaposlenike[],ROW()-ROW(OdstupanjaZaZaposlenike[[#Headers],[Sij]]),1),INDEX(PlaniraniZaZaposlenike[],,1),0),MATCH(OdstupanjaZaZaposlenike[[#Headers],[Sij]],PlaniraniZaZaposlenike[#Headers],0))-INDEX(StvarniZaZaposlenike[],MATCH(INDEX(OdstupanjaZaZaposlenike[],ROW()-ROW(OdstupanjaZaZaposlenike[[#Headers],[Sij]]),1),INDEX(PlaniraniZaZaposlenike[],,1),0),MATCH(OdstupanjaZaZaposlenike[[#Headers],[Sij]],StvarniZaZaposlenike[#Headers],0)) -> 0.00 kn | D6: =INDEX(PlaniraniZaZaposlenike[],MATCH(INDEX(OdstupanjaZaZaposlenike[],ROW()-ROW(OdstupanjaZaZaposlenike[[#Headers],[Velj]]),1),INDEX(PlaniraniZaZaposlenike[],,1),0),MATCH(OdstupanjaZaZaposlenike[[#Headers],[Velj]],PlaniraniZaZaposlenike[#Headers],0))-INDEX(StvarniZaZaposlenike[],MATCH(INDEX(OdstupanjaZaZaposlenike[],ROW()-ROW(OdstupanjaZaZaposlenike[[#Headers],[Velj]]),1),INDEX(PlaniraniZaZaposlenike[],,1),0),MATCH(OdstupanjaZaZaposlenike[[#Headers],[Velj]],StvarniZaZaposlenike[#Headers],0)) -> 0.00 kn | E6: =INDEX(PlaniraniZaZaposlenike[],MATCH(INDEX(OdstupanjaZaZaposlenike[],ROW()-ROW(OdstupanjaZaZaposlenike[[#Headers],[Ožu]]),1),INDEX(PlaniraniZaZaposlenike[],,1),0),MATCH(OdstupanjaZaZaposlenike[[#Headers],[Ožu]],PlaniraniZaZaposlenike[#Headers],0))-INDEX(StvarniZaZaposlenike[],MATCH(INDEX(OdstupanjaZaZaposlenike[],ROW()-ROW(OdstupanjaZaZaposlenike[[#Headers],[Ožu]]),1),INDEX(PlaniraniZaZaposlenike[],,1),0),MATCH(OdstupanjaZaZaposlenike[[#Headers],[Ožu]],StvarniZaZaposlenike[#Headers],0)) -> 0.00 kn | F6: =INDEX(PlaniraniZaZaposlenike[],MATCH(INDEX(OdstupanjaZaZaposlenike[],ROW()-ROW(OdstupanjaZaZaposlenike[[#Headers],[Tra]]),1),INDEX(PlaniraniZaZaposlenike[],,1),0),MATCH(OdstupanjaZaZaposlenike[[#Headers],[Tra]],PlaniraniZaZaposlenike[#Headers],0))-INDEX(StvarniZaZaposlenike[],MATCH(INDEX(OdstupanjaZaZaposlenike[],ROW()-ROW(OdstupanjaZaZaposlenike[[#Headers],[Tra]]),1),INDEX(PlaniraniZaZaposlenike[],,1),0),MATCH(OdstupanjaZaZaposlenike[[#Headers],[Tra]],StvarniZaZaposlenike[#Headers],0)) -> -500.00 kn | G6: =INDEX(PlaniraniZaZaposlenike[],MATCH(INDEX(OdstupanjaZaZaposlenike[],ROW()-ROW(OdstupanjaZaZaposlenike[[#Headers],[Svi]]),1),INDEX(PlaniraniZaZaposlenike[],,1),0),MATCH(OdstupanjaZaZaposlenike[[#Headers],[Svi]],PlaniraniZaZaposlenike[#Headers],0))-INDEX(StvarniZaZaposlenike[],MATCH(INDEX(OdstupanjaZaZaposlenike[],ROW()-ROW(OdstupanjaZaZaposlenike[[#Headers],[Svi]]),1),INDEX(PlaniraniZaZaposlenike[],,1),0),MATCH(OdstupanjaZaZaposlenike[[#Headers],[Svi]],StvarniZaZaposlenike[#Headers],0)) -> -500.00 kn | H6: =INDEX(PlaniraniZaZaposlenike[],MATCH(INDEX(OdstupanjaZaZaposlenike[],ROW()-ROW(OdstupanjaZaZaposlenike[[#Headers],[Lip]]),1),INDEX(PlaniraniZaZaposlenike[],,1),0),MATCH(OdstupanjaZaZaposlenike[[#Headers],[Lip]],PlaniraniZaZaposlenike[#Headers],0))-INDEX(StvarniZaZaposlenike[],MATCH(INDEX(OdstupanjaZaZaposlenike[],ROW()-ROW(OdstupanjaZaZaposlenike[[#Headers],[Lip]]),1),INDEX(PlaniraniZaZaposlenike[],,1),0),MATCH(OdstupanjaZaZaposlenike[[#Headers],[Lip]],StvarniZaZaposlenike[#Headers],0)) -> -500.00 kn | I6: =INDEX(PlaniraniZaZaposlenike[],MATCH(INDEX(OdstupanjaZaZaposlenike[],ROW()-ROW(OdstupanjaZaZaposlenike[[#Headers],[Srp]]),1),INDEX(PlaniraniZaZaposlenike[],,1),0),MATCH(OdstupanjaZaZaposlenike[[#Headers],[Srp]],PlaniraniZaZaposlenike[#Headers],0))-INDEX(StvarniZaZaposlenike[],MATCH(INDEX(OdstupanjaZaZaposlenike[],ROW()-ROW(OdstupanjaZaZaposlenike[[#Headers],[Srp]]),1),INDEX(PlaniraniZaZaposlenike[],,1),0),MATCH(OdstupanjaZaZaposlenike[[#Headers],[Srp]],StvarniZaZaposlenike[#Headers],0)) -> 87,500.00 kn | J6: =INDEX(PlaniraniZaZaposlenike[],MATCH(INDEX(OdstupanjaZaZaposlenike[],ROW()-ROW(OdstupanjaZaZaposlenike[[#Headers],[Kol]]),1),INDEX(PlaniraniZaZaposlenike[],,1),0),MATCH(OdstupanjaZaZaposlenike[[#Headers],[Kol]],PlaniraniZaZaposlenike[#Headers],0))-INDEX(StvarniZaZaposlenike[],MATCH(INDEX(OdstupanjaZaZaposlenike[],ROW()-ROW(OdstupanjaZaZaposlenike[[#Headers],[Kol]]),1),INDEX(PlaniraniZaZaposlenike[],,1),0),MATCH(OdstupanjaZaZaposlenike[[#Headers],[Kol]],StvarniZaZaposlenike[#Headers],0)) -> 92,400.00 kn | K6: =INDEX(PlaniraniZaZaposlenike[],MATCH(INDEX(OdstupanjaZaZaposlenike[],ROW()-ROW(OdstupanjaZaZaposlenike[[#Headers],[Ruj]]),1),INDEX(PlaniraniZaZaposlenike[],,1),0),MATCH(OdstupanjaZaZaposlenike[[#Headers],[Ruj]],PlaniraniZaZaposlenike[#Headers],0))-INDEX(StvarniZaZaposlenike[],MATCH(INDEX(OdstupanjaZaZaposlenike[],ROW()-ROW(OdstupanjaZaZaposlenike[[#Headers],[Ruj]]),1),INDEX(PlaniraniZaZaposlenike[],,1),0),MATCH(OdstupanjaZaZaposlenike[[#Headers],[Ruj]],StvarniZaZaposlenike[#Headers],0)) -> 92,400.00 kn | L6: =INDEX(PlaniraniZaZaposlenike[],MATCH(INDEX(OdstupanjaZaZaposlenike[],ROW()-ROW(OdstupanjaZaZaposlenike[[#Headers],[Lis]]),1),INDEX(PlaniraniZaZaposlenike[],,1),0),MATCH(OdstupanjaZaZaposlenike[[#Headers],[Lis]],PlaniraniZaZaposlenike[#Headers],0))-INDEX(StvarniZaZaposlenike[],MATCH(INDEX(OdstupanjaZaZaposlenike[],ROW()-ROW(OdstupanjaZaZaposlenike[[#Headers],[Lis]]),1),INDEX(PlaniraniZaZaposlenike[],,1),0),MATCH(OdstupanjaZaZaposlenike[[#Headers],[Lis]],StvarniZaZaposlenike[#Headers],0)) -> 92,400.00 kn | M6: =INDEX(PlaniraniZaZaposlenike[],MATCH(INDEX(OdstupanjaZaZaposlenike[],ROW()-ROW(OdstupanjaZaZaposlenike[[#Headers],[Stu]]),1),INDEX(PlaniraniZaZaposlenike[],,1),0),MATCH(OdstupanjaZaZaposlenike[[#Headers],[Stu]],PlaniraniZaZaposlenike[#Headers],0))-INDEX(StvarniZaZaposlenike[],MATCH(INDEX(OdstupanjaZaZaposlenike[],ROW()-ROW(OdstupanjaZaZaposlenike[[#Headers],[Stu]]),1),INDEX(PlaniraniZaZaposlenike[],,1),0),MATCH(OdstupanjaZaZaposlenike[[#Headers],[Stu]],StvarniZaZaposlenike[#Headers],0)) -> 92,400.00 kn | N6: =INDEX(PlaniraniZaZaposlenike[],MATCH(INDEX(OdstupanjaZaZaposlenike[],ROW()-ROW(OdstupanjaZaZaposlenike[[#Headers],[Pro]]),1),INDEX(PlaniraniZaZaposlenike[],,1),0),MATCH(OdstupanjaZaZaposlenike[[#Headers],[Pro]],PlaniraniZaZaposlenike[#Headers],0))-INDEX(StvarniZaZaposlenike[],MATCH(INDEX(OdstupanjaZaZaposlenike[],ROW()-ROW(OdstupanjaZaZaposlenike[[#Headers],[Pro]]),1),INDEX(PlaniraniZaZaposlenike[],,1),0),MATCH(OdstupanjaZaZaposlenike[[#Headers],[Pro]],StvarniZaZaposlenike[#Headers],0)) -> 92,400.00 kn | O6: =SUM(OdstupanjaZaZaposlenike[[#This Row],[Sij]:[Pro]]) -> 548,000.00 kn
B7: Doprinosi | C7: =INDEX(PlaniraniZaZaposlenike[],MATCH(INDEX(OdstupanjaZaZaposlenike[],ROW()-ROW(OdstupanjaZaZaposlenike[[#Headers],[Sij]]),1),INDEX(PlaniraniZaZaposlenike[],,1),0),MATCH(OdstupanjaZaZaposlenike[[#Headers],[Sij]],PlaniraniZaZaposlenike[#Headers],0))-INDEX(StvarniZaZaposlenike[],MATCH(INDEX(OdstupanjaZaZaposlenike[],ROW()-ROW(OdstupanjaZaZaposlenike[[#Headers],[Sij]]),1),INDEX(PlaniraniZaZaposlenike[],,1),0),MATCH(OdstupanjaZaZaposlenike[[#Headers],[Sij]],StvarniZaZaposlenike[#Headers],0)) -> 0.00 kn | D7: =INDEX(PlaniraniZaZaposlenike[],MATCH(INDEX(OdstupanjaZaZaposlenike[],ROW()-ROW(OdstupanjaZaZaposlenike[[#Headers],[Velj]]),1),INDEX(PlaniraniZaZaposlenike[],,1),0),MATCH(OdstupanjaZaZaposlenike[[#Headers],[Velj]],PlaniraniZaZaposlenike[#Headers],0))-INDEX(StvarniZaZaposlenike[],MATCH(INDEX(OdstupanjaZaZaposlenike[],ROW()-ROW(OdstupanjaZaZaposlenike[[#Headers],[Velj]]),1),INDEX(PlaniraniZaZaposlenike[],,1),0),MATCH(OdstupanjaZaZaposlenike[[#Headers],[Velj]],StvarniZaZaposlenike[#Headers],0)) -> 0.00 kn | E7: =INDEX(PlaniraniZaZaposlenike[],MATCH(INDEX(OdstupanjaZaZaposlenike[],ROW()-ROW(OdstupanjaZaZaposlenike[[#Headers],[Ožu]]),1),INDEX(PlaniraniZaZaposlenike[],,1),0),MATCH(OdstupanjaZaZaposlenike[[#Headers],[Ožu]],PlaniraniZaZaposlenike[#Headers],0))-INDEX(StvarniZaZaposlenike[],MATCH(INDEX(OdstupanjaZaZaposlenike[],ROW()-ROW(OdstupanjaZaZaposlenike[[#Headers],[Ožu]]),1),INDEX(PlaniraniZaZaposlenike[],,1),0),MATCH(OdstupanjaZaZaposlenike[[#Headers],[Ožu]],StvarniZaZaposlenike[#Headers],0)) -> 0.00 kn | F7: =INDEX(PlaniraniZaZaposlenike[],MATCH(INDEX(OdstupanjaZaZaposlenike[],ROW()-ROW(OdstupanjaZaZaposlenike[[#Headers],[Tra]]),1),INDEX(PlaniraniZaZaposlenike[],,1),0),MATCH(OdstupanjaZaZaposlenike[[#Headers],[Tra]],PlaniraniZaZaposlenike[#Headers],0))-INDEX(StvarniZaZaposlenike[],MATCH(INDEX(OdstupanjaZaZaposlenike[],ROW()-ROW(OdstupanjaZaZaposlenike[[#Headers],[Tra]]),1),INDEX(PlaniraniZaZaposlenike[],,1),0),MATCH(OdstupanjaZaZaposlenike[[#Headers],[Tra]],StvarniZaZaposlenike[#Headers],0)) -> -135.00 kn | G7: =INDEX(PlaniraniZaZaposlenike[],MATCH(INDEX(OdstupanjaZaZaposlenike[],ROW()-ROW(OdstupanjaZaZaposlenike[[#Headers],[Svi]]),1),INDEX(PlaniraniZaZaposlenike[],,1),0),MATCH(OdstupanjaZaZaposlenike[[#Headers],[Svi]],PlaniraniZaZaposlenike[#Headers],0))-INDEX(StvarniZaZaposlenike[],MATCH(INDEX(OdstupanjaZaZaposlenike[],ROW()-ROW(OdstupanjaZaZaposlenike[[#Headers],[Svi]]),1),INDEX(PlaniraniZaZaposlenike[],,1),0),MATCH(OdstupanjaZaZaposlenike[[#Headers],[Svi]],StvarniZaZaposlenike[#Headers],0)) -> -135.00 kn | H7: =INDEX(PlaniraniZaZaposlenike[],MATCH(INDEX(OdstupanjaZaZaposlenike[],ROW()-ROW(OdstupanjaZaZaposlenike[[#Headers],[Lip]]),1),INDEX(PlaniraniZaZaposlenike[],,1),0),MATCH(OdstupanjaZaZaposlenike[[#Headers],[Lip]],PlaniraniZaZaposlenike[#Headers],0))-INDEX(StvarniZaZaposlenike[],MATCH(INDEX(OdstupanjaZaZaposlenike[],ROW()-ROW(OdstupanjaZaZaposlenike[[#Headers],[Lip]]),1),INDEX(PlaniraniZaZaposlenike[],,1),0),MATCH(OdstupanjaZaZaposlenike[[#Headers],[Lip]],StvarniZaZaposlenike[#Headers],0)) -> -135.00 kn | I7: =INDEX(PlaniraniZaZaposlenike[],MATCH(INDEX(OdstupanjaZaZaposlenike[],ROW()-ROW(OdstupanjaZaZaposlenike[[#Headers],[Srp]]),1),INDEX(PlaniraniZaZaposlenike[],,1),0),MATCH(OdstupanjaZaZaposlenike[[#Headers],[Srp]],PlaniraniZaZaposlenike[#Headers],0))-INDEX(StvarniZaZaposlenike[],MATCH(INDEX(OdstupanjaZaZaposlenike[],ROW()-ROW(OdstupanjaZaZaposlenike[[#Headers],[Srp]]),1),INDEX(PlaniraniZaZaposlenike[],,1),0),MATCH(OdstupanjaZaZaposlenike[[#Headers],[Srp]],StvarniZaZaposlenike[#Headers],0)) -> 23,625.00 kn | J7: =INDEX(PlaniraniZaZaposlenike[],MATCH(INDEX(OdstupanjaZaZaposlenike[],ROW()-ROW(OdstupanjaZaZaposlenike[[#Headers],[Kol]]),1),INDEX(PlaniraniZaZaposlenike[],,1),0),MATCH(OdstupanjaZaZaposlenike[[#Headers],[Kol]],PlaniraniZaZaposlenike[#Headers],0))-INDEX(StvarniZaZaposlenike[],MATCH(INDEX(OdstupanjaZaZaposlenike[],ROW()-ROW(OdstupanjaZaZaposlenike[[#Headers],[Kol]]),1),INDEX(PlaniraniZaZaposlenike[],,1),0),MATCH(OdstupanjaZaZaposlenike[[#Headers],[Kol]],StvarniZaZaposlenike[#Headers],0)) -> 24,948.00 kn | K7: =INDEX(PlaniraniZaZaposlenike[],MATCH(INDEX(OdstupanjaZaZaposlenike[],ROW()-ROW(OdstupanjaZaZaposlenike[[#Headers],[Ruj]]),1),INDEX(PlaniraniZaZaposlenike[],,1),0),MATCH(OdstupanjaZaZaposlenike[[#Headers],[Ruj]],PlaniraniZaZaposlenike[#Headers],0))-INDEX(StvarniZaZaposlenike[],MATCH(INDEX(OdstupanjaZaZaposlenike[],ROW()-ROW(OdstupanjaZaZaposlenike[[#Headers],[Ruj]]),1),INDEX(PlaniraniZaZaposlenike[],,1),0),MATCH(OdstupanjaZaZaposlenike[[#Headers],[Ruj]],StvarniZaZaposlenike[#Headers],0)) -> 24,948.00 kn | L7: =INDEX(PlaniraniZaZaposlenike[],MATCH(INDEX(OdstupanjaZaZaposlenike[],ROW()-ROW(OdstupanjaZaZaposlenike[[#Headers],[Lis]]),1),INDEX(PlaniraniZaZaposlenike[],,1),0),MATCH(OdstupanjaZaZaposlenike[[#Headers],[Lis]],PlaniraniZaZaposlenike[#Headers],0))-INDEX(StvarniZaZaposlenike[],MATCH(INDEX(OdstupanjaZaZaposlenike[],ROW()-ROW(OdstupanjaZaZaposlenike[[#Headers],[Lis]]),1),INDEX(PlaniraniZaZaposlenike[],,1),0),MATCH(OdstupanjaZaZaposlenike[[#Headers],[Lis]],StvarniZaZaposlenike[#Headers],0)) -> 24,948.00 kn | M7: =INDEX(PlaniraniZaZaposlenike[],MATCH(INDEX(OdstupanjaZaZaposlenike[],ROW()-ROW(OdstupanjaZaZaposlenike[[#Headers],[Stu]]),1),INDEX(PlaniraniZaZaposlenike[],,1),0),MATCH(OdstupanjaZaZaposlenike[[#Headers],[Stu]],PlaniraniZaZaposlenike[#Headers],0))-INDEX(StvarniZaZaposlenike[],MATCH(INDEX(OdstupanjaZaZaposlenike[],ROW()-ROW(OdstupanjaZaZaposlenike[[#Headers],[Stu]]),1),INDEX(PlaniraniZaZaposlenike[],,1),0),MATCH(OdstupanjaZaZaposlenike[[#Headers],[Stu]],StvarniZaZaposlenike[#Headers],0)) -> 24,948.00 kn | N7: =INDEX(PlaniraniZaZaposlenike[],MATCH(INDEX(OdstupanjaZaZaposlenike[],ROW()-ROW(OdstupanjaZaZaposlenike[[#Headers],[Pro]]),1),INDEX(PlaniraniZaZaposlenike[],,1),0),MATCH(OdstupanjaZaZaposlenike[[#Headers],[Pro]],PlaniraniZaZaposlenike[#Headers],0))-INDEX(StvarniZaZaposlenike[],MATCH(INDEX(OdstupanjaZaZaposlenike[],ROW()-ROW(OdstupanjaZaZaposlenike[[#Headers],[Pro]]),1),INDEX(PlaniraniZaZaposlenike[],,1),0),MATCH(OdstupanjaZaZaposlenike[[#Headers],[Pro]],StvarniZaZaposlenike[#Headers],0)) -> 24,948.00 kn | O7: =SUM(OdstupanjaZaZaposlenike[[#This Row],[Sij]:[Pro]]) -> 147,960.00 kn
B8: Podzbroj | C8: =SUBTOTAL(109,OdstupanjaZaZaposlenike[Sij]) -> 0.00 kn | D8: =SUBTOTAL(109,OdstupanjaZaZaposlenike[Velj]) -> 0.00 kn | E8: =SUBTOTAL(109,OdstupanjaZaZaposlenike[Ožu]) -> 0.00 kn | F8: =SUBTOTAL(109,OdstupanjaZaZaposlenike[Tra]) -> -635.00 kn | G8: =SUBTOTAL(109,OdstupanjaZaZaposlenike[Svi]) -> -635.00 kn | H8: =SUBTOTAL(109,OdstupanjaZaZaposlenike[Lip]) -> -635.00 kn | I8: =SUBTOTAL(109,OdstupanjaZaZaposlenike[Srp]) -> 111,125.00 kn | J8: =SUBTOTAL(109,OdstupanjaZaZaposlenike[Kol]) -> 117,348.00 kn | K8: =SUBTOTAL(109,OdstupanjaZaZaposlenike[Ruj]) -> 117,348.00 kn | L8: =SUBTOTAL(109,OdstupanjaZaZaposlenike[Lis]) -> 117,348.00 kn | M8: =SUBTOTAL(109,OdstupanjaZaZaposlenike[Stu]) -> 117,348.00 kn | N8: =SUBTOTAL(109,OdstupanjaZaZaposlenike[Pro]) -> 117,348.00 kn | O8: =SUBTOTAL(109,OdstupanjaZaZaposlenike[GODINA]) -> 695,960.00 kn
B10: Troškovi ureda | C10: Sij | D10: Velj | E10: Ožu | F10: Tra | G10: Svi | H10: Lip | I10: Srp | J10: Kol | K10: Ruj | L10: Lis | M10: Stu | N10: Pro | O10: GODINA
B11: Najam ureda | C11: =INDEX(PlaniraniUredski[],MATCH(INDEX(OdstupanjaZaUredske[],ROW()-ROW(OdstupanjaZaUredske[[#Headers],[Sij]]),1),INDEX(PlaniraniUredski[],,1),0),MATCH(OdstupanjaZaUredske[[#Headers],[Sij]],PlaniraniUredski[#Headers],0))-INDEX(StvarniUredski[],MATCH(INDEX(OdstupanjaZaUredske[],ROW()-ROW(OdstupanjaZaUredske[[#Headers],[Sij]]),1),INDEX(PlaniraniUredski[],,1),0),MATCH(OdstupanjaZaUredske[[#Headers],[Sij]],StvarniUredski[#Headers],0)) -> 0.00 kn | D11: =INDEX(PlaniraniUredski[],MATCH(INDEX(OdstupanjaZaUredske[],ROW()-ROW(OdstupanjaZaUredske[[#Headers],[Velj]]),1),INDEX(PlaniraniUredski[],,1),0),MATCH(OdstupanjaZaUredske[[#Headers],[Velj]],PlaniraniUredski[#Headers],0))-INDEX(StvarniUredski[],MATCH(INDEX(OdstupanjaZaUredske[],ROW()-ROW(OdstupanjaZaUredske[[#Headers],[Velj]]),1),INDEX(PlaniraniUredski[],,1),0),MATCH(OdstupanjaZaUredske[[#Headers],[Velj]],StvarniUredski[#Headers],0)) -> 0.00 kn | E11: =INDEX(PlaniraniUredski[],MATCH(INDEX(OdstupanjaZaUredske[],ROW()-ROW(OdstupanjaZaUredske[[#Headers],[Ožu]]),1),INDEX(PlaniraniUredski[],,1),0),MATCH(OdstupanjaZaUredske[[#Headers],[Ožu]],PlaniraniUredski[#Headers],0))-INDEX(StvarniUredski[],MATCH(INDEX(OdstupanjaZaUredske[],ROW()-ROW(OdstupanjaZaUredske[[#Headers],[Ožu]]),1),INDEX(PlaniraniUredski[],,1),0),MATCH(OdstupanjaZaUredske[[#Headers],[Ožu]],StvarniUredski[#Headers],0)) -> 0.00 kn | F11: =INDEX(PlaniraniUredski[],MATCH(INDEX(OdstupanjaZaUredske[],ROW()-ROW(OdstupanjaZaUredske[[#Headers],[Tra]]),1),INDEX(PlaniraniUredski[],,1),0),MATCH(OdstupanjaZaUredske[[#Headers],[Tra]],PlaniraniUredski[#Headers],0))-INDEX(StvarniUredski[],MATCH(INDEX(OdstupanjaZaUredske[],ROW()-ROW(OdstupanjaZaUredske[[#Headers],[Tra]]),1),INDEX(PlaniraniUredski[],,1),0),MATCH(OdstupanjaZaUredske[[#Headers],[Tra]],StvarniUredski[#Headers],0)) -> 0.00 kn | G11: =INDEX(PlaniraniUredski[],MATCH(INDEX(OdstupanjaZaUredske[],ROW()-ROW(OdstupanjaZaUredske[[#Headers],[Svi]]),1),INDEX(PlaniraniUredski[],,1),0),MATCH(OdstupanjaZaUredske[[#Headers],[Svi]],PlaniraniUredski[#Headers],0))-INDEX(StvarniUredski[],MATCH(INDEX(OdstupanjaZaUredske[],ROW()-ROW(OdstupanjaZaUredske[[#Headers],[Svi]]),1),INDEX(PlaniraniUredski[],,1),0),MATCH(OdstupanjaZaUredske[[#Headers],[Svi]],StvarniUredski[#Headers],0)) -> 0.00 kn | H11: =INDEX(PlaniraniUredski[],MATCH(INDEX(OdstupanjaZaUredske[],ROW()-ROW(OdstupanjaZaUredske[[#Headers],[Lip]]),1),INDEX(PlaniraniUredski[],,1),0),MATCH(OdstupanjaZaUredske[[#Headers],[Lip]],PlaniraniUredski[#Headers],0))-INDEX(StvarniUredski[],MATCH(INDEX(OdstupanjaZaUredske[],ROW()-ROW(OdstupanjaZaUredske[[#Headers],[Lip]]),1),INDEX(PlaniraniUredski[],,1),0),MATCH(OdstupanjaZaUredske[[#Headers],[Lip]],StvarniUredski[#Headers],0)) -> 0.00 kn | I11: =INDEX(PlaniraniUredski[],MATCH(INDEX(OdstupanjaZaUredske[],ROW()-ROW(OdstupanjaZaUredske[[#Headers],[Srp]]),1),INDEX(PlaniraniUredski[],,1),0),MATCH(OdstupanjaZaUredske[[#Headers],[Srp]],PlaniraniUredski[#Headers],0))-INDEX(StvarniUredski[],MATCH(INDEX(OdstupanjaZaUredske[],ROW()-ROW(OdstupanjaZaUredske[[#Headers],[Srp]]),1),INDEX(PlaniraniUredski[],,1),0),MATCH(OdstupanjaZaUredske[[#Headers],[Srp]],StvarniUredski[#Headers],0)) -> 9,800.00 kn | J11: =INDEX(PlaniraniUredski[],MATCH(INDEX(OdstupanjaZaUredske[],ROW()-ROW(OdstupanjaZaUredske[[#Headers],[Kol]]),1),INDEX(PlaniraniUredski[],,1),0),MATCH(OdstupanjaZaUredske[[#Headers],[Kol]],PlaniraniUredski[#Headers],0))-INDEX(StvarniUredski[],MATCH(INDEX(OdstupanjaZaUredske[],ROW()-ROW(OdstupanjaZaUredske[[#Headers],[Kol]]),1),INDEX(PlaniraniUredski[],,1),0),MATCH(OdstupanjaZaUredske[[#Headers],[Kol]],StvarniUredski[#Headers],0)) -> 9,800.00 kn | K11: =INDEX(PlaniraniUredski[],MATCH(INDEX(OdstupanjaZaUredske[],ROW()-ROW(OdstupanjaZaUredske[[#Headers],[Ruj]]),1),INDEX(PlaniraniUredski[],,1),0),MATCH(OdstupanjaZaUredske[[#Headers],[Ruj]],PlaniraniUredski[#Headers],0))-INDEX(StvarniUredski[],MATCH(INDEX(OdstupanjaZaUredske[],ROW()-ROW(OdstupanjaZaUredske[[#Headers],[Ruj]]),1),INDEX(PlaniraniUredski[],,1),0),MATCH(OdstupanjaZaUredske[[#Headers],[Ruj]],StvarniUredski[#Headers],0)) -> 9,800.00 kn | L11: =INDEX(PlaniraniUredski[],MATCH(INDEX(OdstupanjaZaUredske[],ROW()-ROW(OdstupanjaZaUredske[[#Headers],[Lis]]),1),INDEX(PlaniraniUredski[],,1),0),MATCH(OdstupanjaZaUredske[[#Headers],[Lis]],PlaniraniUredski[#Headers],0))-INDEX(StvarniUredski[],MATCH(INDEX(OdstupanjaZaUredske[],ROW()-ROW(OdstupanjaZaUredske[[#Headers],[Lis]]),1),INDEX(PlaniraniUredski[],,1),0),MATCH(OdstupanjaZaUredske[[#Headers],[Lis]],StvarniUredski[#Headers],0)) -> 9,800.00 kn | M11: =INDEX(PlaniraniUredski[],MATCH(INDEX(OdstupanjaZaUredske[],ROW()-ROW(OdstupanjaZaUredske[[#Headers],[Stu]]),1),INDEX(PlaniraniUredski[],,1),0),MATCH(OdstupanjaZaUredske[[#Headers],[Stu]],PlaniraniUredski[#Headers],0))-INDEX(StvarniUredski[],MATCH(INDEX(OdstupanjaZaUredske[],ROW()-ROW(OdstupanjaZaUredske[[#Headers],[Stu]]),1),INDEX(PlaniraniUredski[],,1),0),MATCH(OdstupanjaZaUredske[[#Headers],[Stu]],StvarniUredski[#Headers],0)) -> 9,800.00 kn | N11: =INDEX(PlaniraniUredski[],MATCH(INDEX(OdstupanjaZaUredske[],ROW()-ROW(OdstupanjaZaUredske[[#Headers],[Pro]]),1),INDEX(PlaniraniUredski[],,1),0),MATCH(OdstupanjaZaUredske[[#Headers],[Pro]],PlaniraniUredski[#Headers],0))-INDEX(StvarniUredski[],MATCH(INDEX(OdstupanjaZaUredske[],ROW()-ROW(OdstupanjaZaUredske[[#Headers],[Pro]]),1),INDEX(PlaniraniUredski[],,1),0),MATCH(OdstupanjaZaUredske[[#Headers],[Pro]],StvarniUredski[#Headers],0)) -> 9,800.00 kn | O11: =SUM(OdstupanjaZaUredske[[#This Row],[Sij]:[Pro]]) -> 58,800.00 kn
B12: Plin | C12: =INDEX(PlaniraniUredski[],MATCH(INDEX(OdstupanjaZaUredske[],ROW()-ROW(OdstupanjaZaUredske[[#Headers],[Sij]]),1),INDEX(PlaniraniUredski[],,1),0),MATCH(OdstupanjaZaUredske[[#Headers],[Sij]],PlaniraniUredski[#Headers],0))-INDEX(StvarniUredski[],MATCH(INDEX(OdstupanjaZaUredske[],ROW()-ROW(OdstupanjaZaUredske[[#Headers],[Sij]]),1),INDEX(PlaniraniUredski[],,1),0),MATCH(OdstupanjaZaUredske[[#Headers],[Sij]],StvarniUredski[#Headers],0)) -> -4.00 kn | D12: =INDEX(PlaniraniUredski[],MATCH(INDEX(OdstupanjaZaUredske[],ROW()-ROW(OdstupanjaZaUredske[[#Headers],[Velj]]),1),INDEX(PlaniraniUredski[],,1),0),MATCH(OdstupanjaZaUredske[[#Headers],[Velj]],PlaniraniUredski[#Headers],0))-INDEX(StvarniUredski[],MATCH(INDEX(OdstupanjaZaUredske[],ROW()-ROW(OdstupanjaZaUredske[[#Headers],[Velj]]),1),INDEX(PlaniraniUredski[],,1),0),MATCH(OdstupanjaZaUredske[[#Headers],[Velj]],StvarniUredski[#Headers],0)) -> -30.00 kn | E12: =INDEX(PlaniraniUredski[],MATCH(INDEX(OdstupanjaZaUredske[],ROW()-ROW(OdstupanjaZaUredske[[#Headers],[Ožu]]),1),INDEX(PlaniraniUredski[],,1),0),MATCH(OdstupanjaZaUredske[[#Headers],[Ožu]],PlaniraniUredski[#Headers],0))-INDEX(StvarniUredski[],MATCH(INDEX(OdstupanjaZaUredske[],ROW()-ROW(OdstupanjaZaUredske[[#Headers],[Ožu]]),1),INDEX(PlaniraniUredski[],,1),0),MATCH(OdstupanjaZaUredske[[#Headers],[Ožu]],StvarniUredski[#Headers],0)) -> 15.00 kn | F12: =INDEX(PlaniraniUredski[],MATCH(INDEX(OdstupanjaZaUredske[],ROW()-ROW(OdstupanjaZaUredske[[#Headers],[Tra]]),1),INDEX(PlaniraniUredski[],,1),0),MATCH(OdstupanjaZaUredske[[#Headers],[Tra]],PlaniraniUredski[#Headers],0))-INDEX(StvarniUredski[],MATCH(INDEX(OdstupanjaZaUredske[],ROW()-ROW(OdstupanjaZaUredske[[#Headers],[Tra]]),1),INDEX(PlaniraniUredski[],,1),0),MATCH(OdstupanjaZaUredske[[#Headers],[Tra]],StvarniUredski[#Headers],0)) -> -130.00 kn | G12: =INDEX(PlaniraniUredski[],MATCH(INDEX(OdstupanjaZaUredske[],ROW()-ROW(OdstupanjaZaUredske[[#Headers],[Svi]]),1),INDEX(PlaniraniUredski[],,1),0),MATCH(OdstupanjaZaUredske[[#Headers],[Svi]],PlaniraniUredski[#Headers],0))-INDEX(StvarniUredski[],MATCH(INDEX(OdstupanjaZaUredske[],ROW()-ROW(OdstupanjaZaUredske[[#Headers],[Svi]]),1),INDEX(PlaniraniUredski[],,1),0),MATCH(OdstupanjaZaUredske[[#Headers],[Svi]],StvarniUredski[#Headers],0)) -> 13.00 kn | H12: =INDEX(PlaniraniUredski[],MATCH(INDEX(OdstupanjaZaUredske[],ROW()-ROW(OdstupanjaZaUredske[[#Headers],[Lip]]),1),INDEX(PlaniraniUredski[],,1),0),MATCH(OdstupanjaZaUredske[[#Headers],[Lip]],PlaniraniUredski[#Headers],0))-INDEX(StvarniUredski[],MATCH(INDEX(OdstupanjaZaUredske[],ROW()-ROW(OdstupanjaZaUredske[[#Headers],[Lip]]),1),INDEX(PlaniraniUredski[],,1),0),MATCH(OdstupanjaZaUredske[[#Headers],[Lip]],StvarniUredski[#Headers],0)) -> 12.00 kn | I12: =INDEX(PlaniraniUredski[],MATCH(INDEX(OdstupanjaZaUredske[],ROW()-ROW(OdstupanjaZaUredske[[#Headers],[Srp]]),1),INDEX(PlaniraniUredski[],,1),0),MATCH(OdstupanjaZaUredske[[#Headers],[Srp]],PlaniraniUredski[#Headers],0))-INDEX(StvarniUredski[],MATCH(INDEX(OdstupanjaZaUredske[],ROW()-ROW(OdstupanjaZaUredske[[#Headers],[Srp]]),1),INDEX(PlaniraniUredski[],,1),0),MATCH(OdstupanjaZaUredske[[#Headers],[Srp]],StvarniUredski[#Headers],0)) -> 100.00 kn | J12: =INDEX(PlaniraniUredski[],MATCH(INDEX(OdstupanjaZaUredske[],ROW()-ROW(OdstupanjaZaUredske[[#Headers],[Kol]]),1),INDEX(PlaniraniUredski[],,1),0),MATCH(OdstupanjaZaUredske[[#Headers],[Kol]],PlaniraniUredski[#Headers],0))-INDEX(StvarniUredski[],MATCH(INDEX(OdstupanjaZaUredske[],ROW()-ROW(OdstupanjaZaUredske[[#Headers],[Kol]]),1),INDEX(PlaniraniUredski[],,1),0),MATCH(OdstupanjaZaUredske[[#Headers],[Kol]],StvarniUredski[#Headers],0)) -> 100.00 kn | K12: =INDEX(PlaniraniUredski[],MATCH(INDEX(OdstupanjaZaUredske[],ROW()-ROW(OdstupanjaZaUredske[[#Headers],[Ruj]]),1),INDEX(PlaniraniUredski[],,1),0),MATCH(OdstupanjaZaUredske[[#Headers],[Ruj]],PlaniraniUredski[#Headers],0))-INDEX(StvarniUredski[],MATCH(INDEX(OdstupanjaZaUredske[],ROW()-ROW(OdstupanjaZaUredske[[#Headers],[Ruj]]),1),INDEX(PlaniraniUredski[],,1),0),MATCH(OdstupanjaZaUredske[[#Headers],[Ruj]],StvarniUredski[#Headers],0)) -> 100.00 kn | L12: =INDEX(PlaniraniUredski[],MATCH(INDEX(OdstupanjaZaUredske[],ROW()-ROW(OdstupanjaZaUredske[[#Headers],[Lis]]),1),INDEX(PlaniraniUredski[],,1),0),MATCH(OdstupanjaZaUredske[[#Headers],[Lis]],PlaniraniUredski[#Headers],0))-INDEX(StvarniUredski[],MATCH(INDEX(OdstupanjaZaUredske[],ROW()-ROW(OdstupanjaZaUredske[[#Headers],[Lis]]),1),INDEX(PlaniraniUredski[],,1),0),MATCH(OdstupanjaZaUredske[[#Headers],[Lis]],StvarniUredski[#Headers],0)) -> 100.00 kn | M12: =INDEX(PlaniraniUredski[],MATCH(INDEX(OdstupanjaZaUredske[],ROW()-ROW(OdstupanjaZaUredske[[#Headers],[Stu]]),1),INDEX(PlaniraniUredski[],,1),0),MATCH(OdstupanjaZaUredske[[#Headers],[Stu]],PlaniraniUredski[#Headers],0))-INDEX(StvarniUredski[],MATCH(INDEX(OdstupanjaZaUredske[],ROW()-ROW(OdstupanjaZaUredske[[#Headers],[Stu]]),1),INDEX(PlaniraniUredski[],,1),0),MATCH(OdstupanjaZaUredske[[#Headers],[Stu]],StvarniUredski[#Headers],0)) -> 400.00 kn | N12: =INDEX(PlaniraniUredski[],MATCH(INDEX(OdstupanjaZaUredske[],ROW()-ROW(OdstupanjaZaUredske[[#Headers],[Pro]]),1),INDEX(PlaniraniUredski[],,1),0),MATCH(OdstupanjaZaUredske[[#Headers],[Pro]],PlaniraniUredski[#Headers],0))-INDEX(StvarniUredski[],MATCH(INDEX(OdstupanjaZaUredske[],ROW()-ROW(OdstupanjaZaUredske[[#Headers],[Pro]]),1),INDEX(PlaniraniUredski[],,1),0),MATCH(OdstupanjaZaUredske[[#Headers],[Pro]],StvarniUredski[#Headers],0)) -> 400.00 kn | O12: =SUM(OdstupanjaZaUredske[[#This Row],[Sij]:[Pro]]) -> 1,076.00 kn
B13: Struja | C13: =INDEX(PlaniraniUredski[],MATCH(INDEX(OdstupanjaZaUredske[],ROW()-ROW(OdstupanjaZaUredske[[#Headers],[Sij]]),1),INDEX(PlaniraniUredski[],,1),0),MATCH(OdstupanjaZaUredske[[#Headers],[Sij]],PlaniraniUredski[#Headers],0))-INDEX(StvarniUredski[],MATCH(INDEX(OdstupanjaZaUredske[],ROW()-ROW(OdstupanjaZaUredske[[#Headers],[Sij]]),1),INDEX(PlaniraniUredski[],,1),0),MATCH(OdstupanjaZaUredske[[#Headers],[Sij]],StvarniUredski[#Headers],0)) -> 12.00 kn | D13: =INDEX(PlaniraniUredski[],MATCH(INDEX(OdstupanjaZaUredske[],ROW()-ROW(OdstupanjaZaUredske[[#Headers],[Velj]]),1),INDEX(PlaniraniUredski[],,1),0),MATCH(OdstupanjaZaUredske[[#Headers],[Velj]],PlaniraniUredski[#Headers],0))-INDEX(StvarniUredski[],MATCH(INDEX(OdstupanjaZaUredske[],ROW()-ROW(OdstupanjaZaUredske[[#Headers],[Velj]]),1),INDEX(PlaniraniUredski[],,1),0),MATCH(OdstupanjaZaUredske[[#Headers],[Velj]],StvarniUredski[#Headers],0)) -> 22.00 kn | E13: =INDEX(PlaniraniUredski[],MATCH(INDEX(OdstupanjaZaUredske[],ROW()-ROW(OdstupanjaZaUredske[[#Headers],[Ožu]]),1),INDEX(PlaniraniUredski[],,1),0),MATCH(OdstupanjaZaUredske[[#Headers],[Ožu]],PlaniraniUredski[#Headers],0))-INDEX(StvarniUredski[],MATCH(INDEX(OdstupanjaZaUredske[],ROW()-ROW(OdstupanjaZaUredske[[#Headers],[Ožu]]),1),INDEX(PlaniraniUredski[],,1),0),MATCH(OdstupanjaZaUredske[[#Headers],[Ožu]],StvarniUredski[#Headers],0)) -> 32.00 kn | F13: =INDEX(PlaniraniUredski[],MATCH(INDEX(OdstupanjaZaUredske[],ROW()-ROW(OdstupanjaZaUredske[[#Headers],[Tra]]),1),INDEX(PlaniraniUredski[],,1),0),MATCH(OdstupanjaZaUredske[[#Headers],[Tra]],PlaniraniUredski[#Headers],0))-INDEX(StvarniUredski[],MATCH(INDEX(OdstupanjaZaUredske[],ROW()-ROW(OdstupanjaZaUredske[[#Headers],[Tra]]),1),INDEX(PlaniraniUredski[],,1),0),MATCH(OdstupanjaZaUredske[[#Headers],[Tra]],StvarniUredski[#Headers],0)) -> 1.00 kn | G13: =INDEX(PlaniraniUredski[],MATCH(INDEX(OdstupanjaZaUredske[],ROW()-ROW(OdstupanjaZaUredske[[#Headers],[Svi]]),1),INDEX(PlaniraniUredski[],,1),0),MATCH(OdstupanjaZaUredske[[#Headers],[Svi]],PlaniraniUredski[#Headers],0))-INDEX(StvarniUredski[],MATCH(INDEX(OdstupanjaZaUredske[],ROW()-ROW(OdstupanjaZaUredske[[#Headers],[Svi]]),1),INDEX(PlaniraniUredski[],,1),0),MATCH(OdstupanjaZaUredske[[#Headers],[Svi]],StvarniUredski[#Headers],0)) -> -6.00 kn | H13: =INDEX(PlaniraniUredski[],MATCH(INDEX(OdstupanjaZaUredske[],ROW()-ROW(OdstupanjaZaUredske[[#Headers],[Lip]]),1),INDEX(PlaniraniUredski[],,1),0),MATCH(OdstupanjaZaUredske[[#Headers],[Lip]],PlaniraniUredski[#Headers],0))-INDEX(StvarniUredski[],MATCH(INDEX(OdstupanjaZaUredske[],ROW()-ROW(OdstupanjaZaUredske[[#Headers],[Lip]]),1),INDEX(PlaniraniUredski[],,1),0),MATCH(OdstupanjaZaUredske[[#Headers],[Lip]],StvarniUredski[#Headers],0)) -> 10.00 kn | I13: =INDEX(PlaniraniUredski[],MATCH(INDEX(OdstupanjaZaUredske[],ROW()-ROW(OdstupanjaZaUredske[[#Headers],[Srp]]),1),INDEX(PlaniraniUredski[],,1),0),MATCH(OdstupanjaZaUredske[[#Headers],[Srp]],PlaniraniUredski[#Headers],0))-INDEX(StvarniUredski[],MATCH(INDEX(OdstupanjaZaUredske[],ROW()-ROW(OdstupanjaZaUredske[[#Headers],[Srp]]),1),INDEX(PlaniraniUredski[],,1),0),MATCH(OdstupanjaZaUredske[[#Headers],[Srp]],StvarniUredski[#Headers],0)) -> 300.00 kn | J13: =INDEX(PlaniraniUredski[],MATCH(INDEX(OdstupanjaZaUredske[],ROW()-ROW(OdstupanjaZaUredske[[#Headers],[Kol]]),1),INDEX(PlaniraniUredski[],,1),0),MATCH(OdstupanjaZaUredske[[#Headers],[Kol]],PlaniraniUredski[#Headers],0))-INDEX(StvarniUredski[],MATCH(INDEX(OdstupanjaZaUredske[],ROW()-ROW(OdstupanjaZaUredske[[#Headers],[Kol]]),1),INDEX(PlaniraniUredski[],,1),0),MATCH(OdstupanjaZaUredske[[#Headers],[Kol]],StvarniUredski[#Headers],0)) -> 300.00 kn | K13: =INDEX(PlaniraniUredski[],MATCH(INDEX(OdstupanjaZaUredske[],ROW()-ROW(OdstupanjaZaUredske[[#Headers],[Ruj]]),1),INDEX(PlaniraniUredski[],,1),0),MATCH(OdstupanjaZaUredske[[#Headers],[Ruj]],PlaniraniUredski[#Headers],0))-INDEX(StvarniUredski[],MATCH(INDEX(OdstupanjaZaUredske[],ROW()-ROW(OdstupanjaZaUredske[[#Headers],[Ruj]]),1),INDEX(PlaniraniUredski[],,1),0),MATCH(OdstupanjaZaUredske[[#Headers],[Ruj]],StvarniUredski[#Headers],0)) -> 300.00 kn | L13: =INDEX(PlaniraniUredski[],MATCH(INDEX(OdstupanjaZaUredske[],ROW()-ROW(OdstupanjaZaUredske[[#Headers],[Lis]]),1),INDEX(PlaniraniUredski[],,1),0),MATCH(OdstupanjaZaUredske[[#Headers],[Lis]],PlaniraniUredski[#Headers],0))-INDEX(StvarniUredski[],MATCH(INDEX(OdstupanjaZaUredske[],ROW()-ROW(OdstupanjaZaUredske[[#Headers],[Lis]]),1),INDEX(PlaniraniUredski[],,1),0),MATCH(OdstupanjaZaUredske[[#Headers],[Lis]],StvarniUredski[#Headers],0)) -> 300.00 kn | M13: =INDEX(PlaniraniUredski[],MATCH(INDEX(OdstupanjaZaUredske[],ROW()-ROW(OdstupanjaZaUredske[[#Headers],[Stu]]),1),INDEX(PlaniraniUredski[],,1),0),MATCH(OdstupanjaZaUredske[[#Headers],[Stu]],PlaniraniUredski[#Headers],0))-INDEX(StvarniUredski[],MATCH(INDEX(OdstupanjaZaUredske[],ROW()-ROW(OdstupanjaZaUredske[[#Headers],[Stu]]),1),INDEX(PlaniraniUredski[],,1),0),MATCH(OdstupanjaZaUredske[[#Headers],[Stu]],StvarniUredski[#Headers],0)) -> 300.00 kn | N13: =INDEX(PlaniraniUredski[],MATCH(INDEX(OdstupanjaZaUredske[],ROW()-ROW(OdstupanjaZaUredske[[#Headers],[Pro]]),1),INDEX(PlaniraniUredski[],,1),0),MATCH(OdstupanjaZaUredske[[#Headers],[Pro]],PlaniraniUredski[#Headers],0))-INDEX(StvarniUredski[],MATCH(INDEX(OdstupanjaZaUredske[],ROW()-ROW(OdstupanjaZaUredske[[#Headers],[Pro]]),1),INDEX(PlaniraniUredski[],,1),0),MATCH(OdstupanjaZaUredske[[#Headers],[Pro]],StvarniUredski[#Headers],0)) -> 300.00 kn | O13: =SUM(OdstupanjaZaUredske[[#This Row],[Sij]:[Pro]]) -> 1,871.00 kn
B14: Voda | C14: =INDEX(PlaniraniUredski[],MATCH(INDEX(OdstupanjaZaUredske[],ROW()-ROW(OdstupanjaZaUredske[[#Headers],[Sij]]),1),INDEX(PlaniraniUredski[],,1),0),MATCH(OdstupanjaZaUredske[[#Headers],[Sij]],PlaniraniUredski[#Headers],0))-INDEX(StvarniUredski[],MATCH(INDEX(OdstupanjaZaUredske[],ROW()-ROW(OdstupanjaZaUredske[[#Headers],[Sij]]),1),INDEX(PlaniraniUredski[],,1),0),MATCH(OdstupanjaZaUredske[[#Headers],[Sij]],StvarniUredski[#Headers],0)) -> 5.00 kn | D14: =INDEX(PlaniraniUredski[],MATCH(INDEX(OdstupanjaZaUredske[],ROW()-ROW(OdstupanjaZaUredske[[#Headers],[Velj]]),1),INDEX(PlaniraniUredski[],,1),0),MATCH(OdstupanjaZaUredske[[#Headers],[Velj]],PlaniraniUredski[#Headers],0))-INDEX(StvarniUredski[],MATCH(INDEX(OdstupanjaZaUredske[],ROW()-ROW(OdstupanjaZaUredske[[#Headers],[Velj]]),1),INDEX(PlaniraniUredski[],,1),0),MATCH(OdstupanjaZaUredske[[#Headers],[Velj]],StvarniUredski[#Headers],0)) -> 7.00 kn | E14: =INDEX(PlaniraniUredski[],MATCH(INDEX(OdstupanjaZaUredske[],ROW()-ROW(OdstupanjaZaUredske[[#Headers],[Ožu]]),1),INDEX(PlaniraniUredski[],,1),0),MATCH(OdstupanjaZaUredske[[#Headers],[Ožu]],PlaniraniUredski[#Headers],0))-INDEX(StvarniUredski[],MATCH(INDEX(OdstupanjaZaUredske[],ROW()-ROW(OdstupanjaZaUredske[[#Headers],[Ožu]]),1),INDEX(PlaniraniUredski[],,1),0),MATCH(OdstupanjaZaUredske[[#Headers],[Ožu]],StvarniUredski[#Headers],0)) -> 6.00 kn | F14: =INDEX(PlaniraniUredski[],MATCH(INDEX(OdstupanjaZaUredske[],ROW()-ROW(OdstupanjaZaUredske[[#Headers],[Tra]]),1),INDEX(PlaniraniUredski[],,1),0),MATCH(OdstupanjaZaUredske[[#Headers],[Tra]],PlaniraniUredski[#Headers],0))-INDEX(StvarniUredski[],MATCH(INDEX(OdstupanjaZaUredske[],ROW()-ROW(OdstupanjaZaUredske[[#Headers],[Tra]]),1),INDEX(PlaniraniUredski[],,1),0),MATCH(OdstupanjaZaUredske[[#Headers],[Tra]],StvarniUredski[#Headers],0)) -> 4.00 kn | G14: =INDEX(PlaniraniUredski[],MATCH(INDEX(OdstupanjaZaUredske[],ROW()-ROW(OdstupanjaZaUredske[[#Headers],[Svi]]),1),INDEX(PlaniraniUredski[],,1),0),MATCH(OdstupanjaZaUredske[[#Headers],[Svi]],PlaniraniUredski[#Headers],0))-INDEX(StvarniUredski[],MATCH(INDEX(OdstupanjaZaUredske[],ROW()-ROW(OdstupanjaZaUredske[[#Headers],[Svi]]),1),INDEX(PlaniraniUredski[],,1),0),MATCH(OdstupanjaZaUredske[[#Headers],[Svi]],StvarniUredski[#Headers],0)) -> 6.00 kn | H14: =INDEX(PlaniraniUredski[],MATCH(INDEX(OdstupanjaZaUredske[],ROW()-ROW(OdstupanjaZaUredske[[#Headers],[Lip]]),1),INDEX(PlaniraniUredski[],,1),0),MATCH(OdstupanjaZaUredske[[#Headers],[Lip]],PlaniraniUredski[#Headers],0))-INDEX(StvarniUredski[],MATCH(INDEX(OdstupanjaZaUredske[],ROW()-ROW(OdstupanjaZaUredske[[#Headers],[Lip]]),1),INDEX(PlaniraniUredski[],,1),0),MATCH(OdstupanjaZaUredske[[#Headers],[Lip]],StvarniUredski[#Headers],0)) -> 4.00 kn | I14: =INDEX(PlaniraniUredski[],MATCH(INDEX(OdstupanjaZaUredske[],ROW()-ROW(OdstupanjaZaUredske[[#Headers],[Srp]]),1),INDEX(PlaniraniUredski[],,1),0),MATCH(OdstupanjaZaUredske[[#Headers],[Srp]],PlaniraniUredski[#Headers],0))-INDEX(StvarniUredski[],MATCH(INDEX(OdstupanjaZaUredske[],ROW()-ROW(OdstupanjaZaUredske[[#Headers],[Srp]]),1),INDEX(PlaniraniUredski[],,1),0),MATCH(OdstupanjaZaUredske[[#Headers],[Srp]],StvarniUredski[#Headers],0)) -> 40.00 kn | J14: =INDEX(PlaniraniUredski[],MATCH(INDEX(OdstupanjaZaUredske[],ROW()-ROW(OdstupanjaZaUredske[[#Headers],[Kol]]),1),INDEX(PlaniraniUredski[],,1),0),MATCH(OdstupanjaZaUredske[[#Headers],[Kol]],PlaniraniUredski[#Headers],0))-INDEX(StvarniUredski[],MATCH(INDEX(OdstupanjaZaUredske[],ROW()-ROW(OdstupanjaZaUredske[[#Headers],[Kol]]),1),INDEX(PlaniraniUredski[],,1),0),MATCH(OdstupanjaZaUredske[[#Headers],[Kol]],StvarniUredski[#Headers],0)) -> 40.00 kn | K14: =INDEX(PlaniraniUredski[],MATCH(INDEX(OdstupanjaZaUredske[],ROW()-ROW(OdstupanjaZaUredske[[#Headers],[Ruj]]),1),INDEX(PlaniraniUredski[],,1),0),MATCH(OdstupanjaZaUredske[[#Headers],[Ruj]],PlaniraniUredski[#Headers],0))-INDEX(StvarniUredski[],MATCH(INDEX(OdstupanjaZaUredske[],ROW()-ROW(OdstupanjaZaUredske[[#Headers],[Ruj]]),1),INDEX(PlaniraniUredski[],,1),0),MATCH(OdstupanjaZaUredske[[#Headers],[Ruj]],StvarniUredski[#Headers],0)) -> 40.00 kn | L14: =INDEX(PlaniraniUredski[],MATCH(INDEX(OdstupanjaZaUredske[],ROW()-ROW(OdstupanjaZaUredske[[#Headers],[Lis]]),1),INDEX(PlaniraniUredski[],,1),0),MATCH(OdstupanjaZaUredske[[#Headers],[Lis]],PlaniraniUredski[#Headers],0))-INDEX(StvarniUredski[],MATCH(INDEX(OdstupanjaZaUredske[],ROW()-ROW(OdstupanjaZaUredske[[#Headers],[Lis]]),1),INDEX(PlaniraniUredski[],,1),0),MATCH(OdstupanjaZaUredske[[#Headers],[Lis]],StvarniUredski[#Headers],0)) -> 40.00 kn | M14: =INDEX(PlaniraniUredski[],MATCH(INDEX(OdstupanjaZaUredske[],ROW()-ROW(OdstupanjaZaUredske[[#Headers],[Stu]]),1),INDEX(PlaniraniUredski[],,1),0),MATCH(OdstupanjaZaUredske[[#Headers],[Stu]],PlaniraniUredski[#Headers],0))-INDEX(StvarniUredski[],MATCH(INDEX(OdstupanjaZaUredske[],ROW()-ROW(OdstupanjaZaUredske[[#Headers],[Stu]]),1),INDEX(PlaniraniUredski[],,1),0),MATCH(OdstupanjaZaUredske[[#Headers],[Stu]],StvarniUredski[#Headers],0)) -> 40.00 kn | N14: =INDEX(PlaniraniUredski[],MATCH(INDEX(OdstupanjaZaUredske[],ROW()-ROW(OdstupanjaZaUredske[[#Headers],[Pro]]),1),INDEX(PlaniraniUredski[],,1),0),MATCH(OdstupanjaZaUredske[[#Headers],[Pro]],PlaniraniUredski[#Headers],0))-INDEX(StvarniUredski[],MATCH(INDEX(OdstupanjaZaUredske[],ROW()-ROW(OdstupanjaZaUredske[[#Headers],[Pro]]),1),INDEX(PlaniraniUredski[],,1),0),MATCH(OdstupanjaZaUredske[[#Headers],[Pro]],StvarniUredski[#Headers],0)) -> 40.00 kn | O14: =SUM(OdstupanjaZaUredske[[#This Row],[Sij]:[Pro]]) -> 272.00 kn
B15: Telefon | C15: =INDEX(PlaniraniUredski[],MATCH(INDEX(OdstupanjaZaUredske[],ROW()-ROW(OdstupanjaZaUredske[[#Headers],[Sij]]),1),INDEX(PlaniraniUredski[],,1),0),MATCH(OdstupanjaZaUredske[[#Headers],[Sij]],PlaniraniUredski[#Headers],0))-INDEX(StvarniUredski[],MATCH(INDEX(OdstupanjaZaUredske[],ROW()-ROW(OdstupanjaZaUredske[[#Headers],[Sij]]),1),INDEX(PlaniraniUredski[],,1),0),MATCH(OdstupanjaZaUredske[[#Headers],[Sij]],StvarniUredski[#Headers],0)) -> 26.00 kn | D15: =INDEX(PlaniraniUredski[],MATCH(INDEX(OdstupanjaZaUredske[],ROW()-ROW(OdstupanjaZaUredske[[#Headers],[Velj]]),1),INDEX(PlaniraniUredski[],,1),0),MATCH(OdstupanjaZaUredske[[#Headers],[Velj]],PlaniraniUredski[#Headers],0))-INDEX(StvarniUredski[],MATCH(INDEX(OdstupanjaZaUredske[],ROW()-ROW(OdstupanjaZaUredske[[#Headers],[Velj]]),1),INDEX(PlaniraniUredski[],,1),0),MATCH(OdstupanjaZaUredske[[#Headers],[Velj]],StvarniUredski[#Headers],0)) -> 15.00 kn | E15: =INDEX(PlaniraniUredski[],MATCH(INDEX(OdstupanjaZaUredske[],ROW()-ROW(OdstupanjaZaUredske[[#Headers],[Ožu]]),1),INDEX(PlaniraniUredski[],,1),0),MATCH(OdstupanjaZaUredske[[#Headers],[Ožu]],PlaniraniUredski[#Headers],0))-INDEX(StvarniUredski[],MATCH(INDEX(OdstupanjaZaUredske[],ROW()-ROW(OdstupanjaZaUredske[[#Headers],[Ožu]]),1),INDEX(PlaniraniUredski[],,1),0),MATCH(OdstupanjaZaUredske[[#Headers],[Ožu]],StvarniUredski[#Headers],0)) -> -15.00 kn | F15: =INDEX(PlaniraniUredski[],MATCH(INDEX(OdstupanjaZaUredske[],ROW()-ROW(OdstupanjaZaUredske[[#Headers],[Tra]]),1),INDEX(PlaniraniUredski[],,1),0),MATCH(OdstupanjaZaUredske[[#Headers],[Tra]],PlaniraniUredski[#Headers],0))-INDEX(StvarniUredski[],MATCH(INDEX(OdstupanjaZaUredske[],ROW()-ROW(OdstupanjaZaUredske[[#Headers],[Tra]]),1),INDEX(PlaniraniUredski[],,1),0),MATCH(OdstupanjaZaUredske[[#Headers],[Tra]],StvarniUredski[#Headers],0)) -> 5.00 kn | G15: =INDEX(PlaniraniUredski[],MATCH(INDEX(OdstupanjaZaUredske[],ROW()-ROW(OdstupanjaZaUredske[[#Headers],[Svi]]),1),INDEX(PlaniraniUredski[],,1),0),MATCH(OdstupanjaZaUredske[[#Headers],[Svi]],PlaniraniUredski[#Headers],0))-INDEX(StvarniUredski[],MATCH(INDEX(OdstupanjaZaUredske[],ROW()-ROW(OdstupanjaZaUredske[[#Headers],[Svi]]),1),INDEX(PlaniraniUredski[],,1),0),MATCH(OdstupanjaZaUredske[[#Headers],[Svi]],StvarniUredski[#Headers],0)) -> 5.00 kn | H15: =INDEX(PlaniraniUredski[],MATCH(INDEX(OdstupanjaZaUredske[],ROW()-ROW(OdstupanjaZaUredske[[#Headers],[Lip]]),1),INDEX(PlaniraniUredski[],,1),0),MATCH(OdstupanjaZaUredske[[#Headers],[Lip]],PlaniraniUredski[#Headers],0))-INDEX(StvarniUredski[],MATCH(INDEX(OdstupanjaZaUredske[],ROW()-ROW(OdstupanjaZaUredske[[#Headers],[Lip]]),1),INDEX(PlaniraniUredski[],,1),0),MATCH(OdstupanjaZaUredske[[#Headers],[Lip]],StvarniUredski[#Headers],0)) -> 30.00 kn | I15: =INDEX(PlaniraniUredski[],MATCH(INDEX(OdstupanjaZaUredske[],ROW()-ROW(OdstupanjaZaUredske[[#Headers],[Srp]]),1),INDEX(PlaniraniUredski[],,1),0),MATCH(OdstupanjaZaUredske[[#Headers],[Srp]],PlaniraniUredski[#Headers],0))-INDEX(StvarniUredski[],MATCH(INDEX(OdstupanjaZaUredske[],ROW()-ROW(OdstupanjaZaUredske[[#Headers],[Srp]]),1),INDEX(PlaniraniUredski[],,1),0),MATCH(OdstupanjaZaUredske[[#Headers],[Srp]],StvarniUredski[#Headers],0)) -> 250.00 kn | J15: =INDEX(PlaniraniUredski[],MATCH(INDEX(OdstupanjaZaUredske[],ROW()-ROW(OdstupanjaZaUredske[[#Headers],[Kol]]),1),INDEX(PlaniraniUredski[],,1),0),MATCH(OdstupanjaZaUredske[[#Headers],[Kol]],PlaniraniUredski[#Headers],0))-INDEX(StvarniUredski[],MATCH(INDEX(OdstupanjaZaUredske[],ROW()-ROW(OdstupanjaZaUredske[[#Headers],[Kol]]),1),INDEX(PlaniraniUredski[],,1),0),MATCH(OdstupanjaZaUredske[[#Headers],[Kol]],StvarniUredski[#Headers],0)) -> 250.00 kn | K15: =INDEX(PlaniraniUredski[],MATCH(INDEX(OdstupanjaZaUredske[],ROW()-ROW(OdstupanjaZaUredske[[#Headers],[Ruj]]),1),INDEX(PlaniraniUredski[],,1),0),MATCH(OdstupanjaZaUredske[[#Headers],[Ruj]],PlaniraniUredski[#Headers],0))-INDEX(StvarniUredski[],MATCH(INDEX(OdstupanjaZaUredske[],ROW()-ROW(OdstupanjaZaUredske[[#Headers],[Ruj]]),1),INDEX(PlaniraniUredski[],,1),0),MATCH(OdstupanjaZaUredske[[#Headers],[Ruj]],StvarniUredski[#Headers],0)) -> 250.00 kn | L15: =INDEX(PlaniraniUredski[],MATCH(INDEX(OdstupanjaZaUredske[],ROW()-ROW(OdstupanjaZaUredske[[#Headers],[Lis]]),1),INDEX(PlaniraniUredski[],,1),0),MATCH(OdstupanjaZaUredske[[#Headers],[Lis]],PlaniraniUredski[#Headers],0))-INDEX(StvarniUredski[],MATCH(INDEX(OdstupanjaZaUredske[],ROW()-ROW(OdstupanjaZaUredske[[#Headers],[Lis]]),1),INDEX(PlaniraniUredski[],,1),0),MATCH(OdstupanjaZaUredske[[#Headers],[Lis]],StvarniUredski[#Headers],0)) -> 250.00 kn | M15: =INDEX(PlaniraniUredski[],MATCH(INDEX(OdstupanjaZaUredske[],ROW()-ROW(OdstupanjaZaUredske[[#Headers],[Stu]]),1),INDEX(PlaniraniUredski[],,1),0),MATCH(OdstupanjaZaUredske[[#Headers],[Stu]],PlaniraniUredski[#Headers],0))-INDEX(StvarniUredski[],MATCH(INDEX(OdstupanjaZaUredske[],ROW()-ROW(OdstupanjaZaUredske[[#Headers],[Stu]]),1),INDEX(PlaniraniUredski[],,1),0),MATCH(OdstupanjaZaUredske[[#Headers],[Stu]],StvarniUredski[#Headers],0)) -> 250.00 kn | N15: =INDEX(PlaniraniUredski[],MATCH(INDEX(OdstupanjaZaUredske[],ROW()-ROW(OdstupanjaZaUredske[[#Headers],[Pro]]),1),INDEX(PlaniraniUredski[],,1),0),MATCH(OdstupanjaZaUredske[[#Headers],[Pro]],PlaniraniUredski[#Headers],0))-INDEX(StvarniUredski[],MATCH(INDEX(OdstupanjaZaUredske[],ROW()-ROW(OdstupanjaZaUredske[[#Headers],[Pro]]),1),INDEX(PlaniraniUredski[],,1),0),MATCH(OdstupanjaZaUredske[[#Headers],[Pro]],StvarniUredski[#Headers],0)) -> 250.00 kn | O15: =SUM(OdstupanjaZaUredske[[#This Row],[Sij]:[Pro]]) -> 1,566.00 kn
B16: Pristup internetu | C16: =INDEX(PlaniraniUredski[],MATCH(INDEX(OdstupanjaZaUredske[],ROW()-ROW(OdstupanjaZaUredske[[#Headers],[Sij]]),1),INDEX(PlaniraniUredski[],,1),0),MATCH(OdstupanjaZaUredske[[#Headers],[Sij]],PlaniraniUredski[#Headers],0))-INDEX(StvarniUredski[],MATCH(INDEX(OdstupanjaZaUredske[],ROW()-ROW(OdstupanjaZaUredske[[#Headers],[Sij]]),1),INDEX(PlaniraniUredski[],,1),0),MATCH(OdstupanjaZaUredske[[#Headers],[Sij]],StvarniUredski[#Headers],0)) -> 0.00 kn | D16: =INDEX(PlaniraniUredski[],MATCH(INDEX(OdstupanjaZaUredske[],ROW()-ROW(OdstupanjaZaUredske[[#Headers],[Velj]]),1),INDEX(PlaniraniUredski[],,1),0),MATCH(OdstupanjaZaUredske[[#Headers],[Velj]],PlaniraniUredski[#Headers],0))-INDEX(StvarniUredski[],MATCH(INDEX(OdstupanjaZaUredske[],ROW()-ROW(OdstupanjaZaUredske[[#Headers],[Velj]]),1),INDEX(PlaniraniUredski[],,1),0),MATCH(OdstupanjaZaUredske[[#Headers],[Velj]],StvarniUredski[#Headers],0)) -> 0.00 kn | E16: =INDEX(PlaniraniUredski[],MATCH(INDEX(OdstupanjaZaUredske[],ROW()-ROW(OdstupanjaZaUredske[[#Headers],[Ožu]]),1),INDEX(PlaniraniUredski[],,1),0),MATCH(OdstupanjaZaUredske[[#Headers],[Ožu]],PlaniraniUredski[#Headers],0))-INDEX(StvarniUredski[],MATCH(INDEX(OdstupanjaZaUredske[],ROW()-ROW(OdstupanjaZaUredske[[#Headers],[Ožu]]),1),INDEX(PlaniraniUredski[],,1),0),MATCH(OdstupanjaZaUredske[[#Headers],[Ožu]],StvarniUredski[#Headers],0)) -> 0.00 kn | F16: =INDEX(PlaniraniUredski[],MATCH(INDEX(OdstupanjaZaUredske[],ROW()-ROW(OdstupanjaZaUredske[[#Headers],[Tra]]),1),INDEX(PlaniraniUredski[],,1),0),MATCH(OdstupanjaZaUredske[[#Headers],[Tra]],PlaniraniUredski[#Headers],0))-INDEX(StvarniUredski[],MATCH(INDEX(OdstupanjaZaUredske[],ROW()-ROW(OdstupanjaZaUredske[[#Headers],[Tra]]),1),INDEX(PlaniraniUredski[],,1),0),MATCH(OdstupanjaZaUredske[[#Headers],[Tra]],StvarniUredski[#Headers],0)) -> 0.00 kn | G16: =INDEX(PlaniraniUredski[],MATCH(INDEX(OdstupanjaZaUredske[],ROW()-ROW(OdstupanjaZaUredske[[#Headers],[Svi]]),1),INDEX(PlaniraniUredski[],,1),0),MATCH(OdstupanjaZaUredske[[#Headers],[Svi]],PlaniraniUredski[#Headers],0))-INDEX(StvarniUredski[],MATCH(INDEX(OdstupanjaZaUredske[],ROW()-ROW(OdstupanjaZaUredske[[#Headers],[Svi]]),1),INDEX(PlaniraniUredski[],,1),0),MATCH(OdstupanjaZaUredske[[#Headers],[Svi]],StvarniUredski[#Headers],0)) -> 0.00 kn | H16: =INDEX(PlaniraniUredski[],MATCH(INDEX(OdstupanjaZaUredske[],ROW()-ROW(OdstupanjaZaUredske[[#Headers],[Lip]]),1),INDEX(PlaniraniUredski[],,1),0),MATCH(OdstupanjaZaUredske[[#Headers],[Lip]],PlaniraniUredski[#Headers],0))-INDEX(StvarniUredski[],MATCH(INDEX(OdstupanjaZaUredske[],ROW()-ROW(OdstupanjaZaUredske[[#Headers],[Lip]]),1),INDEX(PlaniraniUredski[],,1),0),MATCH(OdstupanjaZaUredske[[#Headers],[Lip]],StvarniUredski[#Headers],0)) -> 0.00 kn | I16: =INDEX(PlaniraniUredski[],MATCH(INDEX(OdstupanjaZaUredske[],ROW()-ROW(OdstupanjaZaUredske[[#Headers],[Srp]]),1),INDEX(PlaniraniUredski[],,1),0),MATCH(OdstupanjaZaUredske[[#Headers],[Srp]],PlaniraniUredski[#Headers],0))-INDEX(StvarniUredski[],MATCH(INDEX(OdstupanjaZaUredske[],ROW()-ROW(OdstupanjaZaUredske[[#Headers],[Srp]]),1),INDEX(PlaniraniUredski[],,1),0),MATCH(OdstupanjaZaUredske[[#Headers],[Srp]],StvarniUredski[#Headers],0)) -> 180.00 kn | J16: =INDEX(PlaniraniUredski[],MATCH(INDEX(OdstupanjaZaUredske[],ROW()-ROW(OdstupanjaZaUredske[[#Headers],[Kol]]),1),INDEX(PlaniraniUredski[],,1),0),MATCH(OdstupanjaZaUredske[[#Headers],[Kol]],PlaniraniUredski[#Headers],0))-INDEX(StvarniUredski[],MATCH(INDEX(OdstupanjaZaUredske[],ROW()-ROW(OdstupanjaZaUredske[[#Headers],[Kol]]),1),INDEX(PlaniraniUredski[],,1),0),MATCH(OdstupanjaZaUredske[[#Headers],[Kol]],StvarniUredski[#Headers],0)) -> 180.00 kn | K16: =INDEX(PlaniraniUredski[],MATCH(INDEX(OdstupanjaZaUredske[],ROW()-ROW(OdstupanjaZaUredske[[#Headers],[Ruj]]),1),INDEX(PlaniraniUredski[],,1),0),MATCH(OdstupanjaZaUredske[[#Headers],[Ruj]],PlaniraniUredski[#Headers],0))-INDEX(StvarniUredski[],MATCH(INDEX(OdstupanjaZaUredske[],ROW()-ROW(OdstupanjaZaUredske[[#Headers],[Ruj]]),1),INDEX(PlaniraniUredski[],,1),0),MATCH(OdstupanjaZaUredske[[#Headers],[Ruj]],StvarniUredski[#Headers],0)) -> 180.00 kn | L16: =INDEX(PlaniraniUredski[],MATCH(INDEX(OdstupanjaZaUredske[],ROW()-ROW(OdstupanjaZaUredske[[#Headers],[Lis]]),1),INDEX(PlaniraniUredski[],,1),0),MATCH(OdstupanjaZaUredske[[#Headers],[Lis]],PlaniraniUredski[#Headers],0))-INDEX(StvarniUredski[],MATCH(INDEX(OdstupanjaZaUredske[],ROW()-ROW(OdstupanjaZaUredske[[#Headers],[Lis]]),1),INDEX(PlaniraniUredski[],,1),0),MATCH(OdstupanjaZaUredske[[#Headers],[Lis]],StvarniUredski[#Headers],0)) -> 180.00 kn | M16: =INDEX(PlaniraniUredski[],MATCH(INDEX(OdstupanjaZaUredske[],ROW()-ROW(OdstupanjaZaUredske[[#Headers],[Stu]]),1),INDEX(PlaniraniUredski[],,1),0),MATCH(OdstupanjaZaUredske[[#Headers],[Stu]],PlaniraniUredski[#Headers],0))-INDEX(StvarniUredski[],MATCH(INDEX(OdstupanjaZaUredske[],ROW()-ROW(OdstupanjaZaUredske[[#Headers],[Stu]]),1),INDEX(PlaniraniUredski[],,1),0),MATCH(OdstupanjaZaUredske[[#Headers],[Stu]],StvarniUredski[#Headers],0)) -> 180.00 kn | N16: =INDEX(PlaniraniUredski[],MATCH(INDEX(OdstupanjaZaUredske[],ROW()-ROW(OdstupanjaZaUredske[[#Headers],[Pro]]),1),INDEX(PlaniraniUredski[],,1),0),MATCH(OdstupanjaZaUredske[[#Headers],[Pro]],PlaniraniUredski[#Headers],0))-INDEX(StvarniUredski[],MATCH(INDEX(OdstupanjaZaUredske[],ROW()-ROW(OdstupanjaZaUredske[[#Headers],[Pro]]),1),INDEX(PlaniraniUredski[],,1),0),MATCH(OdstupanjaZaUredske[[#Headers],[Pro]],StvarniUredski[#Headers],0)) -> 180.00 kn | O16: =SUM(OdstupanjaZaUredske[[#This Row],[Sij]:[Pro]]) -> 1,080.00 kn
B17: Uredski pribor | C17: =INDEX(PlaniraniUredski[],MATCH(INDEX(OdstupanjaZaUredske[],ROW()-ROW(OdstupanjaZaUredske[[#Headers],[Sij]]),1),INDEX(PlaniraniUredski[],,1),0),MATCH(OdstupanjaZaUredske[[#Headers],[Sij]],PlaniraniUredski[#Headers],0))-INDEX(StvarniUredski[],MATCH(INDEX(OdstupanjaZaUredske[],ROW()-ROW(OdstupanjaZaUredske[[#Headers],[Sij]]),1),INDEX(PlaniraniUredski[],,1),0),MATCH(OdstupanjaZaUredske[[#Headers],[Sij]],StvarniUredski[#Headers],0)) -> -56.00 kn | D17: =INDEX(PlaniraniUredski[],MATCH(INDEX(OdstupanjaZaUredske[],ROW()-ROW(OdstupanjaZaUredske[[#Headers],[Velj]]),1),INDEX(PlaniraniUredski[],,1),0),MATCH(OdstupanjaZaUredske[[#Headers],[Velj]],PlaniraniUredski[#Headers],0))-INDEX(StvarniUredski[],MATCH(INDEX(OdstupanjaZaUredske[],ROW()-ROW(OdstupanjaZaUredske[[#Headers],[Velj]]),1),INDEX(PlaniraniUredski[],,1),0),MATCH(OdstupanjaZaUredske[[#Headers],[Velj]],StvarniUredski[#Headers],0)) -> 58.00 kn | E17: =INDEX(PlaniraniUredski[],MATCH(INDEX(OdstupanjaZaUredske[],ROW()-ROW(OdstupanjaZaUredske[[#Headers],[Ožu]]),1),INDEX(PlaniraniUredski[],,1),0),MATCH(OdstupanjaZaUredske[[#Headers],[Ožu]],PlaniraniUredski[#Headers],0))-INDEX(StvarniUredski[],MATCH(INDEX(OdstupanjaZaUredske[],ROW()-ROW(OdstupanjaZaUredske[[#Headers],[Ožu]]),1),INDEX(PlaniraniUredski[],,1),0),MATCH(OdstupanjaZaUredske[[#Headers],[Ožu]],StvarniUredski[#Headers],0)) -> 40.00 kn | F17: =INDEX(PlaniraniUredski[],MATCH(INDEX(OdstupanjaZaUredske[],ROW()-ROW(OdstupanjaZaUredske[[#Headers],[Tra]]),1),INDEX(PlaniraniUredski[],,1),0),MATCH(OdstupanjaZaUredske[[#Headers],[Tra]],PlaniraniUredski[#Headers],0))-INDEX(StvarniUredski[],MATCH(INDEX(OdstupanjaZaUredske[],ROW()-ROW(OdstupanjaZaUredske[[#Headers],[Tra]]),1),INDEX(PlaniraniUredski[],,1),0),MATCH(OdstupanjaZaUredske[[#Headers],[Tra]],StvarniUredski[#Headers],0)) -> -21.00 kn | G17: =INDEX(PlaniraniUredski[],MATCH(INDEX(OdstupanjaZaUredske[],ROW()-ROW(OdstupanjaZaUredske[[#Headers],[Svi]]),1),INDEX(PlaniraniUredski[],,1),0),MATCH(OdstupanjaZaUredske[[#Headers],[Svi]],PlaniraniUredski[#Headers],0))-INDEX(StvarniUredski[],MATCH(INDEX(OdstupanjaZaUredske[],ROW()-ROW(OdstupanjaZaUredske[[#Headers],[Svi]]),1),INDEX(PlaniraniUredski[],,1),0),MATCH(OdstupanjaZaUredske[[#Headers],[Svi]],StvarniUredski[#Headers],0)) -> -56.00 kn | H17: =INDEX(PlaniraniUredski[],MATCH(INDEX(OdstupanjaZaUredske[],ROW()-ROW(OdstupanjaZaUredske[[#Headers],[Lip]]),1),INDEX(PlaniraniUredski[],,1),0),MATCH(OdstupanjaZaUredske[[#Headers],[Lip]],PlaniraniUredski[#Headers],0))-INDEX(StvarniUredski[],MATCH(INDEX(OdstupanjaZaUredske[],ROW()-ROW(OdstupanjaZaUredske[[#Headers],[Lip]]),1),INDEX(PlaniraniUredski[],,1),0),MATCH(OdstupanjaZaUredske[[#Headers],[Lip]],StvarniUredski[#Headers],0)) -> -40.00 kn | I17: =INDEX(PlaniraniUredski[],MATCH(INDEX(OdstupanjaZaUredske[],ROW()-ROW(OdstupanjaZaUredske[[#Headers],[Srp]]),1),INDEX(PlaniraniUredski[],,1),0),MATCH(OdstupanjaZaUredske[[#Headers],[Srp]],PlaniraniUredski[#Headers],0))-INDEX(StvarniUredski[],MATCH(INDEX(OdstupanjaZaUredske[],ROW()-ROW(OdstupanjaZaUredske[[#Headers],[Srp]]),1),INDEX(PlaniraniUredski[],,1),0),MATCH(OdstupanjaZaUredske[[#Headers],[Srp]],StvarniUredski[#Headers],0)) -> 200.00 kn | J17: =INDEX(PlaniraniUredski[],MATCH(INDEX(OdstupanjaZaUredske[],ROW()-ROW(OdstupanjaZaUredske[[#Headers],[Kol]]),1),INDEX(PlaniraniUredski[],,1),0),MATCH(OdstupanjaZaUredske[[#Headers],[Kol]],PlaniraniUredski[#Headers],0))-INDEX(StvarniUredski[],MATCH(INDEX(OdstupanjaZaUredske[],ROW()-ROW(OdstupanjaZaUredske[[#Headers],[Kol]]),1),INDEX(PlaniraniUredski[],,1),0),MATCH(OdstupanjaZaUredske[[#Headers],[Kol]],StvarniUredski[#Headers],0)) -> 200.00 kn | K17: =INDEX(PlaniraniUredski[],MATCH(INDEX(OdstupanjaZaUredske[],ROW()-ROW(OdstupanjaZaUredske[[#Headers],[Ruj]]),1),INDEX(PlaniraniUredski[],,1),0),MATCH(OdstupanjaZaUredske[[#Headers],[Ruj]],PlaniraniUredski[#Headers],0))-INDEX(StvarniUredski[],MATCH(INDEX(OdstupanjaZaUredske[],ROW()-ROW(OdstupanjaZaUredske[[#Headers],[Ruj]]),1),INDEX(PlaniraniUredski[],,1),0),MATCH(OdstupanjaZaUredske[[#Headers],[Ruj]],StvarniUredski[#Headers],0)) -> 200.00 kn | L17: =INDEX(PlaniraniUredski[],MATCH(INDEX(OdstupanjaZaUredske[],ROW()-ROW(OdstupanjaZaUredske[[#Headers],[Lis]]),1),INDEX(PlaniraniUredski[],,1),0),MATCH(OdstupanjaZaUredske[[#Headers],[Lis]],PlaniraniUredski[#Headers],0))-INDEX(StvarniUredski[],MATCH(INDEX(OdstupanjaZaUredske[],ROW()-ROW(OdstupanjaZaUredske[[#Headers],[Lis]]),1),INDEX(PlaniraniUredski[],,1),0),MATCH(OdstupanjaZaUredske[[#Headers],[Lis]],StvarniUredski[#Headers],0)) -> 200.00 kn | M17: =INDEX(PlaniraniUredski[],MATCH(INDEX(OdstupanjaZaUredske[],ROW()-ROW(OdstupanjaZaUredske[[#Headers],[Stu]]),1),INDEX(PlaniraniUredski[],,1),0),MATCH(OdstupanjaZaUredske[[#Headers],[Stu]],PlaniraniUredski[#Headers],0))-INDEX(StvarniUredski[],MATCH(INDEX(OdstupanjaZaUredske[],ROW()-ROW(OdstupanjaZaUredske[[#Headers],[Stu]]),1),INDEX(PlaniraniUredski[],,1),0),MATCH(OdstupanjaZaUredske[[#Headers],[Stu]],StvarniUredski[#Headers],0)) -> 200.00 kn | N17: =INDEX(PlaniraniUredski[],MATCH(INDEX(OdstupanjaZaUredske[],ROW()-ROW(OdstupanjaZaUredske[[#Headers],[Pro]]),1),INDEX(PlaniraniUredski[],,1),0),MATCH(OdstupanjaZaUredske[[#Headers],[Pro]],PlaniraniUredski[#Headers],0))-INDEX(StvarniUredski[],MATCH(INDEX(OdstupanjaZaUredske[],ROW()-ROW(OdstupanjaZaUredske[[#Headers],[Pro]]),1),INDEX(PlaniraniUredski[],,1),0),MATCH(OdstupanjaZaUredske[[#Headers],[Pro]],StvarniUredski[#Headers],0)) -> 200.00 kn | O17: =SUM(OdstupanjaZaUredske[[#This Row],[Sij]:[Pro]]) -> 1,125.00 kn
B18: Sigurnost | C18: =INDEX(PlaniraniUredski[],MATCH(INDEX(OdstupanjaZaUredske[],ROW()-ROW(OdstupanjaZaUredske[[#Headers],[Sij]]),1),INDEX(PlaniraniUredski[],,1),0),MATCH(OdstupanjaZaUredske[[#Headers],[Sij]],PlaniraniUredski[#Headers],0))-INDEX(StvarniUredski[],MATCH(INDEX(OdstupanjaZaUredske[],ROW()-ROW(OdstupanjaZaUredske[[#Headers],[Sij]]),1),INDEX(PlaniraniUredski[],,1),0),MATCH(OdstupanjaZaUredske[[#Headers],[Sij]],StvarniUredski[#Headers],0)) -> 0.00 kn | D18: =INDEX(PlaniraniUredski[],MATCH(INDEX(OdstupanjaZaUredske[],ROW()-ROW(OdstupanjaZaUredske[[#Headers],[Velj]]),1),INDEX(PlaniraniUredski[],,1),0),MATCH(OdstupanjaZaUredske[[#Headers],[Velj]],PlaniraniUredski[#Headers],0))-INDEX(StvarniUredski[],MATCH(INDEX(OdstupanjaZaUredske[],ROW()-ROW(OdstupanjaZaUredske[[#Headers],[Velj]]),1),INDEX(PlaniraniUredski[],,1),0),MATCH(OdstupanjaZaUredske[[#Headers],[Velj]],StvarniUredski[#Headers],0)) -> 0.00 kn | E18: =INDEX(PlaniraniUredski[],MATCH(INDEX(OdstupanjaZaUredske[],ROW()-ROW(OdstupanjaZaUredske[[#Headers],[Ožu]]),1),INDEX(PlaniraniUredski[],,1),0),MATCH(OdstupanjaZaUredske[[#Headers],[Ožu]],PlaniraniUredski[#Headers],0))-INDEX(StvarniUredski[],MATCH(INDEX(OdstupanjaZaUredske[],ROW()-ROW(OdstupanjaZaUredske[[#Headers],[Ožu]]),1),INDEX(PlaniraniUredski[],,1),0),MATCH(OdstupanjaZaUredske[[#Headers],[Ožu]],StvarniUredski[#Headers],0)) -> 0.00 kn | F18: =INDEX(PlaniraniUredski[],MATCH(INDEX(OdstupanjaZaUredske[],ROW()-ROW(OdstupanjaZaUredske[[#Headers],[Tra]]),1),INDEX(PlaniraniUredski[],,1),0),MATCH(OdstupanjaZaUredske[[#Headers],[Tra]],PlaniraniUredski[#Headers],0))-INDEX(StvarniUredski[],MATCH(INDEX(OdstupanjaZaUredske[],ROW()-ROW(OdstupanjaZaUredske[[#Headers],[Tra]]),1),INDEX(PlaniraniUredski[],,1),0),MATCH(OdstupanjaZaUredske[[#Headers],[Tra]],StvarniUredski[#Headers],0)) -> 0.00 kn | G18: =INDEX(PlaniraniUredski[],MATCH(INDEX(OdstupanjaZaUredske[],ROW()-ROW(OdstupanjaZaUredske[[#Headers],[Svi]]),1),INDEX(PlaniraniUredski[],,1),0),MATCH(OdstupanjaZaUredske[[#Headers],[Svi]],PlaniraniUredski[#Headers],0))-INDEX(StvarniUredski[],MATCH(INDEX(OdstupanjaZaUredske[],ROW()-ROW(OdstupanjaZaUredske[[#Headers],[Svi]]),1),INDEX(PlaniraniUredski[],,1),0),MATCH(OdstupanjaZaUredske[[#Headers],[Svi]],StvarniUredski[#Headers],0)) -> 0.00 kn | H18: =INDEX(PlaniraniUredski[],MATCH(INDEX(OdstupanjaZaUredske[],ROW()-ROW(OdstupanjaZaUredske[[#Headers],[Lip]]),1),INDEX(PlaniraniUredski[],,1),0),MATCH(OdstupanjaZaUredske[[#Headers],[Lip]],PlaniraniUredski[#Headers],0))-INDEX(StvarniUredski[],MATCH(INDEX(OdstupanjaZaUredske[],ROW()-ROW(OdstupanjaZaUredske[[#Headers],[Lip]]),1),INDEX(PlaniraniUredski[],,1),0),MATCH(OdstupanjaZaUredske[[#Headers],[Lip]],StvarniUredski[#Headers],0)) -> 0.00 kn | I18: =INDEX(PlaniraniUredski[],MATCH(INDEX(OdstupanjaZaUredske[],ROW()-ROW(OdstupanjaZaUredske[[#Headers],[Srp]]),1),INDEX(PlaniraniUredski[],,1),0),MATCH(OdstupanjaZaUredske[[#Headers],[Srp]],PlaniraniUredski[#Headers],0))-INDEX(StvarniUredski[],MATCH(INDEX(OdstupanjaZaUredske[],ROW()-ROW(OdstupanjaZaUredske[[#Headers],[Srp]]),1),INDEX(PlaniraniUredski[],,1),0),MATCH(OdstupanjaZaUredske[[#Headers],[Srp]],StvarniUredski[#Headers],0)) -> 600.00 kn | J18: =INDEX(PlaniraniUredski[],MATCH(INDEX(OdstupanjaZaUredske[],ROW()-ROW(OdstupanjaZaUredske[[#Headers],[Kol]]),1),INDEX(PlaniraniUredski[],,1),0),MATCH(OdstupanjaZaUredske[[#Headers],[Kol]],PlaniraniUredski[#Headers],0))-INDEX(StvarniUredski[],MATCH(INDEX(OdstupanjaZaUredske[],ROW()-ROW(OdstupanjaZaUredske[[#Headers],[Kol]]),1),INDEX(PlaniraniUredski[],,1),0),MATCH(OdstupanjaZaUredske[[#Headers],[Kol]],StvarniUredski[#Headers],0)) -> 600.00 kn | K18: =INDEX(PlaniraniUredski[],MATCH(INDEX(OdstupanjaZaUredske[],ROW()-ROW(OdstupanjaZaUredske[[#Headers],[Ruj]]),1),INDEX(PlaniraniUredski[],,1),0),MATCH(OdstupanjaZaUredske[[#Headers],[Ruj]],PlaniraniUredski[#Headers],0))-INDEX(StvarniUredski[],MATCH(INDEX(OdstupanjaZaUredske[],ROW()-ROW(OdstupanjaZaUredske[[#Headers],[Ruj]]),1),INDEX(PlaniraniUredski[],,1),0),MATCH(OdstupanjaZaUredske[[#Headers],[Ruj]],StvarniUredski[#Headers],0)) -> 600.00 kn | L18: =INDEX(PlaniraniUredski[],MATCH(INDEX(OdstupanjaZaUredske[],ROW()-ROW(OdstupanjaZaUredske[[#Headers],[Lis]]),1),INDEX(PlaniraniUredski[],,1),0),MATCH(OdstupanjaZaUredske[[#Headers],[Lis]],PlaniraniUredski[#Headers],0))-INDEX(StvarniUredski[],MATCH(INDEX(OdstupanjaZaUredske[],ROW()-ROW(OdstupanjaZaUredske[[#Headers],[Lis]]),1),INDEX(PlaniraniUredski[],,1),0),MATCH(OdstupanjaZaUredske[[#Headers],[Lis]],StvarniUredski[#Headers],0)) -> 600.00 kn | M18: =INDEX(PlaniraniUredski[],MATCH(INDEX(OdstupanjaZaUredske[],ROW()-ROW(OdstupanjaZaUredske[[#Headers],[Stu]]),1),INDEX(PlaniraniUredski[],,1),0),MATCH(OdstupanjaZaUredske[[#Headers],[Stu]],PlaniraniUredski[#Headers],0))-INDEX(StvarniUredski[],MATCH(INDEX(OdstupanjaZaUredske[],ROW()-ROW(OdstupanjaZaUredske[[#Headers],[Stu]]),1),INDEX(PlaniraniUredski[],,1),0),MATCH(OdstupanjaZaUredske[[#Headers],[Stu]],StvarniUredski[#Headers],0)) -> 600.00 kn | N18: =INDEX(PlaniraniUredski[],MATCH(INDEX(OdstupanjaZaUredske[],ROW()-ROW(OdstupanjaZaUredske[[#Headers],[Pro]]),1),INDEX(PlaniraniUredski[],,1),0),MATCH(OdstupanjaZaUredske[[#Headers],[Pro]],PlaniraniUredski[#Headers],0))-INDEX(StvarniUredski[],MATCH(INDEX(OdstupanjaZaUredske[],ROW()-ROW(OdstupanjaZaUredske[[#Headers],[Pro]]),1),INDEX(PlaniraniUredski[],,1),0),MATCH(OdstupanjaZaUredske[[#Headers],[Pro]],StvarniUredski[#Headers],0)) -> 600.00 kn | O18: =SUM(OdstupanjaZaUredske[[#This Row],[Sij]:[Pro]]) -> 3,600.00 kn
B19: Podzbroj | C19: =SUBTOTAL(109,OdstupanjaZaUredske[Sij]) -> -17.00 kn | D19: =SUBTOTAL(109,OdstupanjaZaUredske[Velj]) -> 72.00 kn | E19: =SUBTOTAL(109,OdstupanjaZaUredske[Ožu]) -> 78.00 kn | F19: =SUBTOTAL(109,OdstupanjaZaUredske[Tra]) -> -141.00 kn | G19: =SUBTOTAL(109,OdstupanjaZaUredske[Svi]) -> -38.00 kn | H19: =SUBTOTAL(109,OdstupanjaZaUredske[Lip]) -> 16.00 kn | I19: =SUBTOTAL(109,OdstupanjaZaUredske[Srp]) -> 11,470.00 kn | J19: =SUBTOTAL(109,OdstupanjaZaUredske[Kol]) -> 11,470.00 kn | K19: =SUBTOTAL(109,OdstupanjaZaUredske[Ruj]) -> 11,470.00 kn | L19: =SUBTOTAL(109,OdstupanjaZaUredske[Lis]) -> 11,470.00 kn | M19: =SUBTOTAL(109,OdstupanjaZaUredske[Stu]) -> 11,770.00 kn | N19: =SUBTOTAL(109,OdstupanjaZaUredske[Pro]) -> 11,770.00 kn | O19: =SUBTOTAL(109,OdstupanjaZaUredske[GODINA]) -> 69,390.00 kn
B21: Troškovi marketinga | C21: Sij | D21: Velj | E21: Ožu | F21: Tra | G21: Svi | H21: Lip | I21: Srp | J21: Kol | K21: Ruj | L21: Lis | M21: Stu | N21: Pro | O21: GODINA
B22: Hostiranje web-mjesta | C22: =INDEX(PlaniraniMarketinški[],MATCH(INDEX(OdstupanjaZaMarketing[],ROW()-ROW(OdstupanjaZaMarketing[[#Headers],[Sij]]),1),INDEX(PlaniraniMarketinški[],,1),0),MATCH(OdstupanjaZaMarketing[[#Headers],[Sij]],PlaniraniMarketinški[#Headers],0))-INDEX(StvarniMarketinški[],MATCH(INDEX(OdstupanjaZaMarketing[],ROW()-ROW(OdstupanjaZaMarketing[[#Headers],[Sij]]),1),INDEX(PlaniraniMarketinški[],,1),0),MATCH(OdstupanjaZaMarketing[[#Headers],[Sij]],StvarniMarketinški[#Headers],0)) -> 0.00 kn | D22: =INDEX(PlaniraniMarketinški[],MATCH(INDEX(OdstupanjaZaMarketing[],ROW()-ROW(OdstupanjaZaMarketing[[#Headers],[Velj]]),1),INDEX(PlaniraniMarketinški[],,1),0),MATCH(OdstupanjaZaMarketing[[#Headers],[Velj]],PlaniraniMarketinški[#Headers],0))-INDEX(StvarniMarketinški[],MATCH(INDEX(OdstupanjaZaMarketing[],ROW()-ROW(OdstupanjaZaMarketing[[#Headers],[Velj]]),1),INDEX(PlaniraniMarketinški[],,1),0),MATCH(OdstupanjaZaMarketing[[#Headers],[Velj]],StvarniMarketinški[#Headers],0)) -> 0.00 kn | E22: =INDEX(PlaniraniMarketinški[],MATCH(INDEX(OdstupanjaZaMarketing[],ROW()-ROW(OdstupanjaZaMarketing[[#Headers],[Ožu]]),1),INDEX(PlaniraniMarketinški[],,1),0),MATCH(OdstupanjaZaMarketing[[#Headers],[Ožu]],PlaniraniMarketinški[#Headers],0))-INDEX(StvarniMarketinški[],MATCH(INDEX(OdstupanjaZaMarketing[],ROW()-ROW(OdstupanjaZaMarketing[[#Headers],[Ožu]]),1),INDEX(PlaniraniMarketinški[],,1),0),MATCH(OdstupanjaZaMarketing[[#Headers],[Ožu]],StvarniMarketinški[#Headers],0)) -> 0.00 kn | F22: =INDEX(PlaniraniMarketinški[],MATCH(INDEX(OdstupanjaZaMarketing[],ROW()-ROW(OdstupanjaZaMarketing[[#Headers],[Tra]]),1),INDEX(PlaniraniMarketinški[],,1),0),MATCH(OdstupanjaZaMarketing[[#Headers],[Tra]],PlaniraniMarketinški[#Headers],0))-INDEX(StvarniMarketinški[],MATCH(INDEX(OdstupanjaZaMarketing[],ROW()-ROW(OdstupanjaZaMarketing[[#Headers],[Tra]]),1),INDEX(PlaniraniMarketinški[],,1),0),MATCH(OdstupanjaZaMarketing[[#Headers],[Tra]],StvarniMarketinški[#Headers],0)) -> 0.00 kn | G22: =INDEX(PlaniraniMarketinški[],MATCH(INDEX(OdstupanjaZaMarketing[],ROW()-ROW(OdstupanjaZaMarketing[[#Headers],[Svi]]),1),INDEX(PlaniraniMarketinški[],,1),0),MATCH(OdstupanjaZaMarketing[[#Headers],[Svi]],PlaniraniMarketinški[#Headers],0))-INDEX(StvarniMarketinški[],MATCH(INDEX(OdstupanjaZaMarketing[],ROW()-ROW(OdstupanjaZaMarketing[[#Headers],[Svi]]),1),INDEX(PlaniraniMarketinški[],,1),0),MATCH(OdstupanjaZaMarketing[[#Headers],[Svi]],StvarniMarketinški[#Headers],0)) -> 0.00 kn | H22: =INDEX(PlaniraniMarketinški[],MATCH(INDEX(OdstupanjaZaMarketing[],ROW()-ROW(OdstupanjaZaMarketing[[#Headers],[Lip]]),1),INDEX(PlaniraniMarketinški[],,1),0),MATCH(OdstupanjaZaMarketing[[#Headers],[Lip]],PlaniraniMarketinški[#Headers],0))-INDEX(StvarniMarketinški[],MATCH(INDEX(OdstupanjaZaMarketing[],ROW()-ROW(OdstupanjaZaMarketing[[#Headers],[Lip]]),1),INDEX(PlaniraniMarketinški[],,1),0),MATCH(OdstupanjaZaMarketing[[#Headers],[Lip]],StvarniMarketinški[#Headers],0)) -> 0.00 kn | I22: =INDEX(PlaniraniMarketinški[],MATCH(INDEX(OdstupanjaZaMarketing[],ROW()-ROW(OdstupanjaZaMarketing[[#Headers],[Srp]]),1),INDEX(PlaniraniMarketinški[],,1),0),MATCH(OdstupanjaZaMarketing[[#Headers],[Srp]],PlaniraniMarketinški[#Headers],0))-INDEX(StvarniMarketinški[],MATCH(INDEX(OdstupanjaZaMarketing[],ROW()-ROW(OdstupanjaZaMarketing[[#Headers],[Srp]]),1),INDEX(PlaniraniMarketinški[],,1),0),MATCH(OdstupanjaZaMarketing[[#Headers],[Srp]],StvarniMarketinški[#Headers],0)) -> 500.00 kn | J22: =INDEX(PlaniraniMarketinški[],MATCH(INDEX(OdstupanjaZaMarketing[],ROW()-ROW(OdstupanjaZaMarketing[[#Headers],[Kol]]),1),INDEX(PlaniraniMarketinški[],,1),0),MATCH(OdstupanjaZaMarketing[[#Headers],[Kol]],PlaniraniMarketinški[#Headers],0))-INDEX(StvarniMarketinški[],MATCH(INDEX(OdstupanjaZaMarketing[],ROW()-ROW(OdstupanjaZaMarketing[[#Headers],[Kol]]),1),INDEX(PlaniraniMarketinški[],,1),0),MATCH(OdstupanjaZaMarketing[[#Headers],[Kol]],StvarniMarketinški[#Headers],0)) -> 500.00 kn | K22: =INDEX(PlaniraniMarketinški[],MATCH(INDEX(OdstupanjaZaMarketing[],ROW()-ROW(OdstupanjaZaMarketing[[#Headers],[Ruj]]),1),INDEX(PlaniraniMarketinški[],,1),0),MATCH(OdstupanjaZaMarketing[[#Headers],[Ruj]],PlaniraniMarketinški[#Headers],0))-INDEX(StvarniMarketinški[],MATCH(INDEX(OdstupanjaZaMarketing[],ROW()-ROW(OdstupanjaZaMarketing[[#Headers],[Ruj]]),1),INDEX(PlaniraniMarketinški[],,1),0),MATCH(OdstupanjaZaMarketing[[#Headers],[Ruj]],StvarniMarketinški[#Headers],0)) -> 500.00 kn | L22: =INDEX(PlaniraniMarketinški[],MATCH(INDEX(OdstupanjaZaMarketing[],ROW()-ROW(OdstupanjaZaMarketing[[#Headers],[Lis]]),1),INDEX(PlaniraniMarketinški[],,1),0),MATCH(OdstupanjaZaMarketing[[#Headers],[Lis]],PlaniraniMarketinški[#Headers],0))-INDEX(StvarniMarketinški[],MATCH(INDEX(OdstupanjaZaMarketing[],ROW()-ROW(OdstupanjaZaMarketing[[#Headers],[Lis]]),1),INDEX(PlaniraniMarketinški[],,1),0),MATCH(OdstupanjaZaMarketing[[#Headers],[Lis]],StvarniMarketinški[#Headers],0)) -> 500.00 kn | M22: =INDEX(PlaniraniMarketinški[],MATCH(INDEX(OdstupanjaZaMarketing[],ROW()-ROW(OdstupanjaZaMarketing[[#Headers],[Stu]]),1),INDEX(PlaniraniMarketinški[],,1),0),MATCH(OdstupanjaZaMarketing[[#Headers],[Stu]],PlaniraniMarketinški[#Headers],0))-INDEX(StvarniMarketinški[],MATCH(INDEX(OdstupanjaZaMarketing[],ROW()-ROW(OdstupanjaZaMarketing[[#Headers],[Stu]]),1),INDEX(PlaniraniMarketinški[],,1),0),MATCH(OdstupanjaZaMarketing[[#Headers],[Stu]],StvarniMarketinški[#Headers],0)) -> 500.00 kn | N22: =INDEX(PlaniraniMarketinški[],MATCH(INDEX(OdstupanjaZaMarketing[],ROW()-ROW(OdstupanjaZaMarketing[[#Headers],[Pro]]),1),INDEX(PlaniraniMarketinški[],,1),0),MATCH(OdstupanjaZaMarketing[[#Headers],[Pro]],PlaniraniMarketinški[#Headers],0))-INDEX(StvarniMarketinški[],MATCH(INDEX(OdstupanjaZaMarketing[],ROW()-ROW(OdstupanjaZaMarketing[[#Headers],[Pro]]),1),INDEX(PlaniraniMarketinški[],,1),0),MATCH(OdstupanjaZaMarketing[[#Headers],[Pro]],StvarniMarketinški[#Headers],0)) -> 500.00 kn | O22: =SUM(OdstupanjaZaMarketing[[#This Row],[Sij]:[Pro]]) -> 3,000.00 kn
B23: Ažuriranje web-mjesta | C23: =INDEX(PlaniraniMarketinški[],MATCH(INDEX(OdstupanjaZaMarketing[],ROW()-ROW(OdstupanjaZaMarketing[[#Headers],[Sij]]),1),INDEX(PlaniraniMarketinški[],,1),0),MATCH(OdstupanjaZaMarketing[[#Headers],[Sij]],PlaniraniMarketinški[#Headers],0))-INDEX(StvarniMarketinški[],MATCH(INDEX(OdstupanjaZaMarketing[],ROW()-ROW(OdstupanjaZaMarketing[[#Headers],[Sij]]),1),INDEX(PlaniraniMarketinški[],,1),0),MATCH(OdstupanjaZaMarketing[[#Headers],[Sij]],StvarniMarketinški[#Headers],0)) -> 0.00 kn | D23: =INDEX(PlaniraniMarketinški[],MATCH(INDEX(OdstupanjaZaMarketing[],ROW()-ROW(OdstupanjaZaMarketing[[#Headers],[Velj]]),1),INDEX(PlaniraniMarketinški[],,1),0),MATCH(OdstupanjaZaMarketing[[#Headers],[Velj]],PlaniraniMarketinški[#Headers],0))-INDEX(StvarniMarketinški[],MATCH(INDEX(OdstupanjaZaMarketing[],ROW()-ROW(OdstupanjaZaMarketing[[#Headers],[Velj]]),1),INDEX(PlaniraniMarketinški[],,1),0),MATCH(OdstupanjaZaMarketing[[#Headers],[Velj]],StvarniMarketinški[#Headers],0)) -> 0.00 kn | E23: =INDEX(PlaniraniMarketinški[],MATCH(INDEX(OdstupanjaZaMarketing[],ROW()-ROW(OdstupanjaZaMarketing[[#Headers],[Ožu]]),1),INDEX(PlaniraniMarketinški[],,1),0),MATCH(OdstupanjaZaMarketing[[#Headers],[Ožu]],PlaniraniMarketinški[#Headers],0))-INDEX(StvarniMarketinški[],MATCH(INDEX(OdstupanjaZaMarketing[],ROW()-ROW(OdstupanjaZaMarketing[[#Headers],[Ožu]]),1),INDEX(PlaniraniMarketinški[],,1),0),MATCH(OdstupanjaZaMarketing[[#Headers],[Ožu]],StvarniMarketinški[#Headers],0)) -> 0.00 kn | F23: =INDEX(PlaniraniMarketinški[],MATCH(INDEX(OdstupanjaZaMarketing[],ROW()-ROW(OdstupanjaZaMarketing[[#Headers],[Tra]]),1),INDEX(PlaniraniMarketinški[],,1),0),MATCH(OdstupanjaZaMarketing[[#Headers],[Tra]],PlaniraniMarketinški[#Headers],0))-INDEX(StvarniMarketinški[],MATCH(INDEX(OdstupanjaZaMarketing[],ROW()-ROW(OdstupanjaZaMarketing[[#Headers],[Tra]]),1),INDEX(PlaniraniMarketinški[],,1),0),MATCH(OdstupanjaZaMarketing[[#Headers],[Tra]],StvarniMarketinški[#Headers],0)) -> 0.00 kn | G23: =INDEX(PlaniraniMarketinški[],MATCH(INDEX(OdstupanjaZaMarketing[],ROW()-ROW(OdstupanjaZaMarketing[[#Headers],[Svi]]),1),INDEX(PlaniraniMarketinški[],,1),0),MATCH(OdstupanjaZaMarketing[[#Headers],[Svi]],PlaniraniMarketinški[#Headers],0))-INDEX(StvarniMarketinški[],MATCH(INDEX(OdstupanjaZaMarketing[],ROW()-ROW(OdstupanjaZaMarketing[[#Headers],[Svi]]),1),INDEX(PlaniraniMarketinški[],,1),0),MATCH(OdstupanjaZaMarketing[[#Headers],[Svi]],StvarniMarketinški[#Headers],0)) -> 0.00 kn | H23: =INDEX(PlaniraniMarketinški[],MATCH(INDEX(OdstupanjaZaMarketing[],ROW()-ROW(OdstupanjaZaMarketing[[#Headers],[Lip]]),1),INDEX(PlaniraniMarketinški[],,1),0),MATCH(OdstupanjaZaMarketing[[#Headers],[Lip]],PlaniraniMarketinški[#Headers],0))-INDEX(StvarniMarketinški[],MATCH(INDEX(OdstupanjaZaMarketing[],ROW()-ROW(OdstupanjaZaMarketing[[#Headers],[Lip]]),1),INDEX(PlaniraniMarketinški[],,1),0),MATCH(OdstupanjaZaMarketing[[#Headers],[Lip]],StvarniMarketinški[#Headers],0)) -> -500.00 kn | I23: =INDEX(PlaniraniMarketinški[],MATCH(INDEX(OdstupanjaZaMarketing[],ROW()-ROW(OdstupanjaZaMarketing[[#Headers],[Srp]]),1),INDEX(PlaniraniMarketinški[],,1),0),MATCH(OdstupanjaZaMarketing[[#Headers],[Srp]],PlaniraniMarketinški[#Headers],0))-INDEX(StvarniMarketinški[],MATCH(INDEX(OdstupanjaZaMarketing[],ROW()-ROW(OdstupanjaZaMarketing[[#Headers],[Srp]]),1),INDEX(PlaniraniMarketinški[],,1),0),MATCH(OdstupanjaZaMarketing[[#Headers],[Srp]],StvarniMarketinški[#Headers],0)) -> 200.00 kn | J23: =INDEX(PlaniraniMarketinški[],MATCH(INDEX(OdstupanjaZaMarketing[],ROW()-ROW(OdstupanjaZaMarketing[[#Headers],[Kol]]),1),INDEX(PlaniraniMarketinški[],,1),0),MATCH(OdstupanjaZaMarketing[[#Headers],[Kol]],PlaniraniMarketinški[#Headers],0))-INDEX(StvarniMarketinški[],MATCH(INDEX(OdstupanjaZaMarketing[],ROW()-ROW(OdstupanjaZaMarketing[[#Headers],[Kol]]),1),INDEX(PlaniraniMarketinški[],,1),0),MATCH(OdstupanjaZaMarketing[[#Headers],[Kol]],StvarniMarketinški[#Headers],0)) -> 200.00 kn | K23: =INDEX(PlaniraniMarketinški[],MATCH(INDEX(OdstupanjaZaMarketing[],ROW()-ROW(OdstupanjaZaMarketing[[#Headers],[Ruj]]),1),INDEX(PlaniraniMarketinški[],,1),0),MATCH(OdstupanjaZaMarketing[[#Headers],[Ruj]],PlaniraniMarketinški[#Headers],0))-INDEX(StvarniMarketinški[],MATCH(INDEX(OdstupanjaZaMarketing[],ROW()-ROW(OdstupanjaZaMarketing[[#Headers],[Ruj]]),1),INDEX(PlaniraniMarketinški[],,1),0),MATCH(OdstupanjaZaMarketing[[#Headers],[Ruj]],StvarniMarketinški[#Headers],0)) -> 200.00 kn | L23: =INDEX(PlaniraniMarketinški[],MATCH(INDEX(OdstupanjaZaMarketing[],ROW()-ROW(OdstupanjaZaMarketing[[#Headers],[Lis]]),1),INDEX(PlaniraniMarketinški[],,1),0),MATCH(OdstupanjaZaMarketing[[#Headers],[Lis]],PlaniraniMarketinški[#Headers],0))-INDEX(StvarniMarketinški[],MATCH(INDEX(OdstupanjaZaMarketing[],ROW()-ROW(OdstupanjaZaMarketing[[#Headers],[Lis]]),1),INDEX(PlaniraniMarketinški[],,1),0),MATCH(OdstupanjaZaMarketing[[#Headers],[Lis]],StvarniMarketinški[#Headers],0)) -> 200.00 kn | M23: =INDEX(PlaniraniMarketinški[],MATCH(INDEX(OdstupanjaZaMarketing[],ROW()-ROW(OdstupanjaZaMarketing[[#Headers],[Stu]]),1),INDEX(PlaniraniMarketinški[],,1),0),MATCH(OdstupanjaZaMarketing[[#Headers],[Stu]],PlaniraniMarketinški[#Headers],0))-INDEX(StvarniMarketinški[],MATCH(INDEX(OdstupanjaZaMarketing[],ROW()-ROW(OdstupanjaZaMarketing[[#Headers],[Stu]]),1),INDEX(PlaniraniMarketinški[],,1),0),MATCH(OdstupanjaZaMarketing[[#Headers],[Stu]],StvarniMarketinški[#Headers],0)) -> 200.00 kn | N23: =INDEX(PlaniraniMarketinški[],MATCH(INDEX(OdstupanjaZaMarketing[],ROW()-ROW(OdstupanjaZaMarketing[[#Headers],[Pro]]),1),INDEX(PlaniraniMarketinški[],,1),0),MATCH(OdstupanjaZaMarketing[[#Headers],[Pro]],PlaniraniMarketinški[#Headers],0))-INDEX(StvarniMarketinški[],MATCH(INDEX(OdstupanjaZaMarketing[],ROW()-ROW(OdstupanjaZaMarketing[[#Headers],[Pro]]),1),INDEX(PlaniraniMarketinški[],,1),0),MATCH(OdstupanjaZaMarketing[[#Headers],[Pro]],StvarniMarketinški[#Headers],0)) -> 1,000.00 kn | O23: =SUM(OdstupanjaZaMarketing[[#This Row],[Sij]:[Pro]]) -> 1,500.00 kn
B24: Priprema materijala | C24: =INDEX(PlaniraniMarketinški[],MATCH(INDEX(OdstupanjaZaMarketing[],ROW()-ROW(OdstupanjaZaMarketing[[#Headers],[Sij]]),1),INDEX(PlaniraniMarketinški[],,1),0),MATCH(OdstupanjaZaMarketing[[#Headers],[Sij]],PlaniraniMarketinški[#Headers],0))-INDEX(StvarniMarketinški[],MATCH(INDEX(OdstupanjaZaMarketing[],ROW()-ROW(OdstupanjaZaMarketing[[#Headers],[Sij]]),1),INDEX(PlaniraniMarketinški[],,1),0),MATCH(OdstupanjaZaMarketing[[#Headers],[Sij]],StvarniMarketinški[#Headers],0)) -> 200.00 kn | D24: =INDEX(PlaniraniMarketinški[],MATCH(INDEX(OdstupanjaZaMarketing[],ROW()-ROW(OdstupanjaZaMarketing[[#Headers],[Velj]]),1),INDEX(PlaniraniMarketinški[],,1),0),MATCH(OdstupanjaZaMarketing[[#Headers],[Velj]],PlaniraniMarketinški[#Headers],0))-INDEX(StvarniMarketinški[],MATCH(INDEX(OdstupanjaZaMarketing[],ROW()-ROW(OdstupanjaZaMarketing[[#Headers],[Velj]]),1),INDEX(PlaniraniMarketinški[],,1),0),MATCH(OdstupanjaZaMarketing[[#Headers],[Velj]],StvarniMarketinški[#Headers],0)) -> 0.00 kn | E24: =INDEX(PlaniraniMarketinški[],MATCH(INDEX(OdstupanjaZaMarketing[],ROW()-ROW(OdstupanjaZaMarketing[[#Headers],[Ožu]]),1),INDEX(PlaniraniMarketinški[],,1),0),MATCH(OdstupanjaZaMarketing[[#Headers],[Ožu]],PlaniraniMarketinški[#Headers],0))-INDEX(StvarniMarketinški[],MATCH(INDEX(OdstupanjaZaMarketing[],ROW()-ROW(OdstupanjaZaMarketing[[#Headers],[Ožu]]),1),INDEX(PlaniraniMarketinški[],,1),0),MATCH(OdstupanjaZaMarketing[[#Headers],[Ožu]],StvarniMarketinški[#Headers],0)) -> 0.00 kn | F24: =INDEX(PlaniraniMarketinški[],MATCH(INDEX(OdstupanjaZaMarketing[],ROW()-ROW(OdstupanjaZaMarketing[[#Headers],[Tra]]),1),INDEX(PlaniraniMarketinški[],,1),0),MATCH(OdstupanjaZaMarketing[[#Headers],[Tra]],PlaniraniMarketinški[#Headers],0))-INDEX(StvarniMarketinški[],MATCH(INDEX(OdstupanjaZaMarketing[],ROW()-ROW(OdstupanjaZaMarketing[[#Headers],[Tra]]),1),INDEX(PlaniraniMarketinški[],,1),0),MATCH(OdstupanjaZaMarketing[[#Headers],[Tra]],StvarniMarketinški[#Headers],0)) -> -500.00 kn | G24: =INDEX(PlaniraniMarketinški[],MATCH(INDEX(OdstupanjaZaMarketing[],ROW()-ROW(OdstupanjaZaMarketing[[#Headers],[Svi]]),1),INDEX(PlaniraniMarketinški[],,1),0),MATCH(OdstupanjaZaMarketing[[#Headers],[Svi]],PlaniraniMarketinški[#Headers],0))-INDEX(StvarniMarketinški[],MATCH(INDEX(OdstupanjaZaMarketing[],ROW()-ROW(OdstupanjaZaMarketing[[#Headers],[Svi]]),1),INDEX(PlaniraniMarketinški[],,1),0),MATCH(OdstupanjaZaMarketing[[#Headers],[Svi]],StvarniMarketinški[#Headers],0)) -> 0.00 kn | H24: =INDEX(PlaniraniMarketinški[],MATCH(INDEX(OdstupanjaZaMarketing[],ROW()-ROW(OdstupanjaZaMarketing[[#Headers],[Lip]]),1),INDEX(PlaniraniMarketinški[],,1),0),MATCH(OdstupanjaZaMarketing[[#Headers],[Lip]],PlaniraniMarketinški[#Headers],0))-INDEX(StvarniMarketinški[],MATCH(INDEX(OdstupanjaZaMarketing[],ROW()-ROW(OdstupanjaZaMarketing[[#Headers],[Lip]]),1),INDEX(PlaniraniMarketinški[],,1),0),MATCH(OdstupanjaZaMarketing[[#Headers],[Lip]],StvarniMarketinški[#Headers],0)) -> 0.00 kn | I24: =INDEX(PlaniraniMarketinški[],MATCH(INDEX(OdstupanjaZaMarketing[],ROW()-ROW(OdstupanjaZaMarketing[[#Headers],[Srp]]),1),INDEX(PlaniraniMarketinški[],,1),0),MATCH(OdstupanjaZaMarketing[[#Headers],[Srp]],PlaniraniMarketinški[#Headers],0))-INDEX(StvarniMarketinški[],MATCH(INDEX(OdstupanjaZaMarketing[],ROW()-ROW(OdstupanjaZaMarketing[[#Headers],[Srp]]),1),INDEX(PlaniraniMarketinški[],,1),0),MATCH(OdstupanjaZaMarketing[[#Headers],[Srp]],StvarniMarketinški[#Headers],0)) -> 5,000.00 kn | J24: =INDEX(PlaniraniMarketinški[],MATCH(INDEX(OdstupanjaZaMarketing[],ROW()-ROW(OdstupanjaZaMarketing[[#Headers],[Kol]]),1),INDEX(PlaniraniMarketinški[],,1),0),MATCH(OdstupanjaZaMarketing[[#Headers],[Kol]],PlaniraniMarketinški[#Headers],0))-INDEX(StvarniMarketinški[],MATCH(INDEX(OdstupanjaZaMarketing[],ROW()-ROW(OdstupanjaZaMarketing[[#Headers],[Kol]]),1),INDEX(PlaniraniMarketinški[],,1),0),MATCH(OdstupanjaZaMarketing[[#Headers],[Kol]],StvarniMarketinški[#Headers],0)) -> 0.00 kn | K24: =INDEX(PlaniraniMarketinški[],MATCH(INDEX(OdstupanjaZaMarketing[],ROW()-ROW(OdstupanjaZaMarketing[[#Headers],[Ruj]]),1),INDEX(PlaniraniMarketinški[],,1),0),MATCH(OdstupanjaZaMarketing[[#Headers],[Ruj]],PlaniraniMarketinški[#Headers],0))-INDEX(StvarniMarketinški[],MATCH(INDEX(OdstupanjaZaMarketing[],ROW()-ROW(OdstupanjaZaMarketing[[#Headers],[Ruj]]),1),INDEX(PlaniraniMarketinški[],,1),0),MATCH(OdstupanjaZaMarketing[[#Headers],[Ruj]],StvarniMarketinški[#Headers],0)) -> 0.00 kn | L24: =INDEX(PlaniraniMarketinški[],MATCH(INDEX(OdstupanjaZaMarketing[],ROW()-ROW(OdstupanjaZaMarketing[[#Headers],[Lis]]),1),INDEX(PlaniraniMarketinški[],,1),0),MATCH(OdstupanjaZaMarketing[[#Headers],[Lis]],PlaniraniMarketinški[#Headers],0))-INDEX(StvarniMarketinški[],MATCH(INDEX(OdstupanjaZaMarketing[],ROW()-ROW(OdstupanjaZaMarketing[[#Headers],[Lis]]),1),INDEX(PlaniraniMarketinški[],,1),0),MATCH(OdstupanjaZaMarketing[[#Headers],[Lis]],StvarniMarketinški[#Headers],0)) -> 5,000.00 kn | M24: =INDEX(PlaniraniMarketinški[],MATCH(INDEX(OdstupanjaZaMarketing[],ROW()-ROW(OdstupanjaZaMarketing[[#Headers],[Stu]]),1),INDEX(PlaniraniMarketinški[],,1),0),MATCH(OdstupanjaZaMarketing[[#Headers],[Stu]],PlaniraniMarketinški[#Headers],0))-INDEX(StvarniMarketinški[],MATCH(INDEX(OdstupanjaZaMarketing[],ROW()-ROW(OdstupanjaZaMarketing[[#Headers],[Stu]]),1),INDEX(PlaniraniMarketinški[],,1),0),MATCH(OdstupanjaZaMarketing[[#Headers],[Stu]],StvarniMarketinški[#Headers],0)) -> 0.00 kn | N24: =INDEX(PlaniraniMarketinški[],MATCH(INDEX(OdstupanjaZaMarketing[],ROW()-ROW(OdstupanjaZaMarketing[[#Headers],[Pro]]),1),INDEX(PlaniraniMarketinški[],,1),0),MATCH(OdstupanjaZaMarketing[[#Headers],[Pro]],PlaniraniMarketinški[#Headers],0))-INDEX(StvarniMarketinški[],MATCH(INDEX(OdstupanjaZaMarketing[],ROW()-ROW(OdstupanjaZaMarketing[[#Headers],[Pro]]),1),INDEX(PlaniraniMarketinški[],,1),0),MATCH(OdstupanjaZaMarketing[[#Headers],[Pro]],StvarniMarketinški[#Headers],0)) -> 0.00 kn | O24: =SUM(OdstupanjaZaMarketing[[#This Row],[Sij]:[Pro]]) -> 9,700.00 kn
B25: Ispis materijala | C25: =INDEX(PlaniraniMarketinški[],MATCH(INDEX(OdstupanjaZaMarketing[],ROW()-ROW(OdstupanjaZaMarketing[[#Headers],[Sij]]),1),INDEX(PlaniraniMarketinški[],,1),0),MATCH(OdstupanjaZaMarketing[[#Headers],[Sij]],PlaniraniMarketinški[#Headers],0))-INDEX(StvarniMarketinški[],MATCH(INDEX(OdstupanjaZaMarketing[],ROW()-ROW(OdstupanjaZaMarketing[[#Headers],[Sij]]),1),INDEX(PlaniraniMarketinški[],,1),0),MATCH(OdstupanjaZaMarketing[[#Headers],[Sij]],StvarniMarketinški[#Headers],0)) -> 100.00 kn | D25: =INDEX(PlaniraniMarketinški[],MATCH(INDEX(OdstupanjaZaMarketing[],ROW()-ROW(OdstupanjaZaMarketing[[#Headers],[Velj]]),1),INDEX(PlaniraniMarketinški[],,1),0),MATCH(OdstupanjaZaMarketing[[#Headers],[Velj]],PlaniraniMarketinški[#Headers],0))-INDEX(StvarniMarketinški[],MATCH(INDEX(OdstupanjaZaMarketing[],ROW()-ROW(OdstupanjaZaMarketing[[#Headers],[Velj]]),1),INDEX(PlaniraniMarketinški[],,1),0),MATCH(OdstupanjaZaMarketing[[#Headers],[Velj]],StvarniMarketinški[#Headers],0)) -> -300.00 kn | E25: =INDEX(PlaniraniMarketinški[],MATCH(INDEX(OdstupanjaZaMarketing[],ROW()-ROW(OdstupanjaZaMarketing[[#Headers],[Ožu]]),1),INDEX(PlaniraniMarketinški[],,1),0),MATCH(OdstupanjaZaMarketing[[#Headers],[Ožu]],PlaniraniMarketinški[#Headers],0))-INDEX(StvarniMarketinški[],MATCH(INDEX(OdstupanjaZaMarketing[],ROW()-ROW(OdstupanjaZaMarketing[[#Headers],[Ožu]]),1),INDEX(PlaniraniMarketinški[],,1),0),MATCH(OdstupanjaZaMarketing[[#Headers],[Ožu]],StvarniMarketinški[#Headers],0)) -> 100.00 kn | F25: =INDEX(PlaniraniMarketinški[],MATCH(INDEX(OdstupanjaZaMarketing[],ROW()-ROW(OdstupanjaZaMarketing[[#Headers],[Tra]]),1),INDEX(PlaniraniMarketinški[],,1),0),MATCH(OdstupanjaZaMarketing[[#Headers],[Tra]],PlaniraniMarketinški[#Headers],0))-INDEX(StvarniMarketinški[],MATCH(INDEX(OdstupanjaZaMarketing[],ROW()-ROW(OdstupanjaZaMarketing[[#Headers],[Tra]]),1),INDEX(PlaniraniMarketinški[],,1),0),MATCH(OdstupanjaZaMarketing[[#Headers],[Tra]],StvarniMarketinški[#Headers],0)) -> 100.00 kn | G25: =INDEX(PlaniraniMarketinški[],MATCH(INDEX(OdstupanjaZaMarketing[],ROW()-ROW(OdstupanjaZaMarketing[[#Headers],[Svi]]),1),INDEX(PlaniraniMarketinški[],,1),0),MATCH(OdstupanjaZaMarketing[[#Headers],[Svi]],PlaniraniMarketinški[#Headers],0))-INDEX(StvarniMarketinški[],MATCH(INDEX(OdstupanjaZaMarketing[],ROW()-ROW(OdstupanjaZaMarketing[[#Headers],[Svi]]),1),INDEX(PlaniraniMarketinški[],,1),0),MATCH(OdstupanjaZaMarketing[[#Headers],[Svi]],StvarniMarketinški[#Headers],0)) -> -400.00 kn | H25: =INDEX(PlaniraniMarketinški[],MATCH(INDEX(OdstupanjaZaMarketing[],ROW()-ROW(OdstupanjaZaMarketing[[#Headers],[Lip]]),1),INDEX(PlaniraniMarketinški[],,1),0),MATCH(OdstupanjaZaMarketing[[#Headers],[Lip]],PlaniraniMarketinški[#Headers],0))-INDEX(StvarniMarketinški[],MATCH(INDEX(OdstupanjaZaMarketing[],ROW()-ROW(OdstupanjaZaMarketing[[#Headers],[Lip]]),1),INDEX(PlaniraniMarketinški[],,1),0),MATCH(OdstupanjaZaMarketing[[#Headers],[Lip]],StvarniMarketinški[#Headers],0)) -> 20.00 kn | I25: =INDEX(PlaniraniMarketinški[],MATCH(INDEX(OdstupanjaZaMarketing[],ROW()-ROW(OdstupanjaZaMarketing[[#Headers],[Srp]]),1),INDEX(PlaniraniMarketinški[],,1),0),MATCH(OdstupanjaZaMarketing[[#Headers],[Srp]],PlaniraniMarketinški[#Headers],0))-INDEX(StvarniMarketinški[],MATCH(INDEX(OdstupanjaZaMarketing[],ROW()-ROW(OdstupanjaZaMarketing[[#Headers],[Srp]]),1),INDEX(PlaniraniMarketinški[],,1),0),MATCH(OdstupanjaZaMarketing[[#Headers],[Srp]],StvarniMarketinški[#Headers],0)) -> 200.00 kn | J25: =INDEX(PlaniraniMarketinški[],MATCH(INDEX(OdstupanjaZaMarketing[],ROW()-ROW(OdstupanjaZaMarketing[[#Headers],[Kol]]),1),INDEX(PlaniraniMarketinški[],,1),0),MATCH(OdstupanjaZaMarketing[[#Headers],[Kol]],PlaniraniMarketinški[#Headers],0))-INDEX(StvarniMarketinški[],MATCH(INDEX(OdstupanjaZaMarketing[],ROW()-ROW(OdstupanjaZaMarketing[[#Headers],[Kol]]),1),INDEX(PlaniraniMarketinški[],,1),0),MATCH(OdstupanjaZaMarketing[[#Headers],[Kol]],StvarniMarketinški[#Headers],0)) -> 200.00 kn | K25: =INDEX(PlaniraniMarketinški[],MATCH(INDEX(OdstupanjaZaMarketing[],ROW()-ROW(OdstupanjaZaMarketing[[#Headers],[Ruj]]),1),INDEX(PlaniraniMarketinški[],,1),0),MATCH(OdstupanjaZaMarketing[[#Headers],[Ruj]],PlaniraniMarketinški[#Headers],0))-INDEX(StvarniMarketinški[],MATCH(INDEX(OdstupanjaZaMarketing[],ROW()-ROW(OdstupanjaZaMarketing[[#Headers],[Ruj]]),1),INDEX(PlaniraniMarketinški[],,1),0),MATCH(OdstupanjaZaMarketing[[#Headers],[Ruj]],StvarniMarketinški[#Headers],0)) -> 200.00 kn | L25: =INDEX(PlaniraniMarketinški[],MATCH(INDEX(OdstupanjaZaMarketing[],ROW()-ROW(OdstupanjaZaMarketing[[#Headers],[Lis]]),1),INDEX(PlaniraniMarketinški[],,1),0),MATCH(OdstupanjaZaMarketing[[#Headers],[Lis]],PlaniraniMarketinški[#Headers],0))-INDEX(StvarniMarketinški[],MATCH(INDEX(OdstupanjaZaMarketing[],ROW()-ROW(OdstupanjaZaMarketing[[#Headers],[Lis]]),1),INDEX(PlaniraniMarketinški[],,1),0),MATCH(OdstupanjaZaMarketing[[#Headers],[Lis]],StvarniMarketinški[#Headers],0)) -> 200.00 kn | M25: =INDEX(PlaniraniMarketinški[],MATCH(INDEX(OdstupanjaZaMarketing[],ROW()-ROW(OdstupanjaZaMarketing[[#Headers],[Stu]]),1),INDEX(PlaniraniMarketinški[],,1),0),MATCH(OdstupanjaZaMarketing[[#Headers],[Stu]],PlaniraniMarketinški[#Headers],0))-INDEX(StvarniMarketinški[],MATCH(INDEX(OdstupanjaZaMarketing[],ROW()-ROW(OdstupanjaZaMarketing[[#Headers],[Stu]]),1),INDEX(PlaniraniMarketinški[],,1),0),MATCH(OdstupanjaZaMarketing[[#Headers],[Stu]],StvarniMarketinški[#Headers],0)) -> 200.00 kn | N25: =INDEX(PlaniraniMarketinški[],MATCH(INDEX(OdstupanjaZaMarketing[],ROW()-ROW(OdstupanjaZaMarketing[[#Headers],[Pro]]),1),INDEX(PlaniraniMarketinški[],,1),0),MATCH(OdstupanjaZaMarketing[[#Headers],[Pro]],PlaniraniMarketinški[#Headers],0))-INDEX(StvarniMarketinški[],MATCH(INDEX(OdstupanjaZaMarketing[],ROW()-ROW(OdstupanjaZaMarketing[[#Headers],[Pro]]),1),INDEX(PlaniraniMarketinški[],,1),0),MATCH(OdstupanjaZaMarketing[[#Headers],[Pro]],StvarniMarketinški[#Headers],0)) -> 200.00 kn | O25: =SUM(OdstupanjaZaMarketing[[#This Row],[Sij]:[Pro]]) -> 820.00 kn
B26: Marketinški događaji | C26: =INDEX(PlaniraniMarketinški[],MATCH(INDEX(OdstupanjaZaMarketing[],ROW()-ROW(OdstupanjaZaMarketing[[#Headers],[Sij]]),1),INDEX(PlaniraniMarketinški[],,1),0),MATCH(OdstupanjaZaMarketing[[#Headers],[Sij]],PlaniraniMarketinški[#Headers],0))-INDEX(StvarniMarketinški[],MATCH(INDEX(OdstupanjaZaMarketing[],ROW()-ROW(OdstupanjaZaMarketing[[#Headers],[Sij]]),1),INDEX(PlaniraniMarketinški[],,1),0),MATCH(OdstupanjaZaMarketing[[#Headers],[Sij]],StvarniMarketinški[#Headers],0)) -> 200.00 kn | D26: =INDEX(PlaniraniMarketinški[],MATCH(INDEX(OdstupanjaZaMarketing[],ROW()-ROW(OdstupanjaZaMarketing[[#Headers],[Velj]]),1),INDEX(PlaniraniMarketinški[],,1),0),MATCH(OdstupanjaZaMarketing[[#Headers],[Velj]],PlaniraniMarketinški[#Headers],0))-INDEX(StvarniMarketinški[],MATCH(INDEX(OdstupanjaZaMarketing[],ROW()-ROW(OdstupanjaZaMarketing[[#Headers],[Velj]]),1),INDEX(PlaniraniMarketinški[],,1),0),MATCH(OdstupanjaZaMarketing[[#Headers],[Velj]],StvarniMarketinški[#Headers],0)) -> -200.00 kn | E26: =INDEX(PlaniraniMarketinški[],MATCH(INDEX(OdstupanjaZaMarketing[],ROW()-ROW(OdstupanjaZaMarketing[[#Headers],[Ožu]]),1),INDEX(PlaniraniMarketinški[],,1),0),MATCH(OdstupanjaZaMarketing[[#Headers],[Ožu]],PlaniraniMarketinški[#Headers],0))-INDEX(StvarniMarketinški[],MATCH(INDEX(OdstupanjaZaMarketing[],ROW()-ROW(OdstupanjaZaMarketing[[#Headers],[Ožu]]),1),INDEX(PlaniraniMarketinški[],,1),0),MATCH(OdstupanjaZaMarketing[[#Headers],[Ožu]],StvarniMarketinški[#Headers],0)) -> -200.00 kn | F26: =INDEX(PlaniraniMarketinški[],MATCH(INDEX(OdstupanjaZaMarketing[],ROW()-ROW(OdstupanjaZaMarketing[[#Headers],[Tra]]),1),INDEX(PlaniraniMarketinški[],,1),0),MATCH(OdstupanjaZaMarketing[[#Headers],[Tra]],PlaniraniMarketinški[#Headers],0))-INDEX(StvarniMarketinški[],MATCH(INDEX(OdstupanjaZaMarketing[],ROW()-ROW(OdstupanjaZaMarketing[[#Headers],[Tra]]),1),INDEX(PlaniraniMarketinški[],,1),0),MATCH(OdstupanjaZaMarketing[[#Headers],[Tra]],StvarniMarketinški[#Headers],0)) -> 300.00 kn | G26: =INDEX(PlaniraniMarketinški[],MATCH(INDEX(OdstupanjaZaMarketing[],ROW()-ROW(OdstupanjaZaMarketing[[#Headers],[Svi]]),1),INDEX(PlaniraniMarketinški[],,1),0),MATCH(OdstupanjaZaMarketing[[#Headers],[Svi]],PlaniraniMarketinški[#Headers],0))-INDEX(StvarniMarketinški[],MATCH(INDEX(OdstupanjaZaMarketing[],ROW()-ROW(OdstupanjaZaMarketing[[#Headers],[Svi]]),1),INDEX(PlaniraniMarketinški[],,1),0),MATCH(OdstupanjaZaMarketing[[#Headers],[Svi]],StvarniMarketinški[#Headers],0)) -> 500.00 kn | H26: =INDEX(PlaniraniMarketinški[],MATCH(INDEX(OdstupanjaZaMarketing[],ROW()-ROW(OdstupanjaZaMarketing[[#Headers],[Lip]]),1),INDEX(PlaniraniMarketinški[],,1),0),MATCH(OdstupanjaZaMarketing[[#Headers],[Lip]],PlaniraniMarketinški[#Headers],0))-INDEX(StvarniMarketinški[],MATCH(INDEX(OdstupanjaZaMarketing[],ROW()-ROW(OdstupanjaZaMarketing[[#Headers],[Lip]]),1),INDEX(PlaniraniMarketinški[],,1),0),MATCH(OdstupanjaZaMarketing[[#Headers],[Lip]],StvarniMarketinški[#Headers],0)) -> -300.00 kn | I26: =INDEX(PlaniraniMarketinški[],MATCH(INDEX(OdstupanjaZaMarketing[],ROW()-ROW(OdstupanjaZaMarketing[[#Headers],[Srp]]),1),INDEX(PlaniraniMarketinški[],,1),0),MATCH(OdstupanjaZaMarketing[[#Headers],[Srp]],PlaniraniMarketinški[#Headers],0))-INDEX(StvarniMarketinški[],MATCH(INDEX(OdstupanjaZaMarketing[],ROW()-ROW(OdstupanjaZaMarketing[[#Headers],[Srp]]),1),INDEX(PlaniraniMarketinški[],,1),0),MATCH(OdstupanjaZaMarketing[[#Headers],[Srp]],StvarniMarketinški[#Headers],0)) -> 2,000.00 kn | J26: =INDEX(PlaniraniMarketinški[],MATCH(INDEX(OdstupanjaZaMarketing[],ROW()-ROW(OdstupanjaZaMarketing[[#Headers],[Kol]]),1),INDEX(PlaniraniMarketinški[],,1),0),MATCH(OdstupanjaZaMarketing[[#Headers],[Kol]],PlaniraniMarketinški[#Headers],0))-INDEX(StvarniMarketinški[],MATCH(INDEX(OdstupanjaZaMarketing[],ROW()-ROW(OdstupanjaZaMarketing[[#Headers],[Kol]]),1),INDEX(PlaniraniMarketinški[],,1),0),MATCH(OdstupanjaZaMarketing[[#Headers],[Kol]],StvarniMarketinški[#Headers],0)) -> 5,000.00 kn | K26: =INDEX(PlaniraniMarketinški[],MATCH(INDEX(OdstupanjaZaMarketing[],ROW()-ROW(OdstupanjaZaMarketing[[#Headers],[Ruj]]),1),INDEX(PlaniraniMarketinški[],,1),0),MATCH(OdstupanjaZaMarketing[[#Headers],[Ruj]],PlaniraniMarketinški[#Headers],0))-INDEX(StvarniMarketinški[],MATCH(INDEX(OdstupanjaZaMarketing[],ROW()-ROW(OdstupanjaZaMarketing[[#Headers],[Ruj]]),1),INDEX(PlaniraniMarketinški[],,1),0),MATCH(OdstupanjaZaMarketing[[#Headers],[Ruj]],StvarniMarketinški[#Headers],0)) -> 2,000.00 kn | L26: =INDEX(PlaniraniMarketinški[],MATCH(INDEX(OdstupanjaZaMarketing[],ROW()-ROW(OdstupanjaZaMarketing[[#Headers],[Lis]]),1),INDEX(PlaniraniMarketinški[],,1),0),MATCH(OdstupanjaZaMarketing[[#Headers],[Lis]],PlaniraniMarketinški[#Headers],0))-INDEX(StvarniMarketinški[],MATCH(INDEX(OdstupanjaZaMarketing[],ROW()-ROW(OdstupanjaZaMarketing[[#Headers],[Lis]]),1),INDEX(PlaniraniMarketinški[],,1),0),MATCH(OdstupanjaZaMarketing[[#Headers],[Lis]],StvarniMarketinški[#Headers],0)) -> 2,000.00 kn | M26: =INDEX(PlaniraniMarketinški[],MATCH(INDEX(OdstupanjaZaMarketing[],ROW()-ROW(OdstupanjaZaMarketing[[#Headers],[Stu]]),1),INDEX(PlaniraniMarketinški[],,1),0),MATCH(OdstupanjaZaMarketing[[#Headers],[Stu]],PlaniraniMarketinški[#Headers],0))-INDEX(StvarniMarketinški[],MATCH(INDEX(OdstupanjaZaMarketing[],ROW()-ROW(OdstupanjaZaMarketing[[#Headers],[Stu]]),1),INDEX(PlaniraniMarketinški[],,1),0),MATCH(OdstupanjaZaMarketing[[#Headers],[Stu]],StvarniMarketinški[#Headers],0)) -> 2,000.00 kn | N26: =INDEX(PlaniraniMarketinški[],MATCH(INDEX(OdstupanjaZaMarketing[],ROW()-ROW(OdstupanjaZaMarketing[[#Headers],[Pro]]),1),INDEX(PlaniraniMarketinški[],,1),0),MATCH(OdstupanjaZaMarketing[[#Headers],[Pro]],PlaniraniMarketinški[#Headers],0))-INDEX(StvarniMarketinški[],MATCH(INDEX(OdstupanjaZaMarketing[],ROW()-ROW(OdstupanjaZaMarketing[[#Headers],[Pro]]),1),INDEX(PlaniraniMarketinški[],,1),0),MATCH(OdstupanjaZaMarketing[[#Headers],[Pro]],StvarniMarketinški[#Headers],0)) -> 5,000.00 kn | O26: =SUM(OdstupanjaZaMarketing[[#This Row],[Sij]:[Pro]]) -> 18,300.00 kn
B27: Razni izdaci | C27: =INDEX(PlaniraniMarketinški[],MATCH(INDEX(OdstupanjaZaMarketing[],ROW()-ROW(OdstupanjaZaMarketing[[#Headers],[Sij]]),1),INDEX(PlaniraniMarketinški[],,1),0),MATCH(OdstupanjaZaMarketing[[#Headers],[Sij]],PlaniraniMarketinški[#Headers],0))-INDEX(StvarniMarketinški[],MATCH(INDEX(OdstupanjaZaMarketing[],ROW()-ROW(OdstupanjaZaMarketing[[#Headers],[Sij]]),1),INDEX(PlaniraniMarketinški[],,1),0),MATCH(OdstupanjaZaMarketing[[#Headers],[Sij]],StvarniMarketinški[#Headers],0)) -> 55.00 kn | D27: =INDEX(PlaniraniMarketinški[],MATCH(INDEX(OdstupanjaZaMarketing[],ROW()-ROW(OdstupanjaZaMarketing[[#Headers],[Velj]]),1),INDEX(PlaniraniMarketinški[],,1),0),MATCH(OdstupanjaZaMarketing[[#Headers],[Velj]],PlaniraniMarketinški[#Headers],0))-INDEX(StvarniMarketinški[],MATCH(INDEX(OdstupanjaZaMarketing[],ROW()-ROW(OdstupanjaZaMarketing[[#Headers],[Velj]]),1),INDEX(PlaniraniMarketinški[],,1),0),MATCH(OdstupanjaZaMarketing[[#Headers],[Velj]],StvarniMarketinški[#Headers],0)) -> 44.00 kn | E27: =INDEX(PlaniraniMarketinški[],MATCH(INDEX(OdstupanjaZaMarketing[],ROW()-ROW(OdstupanjaZaMarketing[[#Headers],[Ožu]]),1),INDEX(PlaniraniMarketinški[],,1),0),MATCH(OdstupanjaZaMarketing[[#Headers],[Ožu]],PlaniraniMarketinški[#Headers],0))-INDEX(StvarniMarketinški[],MATCH(INDEX(OdstupanjaZaMarketing[],ROW()-ROW(OdstupanjaZaMarketing[[#Headers],[Ožu]]),1),INDEX(PlaniraniMarketinški[],,1),0),MATCH(OdstupanjaZaMarketing[[#Headers],[Ožu]],StvarniMarketinški[#Headers],0)) -> 77.00 kn | F27: =INDEX(PlaniraniMarketinški[],MATCH(INDEX(OdstupanjaZaMarketing[],ROW()-ROW(OdstupanjaZaMarketing[[#Headers],[Tra]]),1),INDEX(PlaniraniMarketinški[],,1),0),MATCH(OdstupanjaZaMarketing[[#Headers],[Tra]],PlaniraniMarketinški[#Headers],0))-INDEX(StvarniMarketinški[],MATCH(INDEX(OdstupanjaZaMarketing[],ROW()-ROW(OdstupanjaZaMarketing[[#Headers],[Tra]]),1),INDEX(PlaniraniMarketinški[],,1),0),MATCH(OdstupanjaZaMarketing[[#Headers],[Tra]],StvarniMarketinški[#Headers],0)) -> -23.00 kn | G27: =INDEX(PlaniraniMarketinški[],MATCH(INDEX(OdstupanjaZaMarketing[],ROW()-ROW(OdstupanjaZaMarketing[[#Headers],[Svi]]),1),INDEX(PlaniraniMarketinški[],,1),0),MATCH(OdstupanjaZaMarketing[[#Headers],[Svi]],PlaniraniMarketinški[#Headers],0))-INDEX(StvarniMarketinški[],MATCH(INDEX(OdstupanjaZaMarketing[],ROW()-ROW(OdstupanjaZaMarketing[[#Headers],[Svi]]),1),INDEX(PlaniraniMarketinški[],,1),0),MATCH(OdstupanjaZaMarketing[[#Headers],[Svi]],StvarniMarketinški[#Headers],0)) -> 13.00 kn | H27: =INDEX(PlaniraniMarketinški[],MATCH(INDEX(OdstupanjaZaMarketing[],ROW()-ROW(OdstupanjaZaMarketing[[#Headers],[Lip]]),1),INDEX(PlaniraniMarketinški[],,1),0),MATCH(OdstupanjaZaMarketing[[#Headers],[Lip]],PlaniraniMarketinški[#Headers],0))-INDEX(StvarniMarketinški[],MATCH(INDEX(OdstupanjaZaMarketing[],ROW()-ROW(OdstupanjaZaMarketing[[#Headers],[Lip]]),1),INDEX(PlaniraniMarketinški[],,1),0),MATCH(OdstupanjaZaMarketing[[#Headers],[Lip]],StvarniMarketinški[#Headers],0)) -> -45.00 kn | I27: =INDEX(PlaniraniMarketinški[],MATCH(INDEX(OdstupanjaZaMarketing[],ROW()-ROW(OdstupanjaZaMarketing[[#Headers],[Srp]]),1),INDEX(PlaniraniMarketinški[],,1),0),MATCH(OdstupanjaZaMarketing[[#Headers],[Srp]],PlaniraniMarketinški[#Headers],0))-INDEX(StvarniMarketinški[],MATCH(INDEX(OdstupanjaZaMarketing[],ROW()-ROW(OdstupanjaZaMarketing[[#Headers],[Srp]]),1),INDEX(PlaniraniMarketinški[],,1),0),MATCH(OdstupanjaZaMarketing[[#Headers],[Srp]],StvarniMarketinški[#Headers],0)) -> 200.00 kn | J27: =INDEX(PlaniraniMarketinški[],MATCH(INDEX(OdstupanjaZaMarketing[],ROW()-ROW(OdstupanjaZaMarketing[[#Headers],[Kol]]),1),INDEX(PlaniraniMarketinški[],,1),0),MATCH(OdstupanjaZaMarketing[[#Headers],[Kol]],PlaniraniMarketinški[#Headers],0))-INDEX(StvarniMarketinški[],MATCH(INDEX(OdstupanjaZaMarketing[],ROW()-ROW(OdstupanjaZaMarketing[[#Headers],[Kol]]),1),INDEX(PlaniraniMarketinški[],,1),0),MATCH(OdstupanjaZaMarketing[[#Headers],[Kol]],StvarniMarketinški[#Headers],0)) -> 200.00 kn | K27: =INDEX(PlaniraniMarketinški[],MATCH(INDEX(OdstupanjaZaMarketing[],ROW()-ROW(OdstupanjaZaMarketing[[#Headers],[Ruj]]),1),INDEX(PlaniraniMarketinški[],,1),0),MATCH(OdstupanjaZaMarketing[[#Headers],[Ruj]],PlaniraniMarketinški[#Headers],0))-INDEX(StvarniMarketinški[],MATCH(INDEX(OdstupanjaZaMarketing[],ROW()-ROW(OdstupanjaZaMarketing[[#Headers],[Ruj]]),1),INDEX(PlaniraniMarketinški[],,1),0),MATCH(OdstupanjaZaMarketing[[#Headers],[Ruj]],StvarniMarketinški[#Headers],0)) -> 200.00 kn | L27: =INDEX(PlaniraniMarketinški[],MATCH(INDEX(OdstupanjaZaMarketing[],ROW()-ROW(OdstupanjaZaMarketing[[#Headers],[Lis]]),1),INDEX(PlaniraniMarketinški[],,1),0),MATCH(OdstupanjaZaMarketing[[#Headers],[Lis]],PlaniraniMarketinški[#Headers],0))-INDEX(StvarniMarketinški[],MATCH(INDEX(OdstupanjaZaMarketing[],ROW()-ROW(OdstupanjaZaMarketing[[#Headers],[Lis]]),1),INDEX(PlaniraniMarketinški[],,1),0),MATCH(OdstupanjaZaMarketing[[#Headers],[Lis]],StvarniMarketinški[#Headers],0)) -> 200.00 kn | M27: =INDEX(PlaniraniMarketinški[],MATCH(INDEX(OdstupanjaZaMarketing[],ROW()-ROW(OdstupanjaZaMarketing[[#Headers],[Stu]]),1),INDEX(PlaniraniMarketinški[],,1),0),MATCH(OdstupanjaZaMarketing[[#Headers],[Stu]],PlaniraniMarketinški[#Headers],0))-INDEX(StvarniMarketinški[],MATCH(INDEX(OdstupanjaZaMarketing[],ROW()-ROW(OdstupanjaZaMarketing[[#Headers],[Stu]]),1),INDEX(PlaniraniMarketinški[],,1),0),MATCH(OdstupanjaZaMarketing[[#Headers],[Stu]],StvarniMarketinški[#Headers],0)) -> 200.00 kn | N27: =INDEX(PlaniraniMarketinški[],MATCH(INDEX(OdstupanjaZaMarketing[],ROW()-ROW(OdstupanjaZaMarketing[[#Headers],[Pro]]),1),INDEX(PlaniraniMarketinški[],,1),0),MATCH(OdstupanjaZaMarketing[[#Headers],[Pro]],PlaniraniMarketinški[#Headers],0))-INDEX(StvarniMarketinški[],MATCH(INDEX(OdstupanjaZaMarketing[],ROW()-ROW(OdstupanjaZaMarketing[[#Headers],[Pro]]),1),INDEX(PlaniraniMarketinški[],,1),0),MATCH(OdstupanjaZaMarketing[[#Headers],[Pro]],StvarniMarketinški[#Headers],0)) -> 200.00 kn | O27: =SUM(OdstupanjaZaMarketing[[#This Row],[Sij]:[Pro]]) -> 1,321.00 kn
B28: Podzbroj | C28: =SUBTOTAL(109,OdstupanjaZaMarketing[Sij]) -> 555.00 kn | D28: =SUBTOTAL(109,OdstupanjaZaMarketing[Velj]) -> -456.00 kn | E28: =SUBTOTAL(109,OdstupanjaZaMarketing[Ožu]) -> -23.00 kn | F28: =SUBTOTAL(109,OdstupanjaZaMarketing[Tra]) -> -123.00 kn | G28: =SUBTOTAL(109,OdstupanjaZaMarketing[Svi]) -> 113.00 kn | H28: =SUBTOTAL(109,OdstupanjaZaMarketing[Lip]) -> -825.00 kn | I28: =SUBTOTAL(109,OdstupanjaZaMarketing[Srp]) -> 8,100.00 kn | J28: =SUBTOTAL(109,OdstupanjaZaMarketing[Kol]) -> 6,100.00 kn | K28: =SUBTOTAL(109,OdstupanjaZaMarketing[Ruj]) -> 3,100.00 kn | L28: =SUBTOTAL(109,OdstupanjaZaMarketing[Lis]) -> 8,100.00 kn | M28: =SUBTOTAL(109,OdstupanjaZaMarketing[Stu]) -> 3,100.00 kn | N28: =SUBTOTAL(109,OdstupanjaZaMarketing[Pro]) -> 6,900.00 kn | O28: =SUBTOTAL(109,OdstupanjaZaMarketing[GODINA]) -> 34,641.00 kn
B30: Obuka/putovanja | C30: Sij | D30: Velj | E30: Ožu | F30: Tra | G30: Svi | H30: Lip | I30: Srp | J30: Kol | K30: Ruj | L30: Lis | M30: Stu | N30: Pro | O30: GODINA
B31: Obuka | C31: =INDEX(PlaniraniZaObukuIPutovanja[],MATCH(INDEX(OdstupanjaZaObukuIPutovanja[],ROW()-ROW(OdstupanjaZaObukuIPutovanja[[#Headers],[Sij]]),1),INDEX(PlaniraniZaObukuIPutovanja[],,1),0),MATCH(OdstupanjaZaObukuIPutovanja[[#Headers],[Sij]],PlaniraniZaObukuIPutovanja[#Headers],0))-INDEX(StvarniZaObukuIPutovanja[],MATCH(INDEX(OdstupanjaZaObukuIPutovanja[],ROW()-ROW(OdstupanjaZaObukuIPutovanja[[#Headers],[Sij]]),1),INDEX(PlaniraniZaObukuIPutovanja[],,1),0),MATCH(OdstupanjaZaObukuIPutovanja[[#Headers],[Sij]],StvarniZaObukuIPutovanja[#Headers],0)) -> 400.00 kn | D31: =INDEX(PlaniraniZaObukuIPutovanja[],MATCH(INDEX(OdstupanjaZaObukuIPutovanja[],ROW()-ROW(OdstupanjaZaObukuIPutovanja[[#Headers],[Velj]]),1),INDEX(PlaniraniZaObukuIPutovanja[],,1),0),MATCH(OdstupanjaZaObukuIPutovanja[[#Headers],[Velj]],PlaniraniZaObukuIPutovanja[#Headers],0))-INDEX(StvarniZaObukuIPutovanja[],MATCH(INDEX(OdstupanjaZaObukuIPutovanja[],ROW()-ROW(OdstupanjaZaObukuIPutovanja[[#Headers],[Velj]]),1),INDEX(PlaniraniZaObukuIPutovanja[],,1),0),MATCH(OdstupanjaZaObukuIPutovanja[[#Headers],[Velj]],StvarniZaObukuIPutovanja[#Headers],0)) -> -400.00 kn | E31: =INDEX(PlaniraniZaObukuIPutovanja[],MATCH(INDEX(OdstupanjaZaObukuIPutovanja[],ROW()-ROW(OdstupanjaZaObukuIPutovanja[[#Headers],[Ožu]]),1),INDEX(PlaniraniZaObukuIPutovanja[],,1),0),MATCH(OdstupanjaZaObukuIPutovanja[[#Headers],[Ožu]],PlaniraniZaObukuIPutovanja[#Headers],0))-INDEX(StvarniZaObukuIPutovanja[],MATCH(INDEX(OdstupanjaZaObukuIPutovanja[],ROW()-ROW(OdstupanjaZaObukuIPutovanja[[#Headers],[Ožu]]),1),INDEX(PlaniraniZaObukuIPutovanja[],,1),0),MATCH(OdstupanjaZaObukuIPutovanja[[#Headers],[Ožu]],StvarniZaObukuIPutovanja[#Headers],0)) -> 600.00 kn | F31: =INDEX(PlaniraniZaObukuIPutovanja[],MATCH(INDEX(OdstupanjaZaObukuIPutovanja[],ROW()-ROW(OdstupanjaZaObukuIPutovanja[[#Headers],[Tra]]),1),INDEX(PlaniraniZaObukuIPutovanja[],,1),0),MATCH(OdstupanjaZaObukuIPutovanja[[#Headers],[Tra]],PlaniraniZaObukuIPutovanja[#Headers],0))-INDEX(StvarniZaObukuIPutovanja[],MATCH(INDEX(OdstupanjaZaObukuIPutovanja[],ROW()-ROW(OdstupanjaZaObukuIPutovanja[[#Headers],[Tra]]),1),INDEX(PlaniraniZaObukuIPutovanja[],,1),0),MATCH(OdstupanjaZaObukuIPutovanja[[#Headers],[Tra]],StvarniZaObukuIPutovanja[#Headers],0)) -> 400.00 kn | G31: =INDEX(PlaniraniZaObukuIPutovanja[],MATCH(INDEX(OdstupanjaZaObukuIPutovanja[],ROW()-ROW(OdstupanjaZaObukuIPutovanja[[#Headers],[Svi]]),1),INDEX(PlaniraniZaObukuIPutovanja[],,1),0),MATCH(OdstupanjaZaObukuIPutovanja[[#Headers],[Svi]],PlaniraniZaObukuIPutovanja[#Headers],0))-INDEX(StvarniZaObukuIPutovanja[],MATCH(INDEX(OdstupanjaZaObukuIPutovanja[],ROW()-ROW(OdstupanjaZaObukuIPutovanja[[#Headers],[Svi]]),1),INDEX(PlaniraniZaObukuIPutovanja[],,1),0),MATCH(OdstupanjaZaObukuIPutovanja[[#Headers],[Svi]],StvarniZaObukuIPutovanja[#Headers],0)) -> 800.00 kn | H31: =INDEX(PlaniraniZaObukuIPutovanja[],MATCH(INDEX(OdstupanjaZaObukuIPutovanja[],ROW()-ROW(OdstupanjaZaObukuIPutovanja[[#Headers],[Lip]]),1),INDEX(PlaniraniZaObukuIPutovanja[],,1),0),MATCH(OdstupanjaZaObukuIPutovanja[[#Headers],[Lip]],PlaniraniZaObukuIPutovanja[#Headers],0))-INDEX(StvarniZaObukuIPutovanja[],MATCH(INDEX(OdstupanjaZaObukuIPutovanja[],ROW()-ROW(OdstupanjaZaObukuIPutovanja[[#Headers],[Lip]]),1),INDEX(PlaniraniZaObukuIPutovanja[],,1),0),MATCH(OdstupanjaZaObukuIPutovanja[[#Headers],[Lip]],StvarniZaObukuIPutovanja[#Headers],0)) -> -800.00 kn | I31: =INDEX(PlaniraniZaObukuIPutovanja[],MATCH(INDEX(OdstupanjaZaObukuIPutovanja[],ROW()-ROW(OdstupanjaZaObukuIPutovanja[[#Headers],[Srp]]),1),INDEX(PlaniraniZaObukuIPutovanja[],,1),0),MATCH(OdstupanjaZaObukuIPutovanja[[#Headers],[Srp]],PlaniraniZaObukuIPutovanja[#Headers],0))-INDEX(StvarniZaObukuIPutovanja[],MATCH(INDEX(OdstupanjaZaObukuIPutovanja[],ROW()-ROW(OdstupanjaZaObukuIPutovanja[[#Headers],[Srp]]),1),INDEX(PlaniraniZaObukuIPutovanja[],,1),0),MATCH(OdstupanjaZaObukuIPutovanja[[#Headers],[Srp]],StvarniZaObukuIPutovanja[#Headers],0)) -> 2,000.00 kn | J31: =INDEX(PlaniraniZaObukuIPutovanja[],MATCH(INDEX(OdstupanjaZaObukuIPutovanja[],ROW()-ROW(OdstupanjaZaObukuIPutovanja[[#Headers],[Kol]]),1),INDEX(PlaniraniZaObukuIPutovanja[],,1),0),MATCH(OdstupanjaZaObukuIPutovanja[[#Headers],[Kol]],PlaniraniZaObukuIPutovanja[#Headers],0))-INDEX(StvarniZaObukuIPutovanja[],MATCH(INDEX(OdstupanjaZaObukuIPutovanja[],ROW()-ROW(OdstupanjaZaObukuIPutovanja[[#Headers],[Kol]]),1),INDEX(PlaniraniZaObukuIPutovanja[],,1),0),MATCH(OdstupanjaZaObukuIPutovanja[[#Headers],[Kol]],StvarniZaObukuIPutovanja[#Headers],0)) -> 2,000.00 kn | K31: =INDEX(PlaniraniZaObukuIPutovanja[],MATCH(INDEX(OdstupanjaZaObukuIPutovanja[],ROW()-ROW(OdstupanjaZaObukuIPutovanja[[#Headers],[Ruj]]),1),INDEX(PlaniraniZaObukuIPutovanja[],,1),0),MATCH(OdstupanjaZaObukuIPutovanja[[#Headers],[Ruj]],PlaniraniZaObukuIPutovanja[#Headers],0))-INDEX(StvarniZaObukuIPutovanja[],MATCH(INDEX(OdstupanjaZaObukuIPutovanja[],ROW()-ROW(OdstupanjaZaObukuIPutovanja[[#Headers],[Ruj]]),1),INDEX(PlaniraniZaObukuIPutovanja[],,1),0),MATCH(OdstupanjaZaObukuIPutovanja[[#Headers],[Ruj]],StvarniZaObukuIPutovanja[#Headers],0)) -> 2,000.00 kn | L31: =INDEX(PlaniraniZaObukuIPutovanja[],MATCH(INDEX(OdstupanjaZaObukuIPutovanja[],ROW()-ROW(OdstupanjaZaObukuIPutovanja[[#Headers],[Lis]]),1),INDEX(PlaniraniZaObukuIPutovanja[],,1),0),MATCH(OdstupanjaZaObukuIPutovanja[[#Headers],[Lis]],PlaniraniZaObukuIPutovanja[#Headers],0))-INDEX(StvarniZaObukuIPutovanja[],MATCH(INDEX(OdstupanjaZaObukuIPutovanja[],ROW()-ROW(OdstupanjaZaObukuIPutovanja[[#Headers],[Lis]]),1),INDEX(PlaniraniZaObukuIPutovanja[],,1),0),MATCH(OdstupanjaZaObukuIPutovanja[[#Headers],[Lis]],StvarniZaObukuIPutovanja[#Headers],0)) -> 2,000.00 kn | M31: =INDEX(PlaniraniZaObukuIPutovanja[],MATCH(INDEX(OdstupanjaZaObukuIPutovanja[],ROW()-ROW(OdstupanjaZaObukuIPutovanja[[#Headers],[Stu]]),1),INDEX(PlaniraniZaObukuIPutovanja[],,1),0),MATCH(OdstupanjaZaObukuIPutovanja[[#Headers],[Stu]],PlaniraniZaObukuIPutovanja[#Headers],0))-INDEX(StvarniZaObukuIPutovanja[],MATCH(INDEX(OdstupanjaZaObukuIPutovanja[],ROW()-ROW(OdstupanjaZaObukuIPutovanja[[#Headers],[Stu]]),1),INDEX(PlaniraniZaObukuIPutovanja[],,1),0),MATCH(OdstupanjaZaObukuIPutovanja[[#Headers],[Stu]],StvarniZaObukuIPutovanja[#Headers],0)) -> 2,000.00 kn | N31: =INDEX(PlaniraniZaObukuIPutovanja[],MATCH(INDEX(OdstupanjaZaObukuIPutovanja[],ROW()-ROW(OdstupanjaZaObukuIPutovanja[[#Headers],[Pro]]),1),INDEX(PlaniraniZaObukuIPutovanja[],,1),0),MATCH(OdstupanjaZaObukuIPutovanja[[#Headers],[Pro]],PlaniraniZaObukuIPutovanja[#Headers],0))-INDEX(StvarniZaObukuIPutovanja[],MATCH(INDEX(OdstupanjaZaObukuIPutovanja[],ROW()-ROW(OdstupanjaZaObukuIPutovanja[[#Headers],[Pro]]),1),INDEX(PlaniraniZaObukuIPutovanja[],,1),0),MATCH(OdstupanjaZaObukuIPutovanja[[#Headers],[Pro]],StvarniZaObukuIPutovanja[#Headers],0)) -> 2,000.00 kn | O31: =SUM(OdstupanjaZaObukuIPutovanja[[#This Row],[Sij]:[Pro]]) -> 13,000.00 kn
B32: Troškovi putovanja povezanih s obukom | C32: =INDEX(PlaniraniZaObukuIPutovanja[],MATCH(INDEX(OdstupanjaZaObukuIPutovanja[],ROW()-ROW(OdstupanjaZaObukuIPutovanja[[#Headers],[Sij]]),1),INDEX(PlaniraniZaObukuIPutovanja[],,1),0),MATCH(OdstupanjaZaObukuIPutovanja[[#Headers],[Sij]],PlaniraniZaObukuIPutovanja[#Headers],0))-INDEX(StvarniZaObukuIPutovanja[],MATCH(INDEX(OdstupanjaZaObukuIPutovanja[],ROW()-ROW(OdstupanjaZaObukuIPutovanja[[#Headers],[Sij]]),1),INDEX(PlaniraniZaObukuIPutovanja[],,1),0),MATCH(OdstupanjaZaObukuIPutovanja[[#Headers],[Sij]],StvarniZaObukuIPutovanja[#Headers],0)) -> 800.00 kn | D32: =INDEX(PlaniraniZaObukuIPutovanja[],MATCH(INDEX(OdstupanjaZaObukuIPutovanja[],ROW()-ROW(OdstupanjaZaObukuIPutovanja[[#Headers],[Velj]]),1),INDEX(PlaniraniZaObukuIPutovanja[],,1),0),MATCH(OdstupanjaZaObukuIPutovanja[[#Headers],[Velj]],PlaniraniZaObukuIPutovanja[#Headers],0))-INDEX(StvarniZaObukuIPutovanja[],MATCH(INDEX(OdstupanjaZaObukuIPutovanja[],ROW()-ROW(OdstupanjaZaObukuIPutovanja[[#Headers],[Velj]]),1),INDEX(PlaniraniZaObukuIPutovanja[],,1),0),MATCH(OdstupanjaZaObukuIPutovanja[[#Headers],[Velj]],StvarniZaObukuIPutovanja[#Headers],0)) -> -200.00 kn | E32: =INDEX(PlaniraniZaObukuIPutovanja[],MATCH(INDEX(OdstupanjaZaObukuIPutovanja[],ROW()-ROW(OdstupanjaZaObukuIPutovanja[[#Headers],[Ožu]]),1),INDEX(PlaniraniZaObukuIPutovanja[],,1),0),MATCH(OdstupanjaZaObukuIPutovanja[[#Headers],[Ožu]],PlaniraniZaObukuIPutovanja[#Headers],0))-INDEX(StvarniZaObukuIPutovanja[],MATCH(INDEX(OdstupanjaZaObukuIPutovanja[],ROW()-ROW(OdstupanjaZaObukuIPutovanja[[#Headers],[Ožu]]),1),INDEX(PlaniraniZaObukuIPutovanja[],,1),0),MATCH(OdstupanjaZaObukuIPutovanja[[#Headers],[Ožu]],StvarniZaObukuIPutovanja[#Headers],0)) -> 600.00 kn | F32: =INDEX(PlaniraniZaObukuIPutovanja[],MATCH(INDEX(OdstupanjaZaObukuIPutovanja[],ROW()-ROW(OdstupanjaZaObukuIPutovanja[[#Headers],[Tra]]),1),INDEX(PlaniraniZaObukuIPutovanja[],,1),0),MATCH(OdstupanjaZaObukuIPutovanja[[#Headers],[Tra]],PlaniraniZaObukuIPutovanja[#Headers],0))-INDEX(StvarniZaObukuIPutovanja[],MATCH(INDEX(OdstupanjaZaObukuIPutovanja[],ROW()-ROW(OdstupanjaZaObukuIPutovanja[[#Headers],[Tra]]),1),INDEX(PlaniraniZaObukuIPutovanja[],,1),0),MATCH(OdstupanjaZaObukuIPutovanja[[#Headers],[Tra]],StvarniZaObukuIPutovanja[#Headers],0)) -> 800.00 kn | G32: =INDEX(PlaniraniZaObukuIPutovanja[],MATCH(INDEX(OdstupanjaZaObukuIPutovanja[],ROW()-ROW(OdstupanjaZaObukuIPutovanja[[#Headers],[Svi]]),1),INDEX(PlaniraniZaObukuIPutovanja[],,1),0),MATCH(OdstupanjaZaObukuIPutovanja[[#Headers],[Svi]],PlaniraniZaObukuIPutovanja[#Headers],0))-INDEX(StvarniZaObukuIPutovanja[],MATCH(INDEX(OdstupanjaZaObukuIPutovanja[],ROW()-ROW(OdstupanjaZaObukuIPutovanja[[#Headers],[Svi]]),1),INDEX(PlaniraniZaObukuIPutovanja[],,1),0),MATCH(OdstupanjaZaObukuIPutovanja[[#Headers],[Svi]],StvarniZaObukuIPutovanja[#Headers],0)) -> 1,200.00 kn | H32: =INDEX(PlaniraniZaObukuIPutovanja[],MATCH(INDEX(OdstupanjaZaObukuIPutovanja[],ROW()-ROW(OdstupanjaZaObukuIPutovanja[[#Headers],[Lip]]),1),INDEX(PlaniraniZaObukuIPutovanja[],,1),0),MATCH(OdstupanjaZaObukuIPutovanja[[#Headers],[Lip]],PlaniraniZaObukuIPutovanja[#Headers],0))-INDEX(StvarniZaObukuIPutovanja[],MATCH(INDEX(OdstupanjaZaObukuIPutovanja[],ROW()-ROW(OdstupanjaZaObukuIPutovanja[[#Headers],[Lip]]),1),INDEX(PlaniraniZaObukuIPutovanja[],,1),0),MATCH(OdstupanjaZaObukuIPutovanja[[#Headers],[Lip]],StvarniZaObukuIPutovanja[#Headers],0)) -> -1,500.00 kn | I32: =INDEX(PlaniraniZaObukuIPutovanja[],MATCH(INDEX(OdstupanjaZaObukuIPutovanja[],ROW()-ROW(OdstupanjaZaObukuIPutovanja[[#Headers],[Srp]]),1),INDEX(PlaniraniZaObukuIPutovanja[],,1),0),MATCH(OdstupanjaZaObukuIPutovanja[[#Headers],[Srp]],PlaniraniZaObukuIPutovanja[#Headers],0))-INDEX(StvarniZaObukuIPutovanja[],MATCH(INDEX(OdstupanjaZaObukuIPutovanja[],ROW()-ROW(OdstupanjaZaObukuIPutovanja[[#Headers],[Srp]]),1),INDEX(PlaniraniZaObukuIPutovanja[],,1),0),MATCH(OdstupanjaZaObukuIPutovanja[[#Headers],[Srp]],StvarniZaObukuIPutovanja[#Headers],0)) -> 2,000.00 kn | J32: =INDEX(PlaniraniZaObukuIPutovanja[],MATCH(INDEX(OdstupanjaZaObukuIPutovanja[],ROW()-ROW(OdstupanjaZaObukuIPutovanja[[#Headers],[Kol]]),1),INDEX(PlaniraniZaObukuIPutovanja[],,1),0),MATCH(OdstupanjaZaObukuIPutovanja[[#Headers],[Kol]],PlaniraniZaObukuIPutovanja[#Headers],0))-INDEX(StvarniZaObukuIPutovanja[],MATCH(INDEX(OdstupanjaZaObukuIPutovanja[],ROW()-ROW(OdstupanjaZaObukuIPutovanja[[#Headers],[Kol]]),1),INDEX(PlaniraniZaObukuIPutovanja[],,1),0),MATCH(OdstupanjaZaObukuIPutovanja[[#Headers],[Kol]],StvarniZaObukuIPutovanja[#Headers],0)) -> 2,000.00 kn | K32: =INDEX(PlaniraniZaObukuIPutovanja[],MATCH(INDEX(OdstupanjaZaObukuIPutovanja[],ROW()-ROW(OdstupanjaZaObukuIPutovanja[[#Headers],[Ruj]]),1),INDEX(PlaniraniZaObukuIPutovanja[],,1),0),MATCH(OdstupanjaZaObukuIPutovanja[[#Headers],[Ruj]],PlaniraniZaObukuIPutovanja[#Headers],0))-INDEX(StvarniZaObukuIPutovanja[],MATCH(INDEX(OdstupanjaZaObukuIPutovanja[],ROW()-ROW(OdstupanjaZaObukuIPutovanja[[#Headers],[Ruj]]),1),INDEX(PlaniraniZaObukuIPutovanja[],,1),0),MATCH(OdstupanjaZaObukuIPutovanja[[#Headers],[Ruj]],StvarniZaObukuIPutovanja[#Headers],0)) -> 2,000.00 kn | L32: =INDEX(PlaniraniZaObukuIPutovanja[],MATCH(INDEX(OdstupanjaZaObukuIPutovanja[],ROW()-ROW(OdstupanjaZaObukuIPutovanja[[#Headers],[Lis]]),1),INDEX(PlaniraniZaObukuIPutovanja[],,1),0),MATCH(OdstupanjaZaObukuIPutovanja[[#Headers],[Lis]],PlaniraniZaObukuIPutovanja[#Headers],0))-INDEX(StvarniZaObukuIPutovanja[],MATCH(INDEX(OdstupanjaZaObukuIPutovanja[],ROW()-ROW(OdstupanjaZaObukuIPutovanja[[#Headers],[Lis]]),1),INDEX(PlaniraniZaObukuIPutovanja[],,1),0),MATCH(OdstupanjaZaObukuIPutovanja[[#Headers],[Lis]],StvarniZaObukuIPutovanja[#Headers],0)) -> 2,000.00 kn | M32: =INDEX(PlaniraniZaObukuIPutovanja[],MATCH(INDEX(OdstupanjaZaObukuIPutovanja[],ROW()-ROW(OdstupanjaZaObukuIPutovanja[[#Headers],[Stu]]),1),INDEX(PlaniraniZaObukuIPutovanja[],,1),0),MATCH(OdstupanjaZaObukuIPutovanja[[#Headers],[Stu]],PlaniraniZaObukuIPutovanja[#Headers],0))-INDEX(StvarniZaObukuIPutovanja[],MATCH(INDEX(OdstupanjaZaObukuIPutovanja[],ROW()-ROW(OdstupanjaZaObukuIPutovanja[[#Headers],[Stu]]),1),INDEX(PlaniraniZaObukuIPutovanja[],,1),0),MATCH(OdstupanjaZaObukuIPutovanja[[#Headers],[Stu]],StvarniZaObukuIPutovanja[#Headers],0)) -> 2,000.00 kn | N32: =INDEX(PlaniraniZaObukuIPutovanja[],MATCH(INDEX(OdstupanjaZaObukuIPutovanja[],ROW()-ROW(OdstupanjaZaObukuIPutovanja[[#Headers],[Pro]]),1),INDEX(PlaniraniZaObukuIPutovanja[],,1),0),MATCH(OdstupanjaZaObukuIPutovanja[[#Headers],[Pro]],PlaniraniZaObukuIPutovanja[#Headers],0))-INDEX(StvarniZaObukuIPutovanja[],MATCH(INDEX(OdstupanjaZaObukuIPutovanja[],ROW()-ROW(OdstupanjaZaObukuIPutovanja[[#Headers],[Pro]]),1),INDEX(PlaniraniZaObukuIPutovanja[],,1),0),MATCH(OdstupanjaZaObukuIPutovanja[[#Headers],[Pro]],StvarniZaObukuIPutovanja[#Headers],0)) -> 2,000.00 kn | O32: =SUM(OdstupanjaZaObukuIPutovanja[[#This Row],[Sij]:[Pro]]) -> 13,700.00 kn
B33: Podzbroj | C33: =SUBTOTAL(109,OdstupanjaZaObukuIPutovanja[Sij]) -> 1,200.00 kn | D33: =SUBTOTAL(109,OdstupanjaZaObukuIPutovanja[Velj]) -> -600.00 kn | E33: =SUBTOTAL(109,OdstupanjaZaObukuIPutovanja[Ožu]) -> 1,200.00 kn | F33: =SUBTOTAL(109,OdstupanjaZaObukuIPutovanja[Tra]) -> 1,200.00 kn | G33: =SUBTOTAL(109,OdstupanjaZaObukuIPutovanja[Svi]) -> 2,000.00 kn | H33: =SUBTOTAL(109,OdstupanjaZaObukuIPutovanja[Lip]) -> -2,300.00 kn | I33: =SUBTOTAL(109,OdstupanjaZaObukuIPutovanja[Srp]) -> 4,000.00 kn | J33: =SUBTOTAL(109,OdstupanjaZaObukuIPutovanja[Kol]) -> 4,000.00 kn | K33: =SUBTOTAL(109,OdstupanjaZaObukuIPutovanja[Ruj]) -> 4,000.00 kn | L33: =SUBTOTAL(109,OdstupanjaZaObukuIPutovanja[Lis]) -> 4,000.00 kn | M33: =SUBTOTAL(109,OdstupanjaZaObukuIPutovanja[Stu]) -> 4,000.00 kn | N33: =SUBTOTAL(109,OdstupanjaZaObukuIPutovanja[Pro]) -> 4,000.00 kn | O33: =SUBTOTAL(109,OdstupanjaZaObukuIPutovanja[GODINA]) -> 26,700.00 kn
B35: UKUPNI IZNOSI | C35: Sij | D35: Velj | E35: Ožu | F35: Tra | G35: Svi | H35: Lip | I35: Srp | J35: Kol | K35: Ruj | L35: Lis | M35: Stu | N35: Pro | O35: Godina
B36: Mjesečni stvarni troškovi | C36: =OdstupanjaZaObukuIPutovanja[[#Totals],[Sij]]+OdstupanjaZaMarketing[[#Totals],[Sij]]+OdstupanjaZaUredske[[#Totals],[Sij]]+OdstupanjaZaZaposlenike[[#Totals],[Sij]] -> 1,738.00 kn | D36: =OdstupanjaZaObukuIPutovanja[[#Totals],[Velj]]+OdstupanjaZaMarketing[[#Totals],[Velj]]+OdstupanjaZaUredske[[#Totals],[Velj]]+OdstupanjaZaZaposlenike[[#Totals],[Velj]] -> -984.00 kn | E36: =OdstupanjaZaObukuIPutovanja[[#Totals],[Ožu]]+OdstupanjaZaMarketing[[#Totals],[Ožu]]+OdstupanjaZaUredske[[#Totals],[Ožu]]+OdstupanjaZaZaposlenike[[#Totals],[Ožu]] -> 1,255.00 kn | F36: =OdstupanjaZaObukuIPutovanja[[#Totals],[Tra]]+OdstupanjaZaMarketing[[#Totals],[Tra]]+OdstupanjaZaUredske[[#Totals],[Tra]]+OdstupanjaZaZaposlenike[[#Totals],[Tra]] -> 301.00 kn | G36: =OdstupanjaZaObukuIPutovanja[[#Totals],[Svi]]+OdstupanjaZaMarketing[[#Totals],[Svi]]+OdstupanjaZaUredske[[#Totals],[Svi]]+OdstupanjaZaZaposlenike[[#Totals],[Svi]] -> 1,440.00 kn | H36: =OdstupanjaZaObukuIPutovanja[[#Totals],[Lip]]+OdstupanjaZaMarketing[[#Totals],[Lip]]+OdstupanjaZaUredske[[#Totals],[Lip]]+OdstupanjaZaZaposlenike[[#Totals],[Lip]] -> -3,744.00 kn | I36: =OdstupanjaZaObukuIPutovanja[[#Totals],[Srp]]+OdstupanjaZaMarketing[[#Totals],[Srp]]+OdstupanjaZaUredske[[#Totals],[Srp]]+OdstupanjaZaZaposlenike[[#Totals],[Srp]] -> 134,695.00 kn | J36: =OdstupanjaZaObukuIPutovanja[[#Totals],[Kol]]+OdstupanjaZaMarketing[[#Totals],[Kol]]+OdstupanjaZaUredske[[#Totals],[Kol]]+OdstupanjaZaZaposlenike[[#Totals],[Kol]] -> 138,918.00 kn | K36: =OdstupanjaZaObukuIPutovanja[[#Totals],[Ruj]]+OdstupanjaZaMarketing[[#Totals],[Ruj]]+OdstupanjaZaUredske[[#Totals],[Ruj]]+OdstupanjaZaZaposlenike[[#Totals],[Ruj]] -> 135,918.00 kn | L36: =OdstupanjaZaObukuIPutovanja[[#Totals],[Lis]]+OdstupanjaZaMarketing[[#Totals],[Lis]]+OdstupanjaZaUredske[[#Totals],[Lis]]+OdstupanjaZaZaposlenike[[#Totals],[Lis]] -> 140,918.00 kn | M36: =OdstupanjaZaObukuIPutovanja[[#Totals],[Stu]]+OdstupanjaZaMarketing[[#Totals],[Stu]]+OdstupanjaZaUredske[[#Totals],[Stu]]+OdstupanjaZaZaposlenike[[#Totals],[Stu]] -> 136,218.00 kn | N36: =OdstupanjaZaObukuIPutovanja[[#Totals],[Pro]]+OdstupanjaZaMarketing[[#Totals],[Pro]]+OdstupanjaZaUredske[[#Totals],[Pro]]+OdstupanjaZaZaposlenike[[#Totals],[Pro]] -> 140,018.00 kn | O36: =OdstupanjaZaObukuIPutovanja[[#Totals],[GODINA]]+OdstupanjaZaMarketing[[#Totals],[GODINA]]+OdstupanjaZaUredske[[#Totals],[GODINA]]+OdstupanjaZaZaposlenike[[#Totals],[GODINA]] -> 826,691.00 kn
B37: UKUPNI stvarni troškovi | C37: =SUM($C$36:C36) -> 1,738.00 kn | D37: =SUM($C$36:D36) -> 754.00 kn | E37: =SUM($C$36:E36) -> 2,009.00 kn | F37: =SUM($C$36:F36) -> 2,310.00 kn | G37: =SUM($C$36:G36) -> 3,750.00 kn | H37: =SUM($C$36:H36) -> 6.00 kn | I37: =SUM($C$36:I36) -> 134,701.00 kn | J37: =SUM($C$36:J36) -> 273,619.00 kn | K37: =SUM($C$36:K36) -> 409,537.00 kn | L37: =SUM($C$36:L36) -> 550,455.00 kn | M37: =SUM($C$36:M36) -> 686,673.00 kn | N37: =SUM($C$36:N36) -> 826,691.00 kn

Sheet ANALIZA TROŠKOVA
B2: ='PLANIRANI TROŠKOVI'!B2:D3 -> Naziv tvrtke
E3: =naziv_radnog_lista -> Detaljne procjene troškova
B5: Kategorije troškova | C5: Planirani troškovi | D5: Stvarni troškovi | E5: Odstupanje u troškovima | F5: Postotak odstupanja
B6: Troškovi zaposlenika | C6: =PlaniraniZaZaposlenike[[#Totals],[GODINA]] -> 1,355,090.00 kn | D6: =StvarniZaZaposlenike[[#Totals],[GODINA]] -> 659,130.00 kn | E6: =C6-D6 -> 695,960.00 kn | F6: =E6/C6 -> 51%
B7: ='PLANIRANI TROŠKOVI'!B10 -> Troškovi ureda | C7: =PlaniraniUredski[[#Totals],[GODINA]] -> 138,740.00 kn | D7: =StvarniUredski[[#Totals],[GODINA]] -> 69,350.00 kn | E7: =C7-D7 -> 69,390.00 kn | F7: =E7/C7 -> 50%
B8: ='PLANIRANI TROŠKOVI'!B21 -> Troškovi marketinga | C8: =PlaniraniMarketinški[[#Totals],[GODINA]] -> 67,800.00 kn | D8: =StvarniMarketinški[[#Totals],[GODINA]] -> 33,159.00 kn | E8: =C8-D8 -> 34,641.00 kn | F8: =E8/C8 -> 51%
B9: ='PLANIRANI TROŠKOVI'!B30 -> Obuka/putovanja | C9: =PlaniraniZaObukuIPutovanja[[#Totals],[GODINA]] -> 48,000.00 kn | D9: =StvarniZaObukuIPutovanja[[#Totals],[GODINA]] -> 21,300.00 kn | E9: =C9-D9 -> 26,700.00 kn | F9: =E9/C9 -> 56%
B10: ='PLANIRANI TROŠKOVI'!B35 -> UKUPNI IZNOSI | C10: ='PLANIRANI TROŠKOVI'!O36 -> 1,609,630.00 kn | D10: ='STVARNI TROŠKOVI'!O36 -> 782,939.00 kn | E10: =C10-D10 -> 826,691.00 kn | F10: =E10/C10 -> 51%
